{"text_format":"1","workbook":"xlsx","n_sheets":5,"sheets":["Budowa","Remont","DANE","INSTRUKCJA","Budowa (2)"],"not_rendered":{"charts":0,"images":0,"macros":1,"external_links":0,"defined_names":6,"comments":0,"pivot_tables":0},"unopened":[],"bounds":{"document_bytes":16777216,"sheet_cells":100000,"rows_first":2000,"rows_last":500,"rows_between":2000,"halvings":0,"cell_chars":16384,"cell_head_chars":4096},"cells_cut":0,"cells_raw":0,"read":"whole","date_system":"1900"}

{"sheet":"Budowa","index":0,"n_rows":224,"n_cols":32,"rows_kept":224,"cut":false,"hidden":false,"merged":[[6,26,11,28],[23,12,24,15],[23,3,24,11],[94,1,94,25],[140,1,140,25],[119,2,119,11],[89,2,89,23],[90,2,90,23],[50,3,50,7],[50,8,50,12],[50,13,50,19],[51,8,51,12],[51,13,51,19],[51,20,51,25],[84,1,84,4],[84,5,84,25],[58,12,58,19],[58,20,58,25],[59,20,59,25],[61,20,61,25],[62,20,62,25],[83,1,83,4],[61,1,61,11],[110,10,110,12],[110,13,110,25],[106,24,106,25],[116,4,116,25],[118,12,118,14],[118,15,118,25],[119,12,119,14],[119,15,119,25],[134,24,134,25],[170,1,170,25],[173,23,173,25],[187,1,187,25],[159,4,159,6],[161,7,161,25],[162,7,162,25],[164,2,165,3],[149,1,149,25],[155,2,155,3],[150,1,151,1],[150,2,151,3],[150,4,150,6],[152,1,152,25],[153,4,153,25],[154,1,154,25],[164,4,164,6],[165,4,165,6],[164,7,164,25],[166,1,166,25],[168,14,168,18],[169,14,169,18],[6,2,12,13],[12,14,12,16],[9,17,9,25],[10,17,10,25],[143,4,143,5],[205,1,205,25],[178,2,178,22],[181,2,181,22],[192,2,192,12],[192,13,192,16],[178,23,178,25],[181,23,181,25],[182,23,183,25],[195,2,195,22],[194,23,195,25],[192,23,193,25],[202,1,202,25],[194,13,194,16],[183,2,183,22],[179,2,179,22],[180,2,180,22],[198,1,198,25],[203,23,203,25],[204,1,204,25],[31,10,31,17],[32,10,32,17],[34,0,34,9],[35,0,35,9],[31,1,31,9],[32,1,32,9],[0,1,0,3],[0,4,0,25],[6,14,6,25],[7,14,7,25],[8,14,8,25],[9,14,9,16],[10,14,10,16],[11,14,11,16],[1,1,1,3],[1,4,1,25],[3,0,3,3],[3,4,3,25],[4,0,4,25],[11,17,11,25],[2,4,2,25],[5,0,5,25],[6,0,12,1],[12,17,12,25],[165,7,165,25],[145,1,146,1],[145,2,146,3],[145,4,145,6],[146,4,146,6],[145,7,145,25],[146,7,146,25],[80,1,80,7],[80,9,80,10],[80,12,80,13],[144,1,144,25],[141,1,141,3],[141,4,141,5],[91,2,91,23],[83,5,83,25],[134,2,134,23],[113,1,113,25],[115,1,115,25],[143,6,143,8],[143,9,143,11],[143,12,143,25],[91,24,91,25],[92,1,92,23],[109,1,110,1],[55,0,55,2],[53,0,53,2],[52,3,52,7],[56,0,56,2],[52,8,52,12],[52,13,52,19],[26,6,26,11],[26,12,26,17],[42,4,42,25],[30,1,30,9],[30,10,30,17],[30,18,30,25],[26,18,26,25],[42,1,42,3],[31,18,31,25],[27,18,27,24],[27,0,27,4],[27,6,27,10],[27,12,27,16],[35,10,35,25],[36,1,36,25],[37,1,37,19],[38,1,38,3],[38,4,38,25],[45,0,45,25],[40,1,40,3],[39,1,39,19],[39,20,39,25],[32,18,32,25],[54,3,54,7],[54,8,54,12],[54,13,54,19],[54,20,54,25],[104,3,104,23],[105,3,105,23],[89,24,89,25],[97,24,97,25],[105,24,105,25],[95,1,95,25],[60,1,60,11],[60,12,60,19],[60,20,60,25],[61,12,61,19],[71,1,71,7],[71,8,71,16],[71,17,71,25],[72,1,72,7],[72,8,72,15],[73,1,73,7],[73,8,73,16],[73,17,73,25],[79,9,79,10],[14,2,14,25],[15,2,15,25],[16,2,16,25],[102,2,102,25],[98,3,98,23],[99,3,99,23],[100,3,100,23],[101,3,101,23],[103,3,103,23],[34,10,34,17],[44,1,44,25],[20,11,20,17],[21,11,21,17],[14,0,14,1],[15,0,15,1],[16,0,16,1],[28,1,28,25],[29,18,29,25],[29,10,29,17],[29,1,29,9],[48,0,48,2],[53,3,53,7],[53,8,53,12],[53,13,53,19],[69,8,69,25],[168,1,168,7],[169,1,169,7],[13,1,13,25],[17,1,17,25],[18,0,18,25],[25,1,25,25],[24,22,24,25],[24,17,24,21],[19,1,19,25],[34,18,34,25],[37,20,37,25],[20,18,20,25],[21,18,21,25],[22,1,22,25],[20,1,20,3],[21,1,21,3],[20,4,20,6],[21,4,21,6],[20,7,20,10],[21,7,21,10],[26,0,26,5],[23,22,23,25],[23,17,23,21],[201,1,201,25],[196,1,196,25],[197,1,197,25],[50,20,50,25],[46,13,47,19],[51,3,51,7],[48,3,48,7],[174,2,174,22],[175,2,175,22],[176,2,176,22],[182,2,182,22],[188,0,188,25],[177,2,177,22],[179,23,179,25],[184,1,184,25],[92,24,92,25],[63,1,63,25],[86,1,86,25],[87,1,87,4],[67,1,67,7],[67,8,67,16],[67,17,67,25],[68,1,68,7],[69,1,69,7],[168,19,168,25],[169,19,169,25],[167,14,167,18],[200,0,200,22],[175,23,175,25],[180,23,180,25],[171,1,171,25],[172,2,172,22],[173,2,173,22],[167,8,167,13],[168,8,168,13],[169,8,169,13],[167,19,167,25],[167,1,167,7],[190,1,190,25],[191,1,191,25],[185,0,185,25],[176,23,176,25],[186,1,186,25],[174,23,174,25],[172,23,172,25],[189,1,189,25],[200,23,200,25],[194,2,194,12],[62,1,62,11],[33,1,33,9],[33,10,33,17],[33,18,33,25],[50,0,50,2],[51,0,51,2],[52,0,52,2],[55,3,55,7],[55,8,55,12],[55,13,55,19],[55,20,55,25],[46,3,46,12],[56,3,56,12],[56,13,56,19],[48,20,48,25],[62,12,62,19],[56,20,56,25],[48,8,48,12],[48,13,48,19],[59,1,59,11],[59,12,59,19],[41,1,41,19],[40,4,40,25],[53,20,53,25],[223,0,223,25],[224,0,224,25],[199,0,199,25],[212,2,212,25],[210,2,210,25],[211,2,211,25],[222,1,222,25],[213,2,213,25],[177,23,177,25],[220,0,220,22],[220,23,220,25],[221,1,221,25],[206,0,206,22],[206,23,206,25],[207,1,207,25],[217,0,217,22],[217,23,217,25],[218,1,218,25],[219,1,219,25],[214,2,214,25],[215,2,215,25],[208,2,208,25],[209,2,209,25],[203,0,203,22],[156,6,156,25],[157,1,157,25],[163,1,163,25],[160,1,160,25],[158,7,158,25],[159,7,159,25],[158,1,159,1],[158,2,159,3],[158,4,158,6],[161,2,162,3],[161,4,161,6],[162,4,162,6],[164,1,165,1],[161,1,162,1],[153,2,153,3],[148,4,148,25],[147,1,147,25],[150,7,150,25],[151,7,151,25],[120,1,120,4],[120,6,120,25],[141,6,141,8],[141,9,141,11],[141,12,141,25],[151,4,151,6],[148,2,148,3],[142,1,142,25],[143,1,143,3],[125,2,125,20],[127,2,127,20],[128,2,128,20],[129,2,129,20],[130,2,130,20],[131,2,131,20],[155,4,155,25],[156,1,156,4],[111,1,111,25],[112,1,112,12],[112,13,112,25],[117,1,117,25],[118,1,119,1],[118,2,118,11],[116,2,116,3],[114,1,114,25],[139,1,139,4],[139,6,139,25],[132,23,132,24],[133,1,133,25],[131,23,131,24],[130,21,130,22],[131,21,131,22],[132,21,132,22],[122,21,122,22],[123,21,123,22],[124,21,124,22],[125,21,125,22],[132,2,132,20],[122,2,122,20],[123,2,123,20],[124,2,124,20],[71,0,73,0],[23,0,24,2],[57,1,57,25],[49,0,49,2],[49,3,49,7],[49,8,49,12],[49,13,49,19],[49,20,49,25],[46,20,47,25],[47,3,47,7],[47,8,47,12],[46,0,47,2],[43,20,43,25],[43,1,43,19],[41,20,41,25],[54,0,54,2],[58,1,58,11],[64,0,64,7],[64,8,64,16],[64,17,64,25],[65,1,65,7],[65,8,65,16],[65,17,65,25],[52,20,52,25],[66,1,66,7],[66,8,66,16],[66,17,66,25],[74,0,81,0],[74,1,74,7],[74,9,74,10],[74,12,74,13],[74,14,74,15],[75,1,75,7],[75,9,75,10],[75,12,75,13],[75,14,75,15],[76,1,76,7],[76,9,76,10],[77,1,77,7],[77,9,77,10],[77,12,77,13],[77,14,77,15],[78,1,78,7],[78,9,78,10],[78,12,78,13],[78,14,78,15],[79,1,79,7],[70,1,70,7],[80,14,80,15],[81,1,81,7],[81,9,81,10],[81,12,81,13],[81,14,81,15],[82,1,82,7],[82,9,82,10],[81,18,81,19],[81,21,81,22],[81,23,81,24],[82,18,82,19],[87,6,87,25],[98,24,98,25],[99,24,99,25],[100,24,100,25],[101,24,101,25],[90,24,90,25],[93,2,93,23],[93,24,93,25],[96,2,96,25],[97,3,97,23],[106,3,106,23],[124,23,124,24],[125,23,125,24],[126,1,126,25],[127,23,127,24],[128,23,128,24],[129,23,129,24],[130,23,130,24],[68,8,68,25],[107,1,107,4],[107,6,107,25],[108,1,108,25],[88,1,88,25],[109,10,109,12],[109,13,109,25],[103,24,103,25],[104,24,104,25],[109,2,109,9],[110,2,110,9],[85,1,85,4],[85,5,85,25],[127,21,127,22],[128,21,128,22],[129,21,129,22],[127,0,132,0],[70,8,70,24],[72,17,72,24],[74,18,74,19],[74,21,74,22],[74,23,74,24],[75,18,75,19],[75,21,75,22],[75,23,75,24],[76,18,76,19],[77,18,77,19],[77,21,77,22],[77,23,77,24],[78,18,78,19],[78,21,78,22],[78,23,78,24],[79,18,79,19],[80,18,80,19],[80,21,80,22],[80,23,80,24],[121,1,121,25],[122,0,125,0],[122,23,122,24],[123,23,123,24],[135,0,138,0],[135,24,135,25],[136,24,136,25],[137,24,137,25],[138,24,138,25],[135,2,135,23],[136,2,136,23],[137,2,137,23],[138,2,138,23]]}
["!"," UWAGA: ",null,null,"WNIOSEK NALEŻY ZŁOŻYĆ ZA PISMEM PRZEWODNIM."]
[null,null,null,null,"PRZED WYPEŁNIENIEM WNIOSKU NALEŻY ZAPOZNAĆ SIĘ Z INSTRUKCJĄ "]
[null,null,null,null,"WYPEŁNIAJĄC WNIOSEK NALEŻY KIEROWAĆ SIĘ INSTRUKCJĄ POMOCNICZĄ I WSKAZÓWKAMI  - (szare pola po prawej stronie wniosku oraz zakładka INSTRUKCJA)."]
[null,null,null,null,"PLIK ZOSTAŁ ZABEZPIECZONY PRZED EDYTOWANIEM. \nPROSZĘ NIE USUWAĆ ZABEZPIECZEŃ I SAMODZIELNIE NIE EDYTOWAĆ PLIKU."]
["WNIOSEK O DOFINANSOWANIE W RAMACH RZĄDOWEGO FUNDUSZU ROZWOJU DRÓG"]
["BUDOWA / ROZBUDOWA / PRZEBUDOWA"]
["PIECZĘĆ WPŁYWU \nDO URZĘDU \nWOJEWÓDZKIEGO",null,null,null,null,null,null,null,null,null,null,null,null,null,"NR EWIDENCYJNY \nWNIOSKU",null,null,null,null,null,null,null,null,null,null,null,"POLA POMOCNICZE - liczniki znaków użytych\nw komórkach"]
[null,null,null,null,null,null,null,null,null,null,null,null,null,null,"     /A /2024"]
[null,null,null,null,null,null,null,null,null,null,null,null,null,null,"JEDNOSTKA SAMORZĄDU TERYTORIALNEGO"]
[null,null,null,null,null,null,null,null,null,null,null,null,null,null,"JST  "]
[null,null,null,null,null,null,null,null,null,null,null,null,null,null,"POWIAT  "]
[null,null,null,null,null,null,null,null,null,null,null,null,null,null,"GMINA  "]
[null,null,null,null,null,null,null,null,null,null,null,null,null,null,"NR TERC  ",null,null,{"$f":"IFERROR(VLOOKUP(CONCATENATE(R10&R11&R12),DANE!$A$70:$K$184,7,0),\"\")","v":""},null,null,null,null,null,null,null,null,null,"↓"]
["1. ","DANE JEDNOSTKI SAMORZĄDU TERYTORIALNEGO"]
["NAZWA ",null,null,null,null,null,null,null,null,null,null,null,null,null,null,null,null,null,null,null,null,null,null,null,null,null,{"$f":"LEN(D15)","v":0},"z",90]
["ADRES ",null,null,null,null,null,null,null,null,null,null,null,null,null,null,null,null,null,null,null,null,null,null,null,null,null,{"$f":"LEN(D16)","v":0},"z",90]
["NIP ",null,null,null,null,null,null,null,null,null,null,null,null,null,null,null,null,null,null,null,null,null,null,null,null,null,{"$f":"LEN(D17)","v":0},"z",90]
["2. ","TYTUŁ ZADANIA "]
[null,null,null,null,null,null,null,null,null,null,null,null,null,null,null,null,null,null,null,null,null,null,null,null,null,null,{"$f":"LEN(A19)","v":0},"z",300]
["3. \n","LOKALIZACJA ZADANIA (kategoria, numer i lokalizacja drogi, na której znajduje się realizowane zadanie)"]
["L.p.","KATEGORIA",null,null,"NR DROGI",null,null,"POWIAT ",null,null,null,"GMINA",null,null,null,null,null,null,"MIEJSCOWOŚĆ"]
[1]
["4. ","PRZEWIDYWANY OKRES REALIZACJI ZADANIA (rozpoczęcie i zakończenie realizacji zadania)"]
["Zadanie ",null,null,{"$f":"IF(AND(R24=\"\",R25=\"\",W25=\"\"),\"\",IFERROR(IF(AF24<12,\"JEDNOROCZNE\",\"WIELOLETNIE\"),\"nie wybrano lub błędnie wybrano daty realizacji zadania\"))","v":""},null,null,null,null,null,null,null,null,"realizowane ",null,null,null,"od ",null,null,null,null,null,2024,null,null,null,null,null,null,{"$f":"IF(R24=\"stycznia\",1,IF(R24=\"lutego\",2,IF(R24=\"marca\",3,IF(R24=\"kwietnia\",4,IF(R24=\"maja\",5,IF(R24=\"czerwca\",6,IF(R24=\"lipca\",7,IF(R24=\"sierpnia\",8,IF(R24=\"września\",9,IF(R24=\"października\",10,IF(R24=\"listopada\",11,IF(R24=\"grudnia\",12,\"\"))))))))))))","v":""},{"$f":"DATE(W24,AD24,1)","v":{"$error":"#VALUE!"}},{"$f":"DATEDIF(AE24,AE25,\"m\")","v":{"$error":"#VALUE!"}}]
[null,null,null,null,null,null,null,null,null,null,null,null,null,null,null,null,"do ",null,null,null,null,null,null,null,null,null,null,null,null,{"$f":"IF(R25=\"stycznia\",1,IF(R25=\"lutego\",2,IF(R25=\"marca\",3,IF(R25=\"kwietnia\",4,IF(R25=\"maja\",5,IF(R25=\"czerwca\",6,IF(R25=\"lipca\",7,IF(R25=\"sierpnia\",8,IF(R25=\"września\",9,IF(R25=\"października\",10,IF(R25=\"listopada\",11,IF(R25=\"grudnia\",12,\"\"))))))))))))","v":""},{"$f":"DATE(W25,AD25,1)","v":{"$error":"#VALUE!"}},{"$f":"IFERROR(IF(AF24>0,\"OK\",\"BŁĄD\"),\"liczba\")","v":"liczba"}]
["5. ","DŁUGOŚĆ ODCINKÓW DRÓG OBJĘTYCH ZADANIEM, WG RODZAJU ROBÓT BUDOWLANYCH [km]"]
["BUDOWA",null,null,null,null,null,"ROZBUDOWA",null,null,null,null,null,"PRZEBUDOWA",null,null,null,null,null,"ŁĄCZNIE"]
[null,null,null,null,null,"km",null,null,null,null,null,"km",null,null,null,null,null,"km",{"$f":"IF(AND(A28=\"\",G28=\"\",M28=\"\"),\"\",A28+G28+M28)","v":""},null,null,null,null,null,null,"km"]
["6. ","PRZEWIDYWANY HARMONOGRAM RZECZOWO-FINANSOWY REALIZACJI ZADANIA (brutto)"]
["Lp.","ELEMENTY I RODZAJE ROBÓT",null,null,null,null,null,null,null,null,"KOSZT KWALIFIKOWALNY\n [zł]",null,null,null,null,null,null,null,"KOSZT NIEKWALIFIKOWALNY\n [zł]"]
["1.","Roboty budowlane"]
["2.","Nadzór inwestorski (wszystkie branże)"]
["3.","Tablice informacyjne"]
["4.","Dodatkowy obowiązek informacyjny\n(jeśli dotyczy)"]
["SUMA ",null,null,null,null,null,null,null,null,null,{"$f":"SUM(K31:R34)","v":0},null,null,null,null,null,null,null,{"$f":"SUM(S31:Z34)","v":0}]
["OGÓŁEM ",null,null,null,null,null,null,null,null,null,{"$f":"SUM(K35,S35)","v":0}]
["7. ","PRZEWIDYWANE KOSZTY REALIZACJI ZADANIA BRUTTO - WYDATKI KWALIFIKOWALNE [zł]"]
["A.","ŁĄCZNY KOSZT REALIZACJI ZADANIA [zł]",null,null,null,null,null,null,null,null,null,null,null,null,null,null,null,null,null,null,{"$f":"IF(K35=0,\"\",K35)","v":""}]
[null,"SŁOWNIE :",null,null,{"$f":"IF(OR(U38=0,U38=\"\"),\"\",Slownie(U38))","v":""}]
["B.","KWOTA WNIOSKOWANEGO DOFINANSOWANIA [zł]",null,null,null,null,null,null,null,null,null,null,null,null,null,null,null,null,null,null,{"$f":"IF(OR(U38=\"\",U44=\"\"),\"\",FLOOR((U38*U44),1))","v":""}]
[null,"SŁOWNIE :",null,null,{"$f":"IF(OR(U40=0,U40=\"\"),\" \",Slownie(U40))","v":" "}]
["C.","KWOTA WKŁADU WŁASNEGO [zł]",null,null,null,null,null,null,null,null,null,null,null,null,null,null,null,null,null,null,{"$f":"IF(OR(U38=\"\",U44=\"\"),\"\",U38-U40)","v":""}]
[null,"SŁOWNIE :",null,null,{"$f":"IF(OR(U42=0,U42=\"\"),\" \",Slownie(U42))","v":" "}]
["D.","UDZIAŁ DOFINANSOWANIA W KOSZTACH KWALIFIKOWALNYCH ZADANIA [%]",null,null,null,null,null,null,null,null,null,null,null,null,null,null,null,null,null,null,{"$f":"IFERROR(VLOOKUP(CONCATENATE(R11&R12),DANE!$B$70:$K$184,10,FALSE),\"\")","v":""}]
["8. ","PRZEWIDYWANY TERMIN DOKONYWANIA WYPŁAT NA RZECZ WYKONAWCY ZADANIA"]
["KWOTA DO WYPŁATY W DANYM ROKU NA RZECZ WYKONAWCY ZADANIA "]
["ROK",null,null,"KWALIFIKOWALNE",null,null,null,null,null,null,null,null,null,"NIEKWALIFIKOWALNE",null,null,null,null,null,null,"OGÓŁEM"]
[null,null,null,"DOFINANSOWANIE",null,null,null,null,"ŚRODKI WŁASNE"]
[2024,null,null,null,null,null,null,null,null,null,null,null,null,null,null,null,null,null,null,null,{"$f":"IF(AND(D49=\"\",I49=\"\",N49=\"\"),\"\",SUM(D49:T49))","v":""}]
[2025,null,null,null,null,null,null,null,null,null,null,null,null,null,null,null,null,null,null,null,""]
[2026,null,null,null,null,null,null,null,null,null,null,null,null,null,null,null,null,null,null,null,""]
[2027,null,null,null,null,null,null,null,null,null,null,null,null,null,null,null,null,null,null,null,""]
[2028,null,null,null,null,null,null,null,null,null,null,null,null,null,null,null,null,null,null,null,""]
[2029,null,null,null,null,null,null,null,null,null,null,null,null,null,null,null,null,null,null,null,""]
[2030,null,null,null,null,null,null,null,null,null,null,null,null,null,null,null,null,null,null,null,""]
["SUMA",null,null,{"$f":"SUM(D49:H55)","v":0},null,null,null,null,{"$f":"SUM(I49:M55)","v":0},null,null,null,null,null,null,null,null,null,null,null,null,null,null,null,null,null,null,null,null,{"$f":"IF(U40=\"\",\"ok\",IF(D56<>U40,\"błąd\",\"ok\"))","v":"ok"},{"$f":"IF(U42=\"\",\"ok\",IF(I56<>U42,\"błąd\",\"ok\"))","v":"ok"}]
["ŁĄCZNIE",null,null,{"$f":"D56+I56","v":0},null,null,null,null,null,null,null,null,null,{"$f":"SUM(N49:T55)","v":0},null,null,null,null,null,null,{"$f":"SUM(U49:Z55)","v":0},null,null,null,null,null,null,null,null,{"$f":"IF(U38=\"\",\"ok\",IF(D57<>U38,\"błąd\",\"ok\"))","v":"ok"},{"$f":"IF(N57<>S35,\"błąd\",\"ok\")","v":"ok"},{"$f":"IF(U57<>K36,\"błąd\",\"ok\")","v":"ok"}]
["9.\n","INFORMACJA O DOPEŁNIENIU WYMOGÓW, JAKIE W ZWIĄZKU Z PLANOWANĄ REALIZACJĄ ZADANIA WYNIKAJĄ Z OBOWIĄZUJĄCYCH PRZEPISÓW PRAWA"]
[null,"Rodzaj dokumentu",null,null,null,null,null,null,null,null,null,null,"nr dokumentu / \nznak dokumentu \n(jeśli dotyczy)",null,null,null,null,null,null,null,"data dokumentu (wydania, zatwierdzenia lub opracowania) \nw formacie: dd.mm.rrrr"]
["1.","Prawomocna decyzja o pozwoleniu na budowę lub \nprawomocna decyzja o zezwoleniu na realizację inwestycji drogowej \nlub \nzgłoszenie robót budowlanych z potwierdzeniem/poświadczeniem o braku sprzeciwu"]
["2.","Projekt budowlany \nlub \nopracowanie do zgłoszenia robót budowlanych"]
["3.","Kosztorys inwestorski"]
["4.","Zatwierdzony projekt stałej organizacji ruchu lub pismo organu uprawnionego do zatwierdzenia organizacji ruchu"]
["10.\n ","OPIS ZADANIA OBEJMUJĄCY STAN ISTNIEJĄCY ORAZ PROJEKTOWANY WRAZ Z UZASADNIENIEM REALIZACJI ZADANIA"]
[null,null,null,null,null,null,null,null,"stan istniejący",null,null,null,null,null,null,null,null,"stan projektowany"]
[null,"kategoria drogi ",null,null,null,null,null,null,{"$f":"IF(B22=\"\",\"\",B22)","v":""}]
[null,"numer drogi ",null,null,null,null,null,null,{"$f":"IF(E22=\"\",\"\",E22)","v":""}]
[null,"klasa drogi "]
[null,"rodzaj robót budowlanych "]
[null,"realizowany kilometraż "]
[null,"realizowana długość odcinka ",null,null,null,null,null,null,null,null,null,null,null,null,null,null,null,null,null,null,null,null,null,null,null,"km"]
[null,"przekrój jezdni"]
[null,"szerokość pasa ruchu ",null,null,null,null,null,null,null,null,null,null,null,null,null,null,"m",null,null,null,null,null,null,null,null,"m"]
[null,"zgoda na odstępstwo "]
[null,"droga dla pieszych\n(strona prawa)",null,null,null,null,null,null,"dł.",null,null,"m","szer.",null,null,null,"m","dł.",null,null,"m","szer.",null,null,null,"m"]
[null,"droga dla pieszych\n(strona lewa)",null,null,null,null,null,null,"dł.",null,null,"m","szer.",null,null,null,"m","dł.",null,null,"m","szer.",null,null,null,"m"]
[null,"łączna długość \ndrogi dla pieszych",null,null,null,null,null,null,"dł.",{"$f":"IF(AND(J75=\"\",J76=\"\"),\"\",SUM(J75:K76))","v":""},null,"m",null,null,null,null,null,"dł.",{"$f":"IF(AND(S75=\"\",S76=\"\"),\"\",SUM(S75:T76))","v":""},null,"m"]
[null,"droga dla pieszych i rowerów\n(strona prawa)",null,null,null,null,null,null,"dł.",null,null,"m","szer.",null,null,null,"m","dł.",null,null,"m","szer.",null,null,null,"m"]
[null,"droga dla pieszych i rowerów\n(strona lewa)",null,null,null,null,null,null,"dł.",null,null,"m","szer.",null,null,null,"m","dł.",null,null,"m","szer.",null,null,null,"m"]
[null,"łączna długość \ndrogi dla pieszych i rowerów",null,null,null,null,null,null,"dł.",{"$f":"IF(AND(J78=\"\",J79=\"\"),\"\",SUM(J78:K79))","v":""},null,"m",null,null,null,null,null,"dł.",{"$f":"IF(AND(S78=\"\",S79=\"\"),\"\",SUM(S78:T79))","v":""},null,"m"]
[null,"droga dla rowerów\n(strona prawa)",null,null,null,null,null,null,"dł.",null,null,"m","szer.",null,null,null,"m","dł.",null,null,"m","szer.",null,null,null,"m"]
[null,"droga dla pieszych\n(strona lewa)",null,null,null,null,null,null,"dł.",null,null,"m","szer.",null,null,null,"m","dł.",null,null,"m","szer.",null,null,null,"m"]
[null,"łączna długość \ndrogi dla rowerów",null,null,null,null,null,null,"dł.",{"$f":"IF(AND(J81=\"\",J82=\"\"),\"\",SUM(J81:K82))","v":""},null,"m",null,null,null,null,null,"dł.",{"$f":"IF(AND(S81=\"\",S82=\"\"),\"\",SUM(S81:T82))","v":""},null,"m"]
[null,"stan istniejący",null,null,null,null,null,null,null,null,null,null,null,null,null,null,null,null,null,null,null,null,null,null,null,null,{"$f":"LEN(F84)","v":0},"z",400]
[null,"stan projektowany",null,null,null,null,null,null,null,null,null,null,null,null,null,null,null,null,null,null,null,null,null,null,null,null,{"$f":"LEN(F85)","v":0},"z",400]
[null,"uzasadnienie",null,null,null,null,null,null,null,null,null,null,null,null,null,null,null,null,null,null,null,null,null,null,null,null,0,"z",400]
["11. ","CHARAKTERYSTYKA ZADANIA WEDŁUG KRYTERIÓW OCENY MERYTORYCZNEJ"]
[null,"Kryterium nr 1",null,null,null,"-","Wpływ zadania na poprawę bezpieczeństwa ruchu drogowego "]
["A. ","Ryzyko społeczne wypadków.\nOdcinek zlokalizowany jest na drodze publicznej przebiegającej przez powiat (w przypadku drogi powaitowej) lub gminę (w przypadku drogi gminnej) o dużym poziomie ryzyka społecznego:"]
[null,"•","wypadki drogowe ogółem",null,null,null,null,null,null,null,null,null,null,null,null,null,null,null,null,null,null,null,null,null,{"$f":"IF($R$10=\"\",\"\",IF($R$10=\"powiat\",VLOOKUP($R$11,DANE!$D$336:$M$348,8,0),VLOOKUP($R$12,DANE!$F$356:$M$456,6,0)))","v":""}]
[null,"•","wypadki drogowe z udziałem pieszych",null,null,null,null,null,null,null,null,null,null,null,null,null,null,null,null,null,null,null,null,null,{"$f":"IF($R$10=\"\",\"\",IF($R$10=\"powiat\",VLOOKUP($R$11,DANE!$D$336:$M$348,9,0),VLOOKUP($R$12,DANE!$F$356:$M$456,7,0)))","v":""}]
[null,"•","ofiary śmiertelne",null,null,null,null,null,null,null,null,null,null,null,null,null,null,null,null,null,null,null,null,null,{"$f":"IF($R$10=\"\",\"\",IF($R$10=\"powiat\",VLOOKUP($R$11,DANE!$D$336:$M$348,10,0),VLOOKUP($R$12,DANE!$F$356:$M$456,8,0)))","v":""}]
["B.\n\n","Realizacja projektu obejmuje co najmniej jedno zgłoszenie określone w Programie Likwidacji Miejsc Niebezpiecznych na Drogach Lokalnych w województwie świętokrzyskim 2019 - 2023 Bezpieczni na 5+"]
[null,"•","Pozycja, pod którą zgłoszenie znajduje się w Programie Bezpieczni na 5+"]
["C. ","Rozwiązania zwiększające bezpieczeństwo uczestników ruchu drogowego (spełniające wymogi Wytycznych projektowania infrastruktury dla pieszych WR-D-41-3, WR-D-41-4 oraz Wytycznych projektowania infrastruktury dla rowerów WR-D-42-1, WR-D-42-2, WR-D-42-3)"]
[null,"ROZWIAZANIA DODATKOWE/SPECJALNE"]
[null,"1)","przejścia dla pieszych lub/i przejazdy dla rowerzystów o podwyższonym standardzie bezpieczeństwa, w tym:"]
[null,null,"•","oświetlenie przejścia dla pieszych lub/i przejazdu dla rowerzystów"]
[null,null,"•","przejście dla pieszych lub/i przejazd dla rowerzystów z wyspą dzieląca (tzw. azylem)"]
[null,null,"•","wyniesione przejście dla pieszych lub/i przejazd dla rowerzystów"]
[null,null,"•","sygnalizacja świetlna na przejściu dla pieszych lub/i na przejeździe dla rowerzystów"]
[null,null,"•","oznakowanie aktywne lub sygnalizacja ostrzegawcza na przejściu dla pieszych lub/i na przejeździe dla rowerzystów"]
[null,"2)","inne rozwiązania w zakresie bezpieczeństwa niezwiązane z przejściem dla pieszych lub/i przejazdem dla rowerzystów:"]
[null,null,"•","wyniesione skrzyżowanie"]
[null,null,"•","wyspa dzieląca na jezdni wraz z odgięciem toru jazdy na wjeździe do miejscowości "]
[null,null,"•","radar ze znakiem/tablicą zmiennej treści (aktywną), informującym o prędkości ruchu pojazdu"]
[null,null,"•","oznakowanie aktywne na dojeździe do przejazdu kolejowo-drogowego "]
[null,"Kryterium nr 2",null,null,null,"-","Znaczenie zadania dla rozwoju spójnej sieci dróg publicznych "]
["A.\n ","Odcinek drogi ma bezpośrednie połączenie z drogą wyższego rzędu lub stanowi kontynuację realizacji drogi w ramach wcześniej zawartych umów o dofinansowanie w ramach RFRD"]
[null,null,"bezpośrednie połączenie z drogą wyższego rzędu",null,null,null,null,null,null,null,null,null,null,null,null,null,null,null,null,null,null,null,null,null,null,null,{"$f":"LEN(N110)","v":0},"z",60]
[null,null,"kontynuacja drogi w ramach wcześniejszych umów dofinansowania z RFRD",null,null,null,null,null,null,null,null,null,null,null,null,null,null,null,null,null,null,null,null,null,null,null,0,"z",90]
["B. \n","Odcinek drogi biegnie przez gminę, dla której wskaźnik peryferyjności czasowej jest mniejszy niż 30 min., mieści się w przedziale 30 do 50 minut, jest większy niż 50 min."]
[null,"wskaźnik peryferyjności czasowej:",null,null,null,null,null,null,null,null,null,null,null,{"$f":"IF(L22=\"\",\"\",VLOOKUP(L22,DANE!$E$83:$O$184,11,0))","v":""}]
["C. \n","Przewidywane znaczenie wnioskowanego odcinka drogi dla rozwoju społeczno - gospodarczego województwa"]
[null,null,null,null,null,null,null,null,null,null,null,null,null,null,null,null,null,null,null,null,null,null,null,null,null,null,{"$f":"LEN(A115)","v":0},"z",400]
["D. ","Odcinek jest częścią drogi, która stanowi zamknięcie spójnego ciągu komunikacyjnego"]
[null,null,null,null,null,null,null,null,null,null,null,null,null,null,null,null,null,null,null,null,null,null,null,null,null,null,{"$f":"LEN(E117)","v":0},"z",250]
["E.\n ","Odcinek drogi został uszkodzony  w wyniku działania niekorzystnych zjawisk atmosferycznych w ciągu 4 lat przed datą złożenia wniosku o dofinansowanie i jest ujęty w protokole strat potwierdzonym przez Wojewodę Świętokrzyskiego"]
[null,null,"uszkodzona w wyniku działania niekorzystnych zjawisk atmosferycznych ",null,null,null,null,null,null,null,null,null,null,null,null,null,null,null,null,null,null,null,null,null,null,null,{"$f":"LEN(P119)","v":0},"z",60]
[null,null,"i ujęta w protokole strat potwierdzonym przez Wojewodę Świętokrzyskiego",null,null,null,null,null,null,null,null,null,null,null,null,null,null,null,null,null,null,null,null,null,null,null,0,"z",60]
[null,"Kryterium nr 3\n",null,null,null,"-","Podnoszenie standardów technicznych dróg oraz zachowanie ich jednorodności pod względem spełniania tych standardów"]
["A. ","Budowa/rozbudowa/przebudowa skrzyżowań:"]
[null,"•","zwykłych z drogami publicznymi",null,null,null,null,null,null,null,null,null,null,null,null,null,null,null,null,null,null,null,null,null,null,"szt."]
[null,"•","skanalizowanych",null,null,null,null,null,null,null,null,null,null,null,null,null,null,null,null,null,null,null,null,null,null,"szt."]
[null,"•","w formie ronda",null,null,null,null,null,null,null,null,null,null,null,null,null,null,null,null,null,null,null,null,null,null,"szt."]
[null,"•","innych podnoszących poziom bezpieczeństwa np. z sygnalizacją świetlną ",null,null,null,null,null,null,null,null,null,null,null,null,null,null,null,null,null,null,null,null,null,null,"szt."]
["B. ","Budowa/rozbudowa/przebudowa drogowych obiektów inżynierskich:"]
[null,"•","mostów",null,null,null,null,null,null,null,null,null,null,null,null,null,null,null,null,null,null,null,null,null,null,"szt."]
[null,"•","wiaduktów",null,null,null,null,null,null,null,null,null,null,null,null,null,null,null,null,null,null,null,null,null,null,"szt."]
[null,"•","estakad",null,null,null,null,null,null,null,null,null,null,null,null,null,null,null,null,null,null,null,null,null,null,"szt."]
[null,"•","kładek dla pieszych",null,null,null,null,null,null,null,null,null,null,null,null,null,null,null,null,null,null,null,null,null,null,"szt."]
[null,"•","przepustów pod koroną drogi",null,null,null,null,null,null,null,null,null,null,null,null,null,null,null,null,null,null,null,null,null,null,"szt."]
[null,"•","konstrukcji oporowej",null,null,null,null,null,null,null,null,null,null,null,null,null,null,null,null,null,null,null,null,null,null,"szt."]
["C.","Rodzaj robót budowlanych realizowanych w ramach wnioskowanego zadania:"]
[null,"•","budowa obwodnicy"]
[null,"•","budowa/rozbudowa/przebudowa drogi dla pieszych lub drogi dla rowerów"]
[null,"•","budowa/rozbudowa/przebudowa drogi dla pieszych i rowerów"]
[null,"•","montaż oświetlenia ulicznego"]
[null,"•","przebudowa drogi wewnętrznej i zaliczenie jej do kategorii dróg publicznych"]
[null,"Kryterium nr 4",null,null,null,"-","Zwiększenie dostępności transportowej jednostek administracyjnych"]
["A.\n","Odcinek przebiega w całości lub w części na obszarze wiejskim (wykracza poza granice administracyjne miasta)"]
[null,null,null,null,null,null,"przebiega",null,null,null,null,null,{"$f":"IF(AND(E142=\"TAK\",J142<>\"\"),\"na obszarze wiejskim\",\"\")","v":""}]
["B.\n\n","Odcinek drogi przebiega w całości lub w części w granicach administracyjnych miast ujętych w pakiecie dla średnich miast uznanych za zagrożone utratą funkcji społeczno - gospodarczych (na podstawie Analizy Instytutu Geografii i Przestrzennego Zagospodarowania PAN)"]
[null,null,null,null,null,null,"przebiega"]
["C.\n\n\n","Odcinek drogi stanowi bezpośredni/pośredni dojazd do:\n• miejsc zgromadzeń ludności np.: cmentarz, boisko, amfiteatr, obiekty zabytkowe, sakralne; \n• instytucji publicznych lub świadczących usługi publiczne np.: urząd gminy, szkoła, ośrodek zdrowia, ośrodek pomocy społecznej, remiza OSP, świetlica wiejska \n*(dojazd pośredni - położenie powyżej 200 m.b. od drogi, dojazd bezpośredni - położenie do 200 m.b. od drogi)"]
[null,null,null,null,{"$f":"IF(C146=\"TAK\",\"bezpośredni dojazd do:\",\"\")","v":""},null,null,null,null,null,null,null,null,null,null,null,null,null,null,null,null,null,null,null,null,null,{"$f":"LEN(H146)","v":0},"z",250]
[null,null,null,null,{"$f":"IF(C146=\"TAK\",\"pośredni dojazd do:\",\"\")","v":""},null,null,null,null,null,null,null,null,null,null,null,null,null,null,null,null,null,null,null,null,null,{"$f":"LEN(H147)","v":0},"z",250]
["D.\n","Odcinek drogi przyczynia się do poprawy dostępności komunikacyjnej obszarów o niższym poziomie zamożności"]
[null,null,null,null,null,null,null,null,null,null,null,null,null,null,null,null,null,null,null,null,null,null,null,null,null,null,{"$f":"LEN(E149)","v":0},"z",300]
["E.\n\n\n\n","Odcinek drogi stanowi dojazd do nieruchomości, na których zostały zrealizowane lub będą realizowane przez gminę lub związek międzygminny inwestycje mieszkaniowe w ramach programów społeczno - gospodarczych m.in.: mieszkania na wynajem, noclegownie, schroniska dla osób bezdomnych, mieszkania chronione, ogrzewalnie i tymczasowe pomieszczenia\n*(dojazd pośredni - położenie powyżej 200 m.b. od drogi, dojazd bezpośredni - położenie do 200 m.b. od drogi)"]
[null,null,null,null,{"$f":"IF(C151=\"TAK\",\"bezpośredni dojazd do:\",\"\")","v":""},null,null,null,null,null,null,null,null,null,null,null,null,null,null,null,null,null,null,null,null,null,{"$f":"LEN(H151)","v":0},"z",250]
[null,null,null,null,{"$f":"IF(C151=\"TAK\",\"pośredni dojazd do:\",\"\")","v":""},null,null,null,null,null,null,null,null,null,null,null,null,null,null,null,null,null,null,null,null,null,{"$f":"LEN(H152)","v":0},"z",250]
["F.\n","Odcinek drogi prowadzi do obiektu użyteczności publicznej objętego dofinansowaniem z programu Maluch+, Senior+, Rządowego Funduszu Inwestycji Lokalnych"]
[null,null,null,null,null,null,null,null,null,null,null,null,null,null,null,null,null,null,null,null,null,null,null,null,null,null,{"$f":"LEN(E154)","v":0},"z",250]
["G.\n\n","Bezpośrednio w ciągu drogi objętej zadaniem przebiega linia autobusowa objęta wsparciem z Funduszu Rozwoju Przewozów Autobusowych, realizowane są usługi transportu publicznego, uchwalono planowany przebieg linii użyteczności publicznej"]
[null,null,null,null,null,null,null,null,null,null,null,null,null,null,null,null,null,null,null,null,null,null,null,null,null,null,{"$f":"LEN(E156)","v":0},"z",250]
[null,"Kryterium nr 5",null,null,null,"-","Poprawa dostępności do terenów gospodarczych i inwestycyjnych"]
["A.\n\n","Odcinek drogi zapewnia bezpośredni/pośredni dojazd do lokalnych ośrodków gospodarczych np. do strefy ekonomicznej, podmiotów gospodarczych, lokalnego targowiska \n*(dojazd pośredni - położenie powyżej 200 m.b. od drogi, dojazd bezpośredni - położenie do 200 m.b. od drogi)"]
[null,null,null,null,{"$f":"IF(C159=\"TAK\",\"bezpośredni dojazd do:\",\"\")","v":""},null,null,null,null,null,null,null,null,null,null,null,null,null,null,null,null,null,null,null,null,null,{"$f":"LEN(H159)","v":0},"z",250]
[null,null,null,null,{"$f":"IF(C159=\"TAK\",\"pośredni dojazd do:\",\"\")","v":""},null,null,null,null,null,null,null,null,null,null,null,null,null,null,null,null,null,null,null,null,null,0,"z",250]
["B.\n\n\n","Odcinek drogi umożliwia bezpośredni/pośredni dojazd do terenów inwestycyjnych, rozumianych jako tereny przeznaczone w studium uwarunkowań przestrzennych, miejscowym planie zagospodarowania lub w decyzji lokalizacyjnej pod działalność gospodarczą \n*(dojazd pośredni - położenie powyżej 200 m.b. od drogi, dojazd bezpośredni - położenie do 200 m.b. od drogi)"]
[null,null,null,null,{"$f":"IF(C162=\"TAK\",\"bezpośredni dojazd do:\",\"\")","v":""},null,null,null,null,null,null,null,null,null,null,null,null,null,null,null,null,null,null,null,null,null,{"$f":"LEN(H162)","v":0},"z",250]
[null,null,null,null,{"$f":"IF(C162=\"TAK\",\"pośredni dojazd do:\",\"\")","v":""},null,null,null,null,null,null,null,null,null,null,null,null,null,null,null,null,null,null,null,null,null,0,"z",250]
["C.\n\n\n","Odcinek drogi zapewnia bezpośredni/pośredni dojazd do terenów, na których jest prowadzona produkcja rolna, sadownictwo, ogrodnictwo lub/i zlokalizowane są gospodarstwa agroturystyczne ważne ze względu na specyfikę obszaru \n*(dojazd pośredni - położenie powyżej 200 m.b. od drogi, dojazd bezpośredni - położenie do 200 m.b. od drogi)"]
[null,null,null,null,{"$f":"IF(C165=\"TAK\",\"bezpośredni dojazd do:\",\"\")","v":""},null,null,null,null,null,null,null,null,null,null,null,null,null,null,null,null,null,null,null,null,null,{"$f":"LEN(H165)","v":0},"z",250]
[null,null,null,null,{"$f":"IF(C165=\"TAK\",\"pośredni dojazd do:\",\"\")","v":""},null,null,null,null,null,null,null,null,null,null,null,null,null,null,null,null,null,null,null,null,null,0,"z",250]
["12. ","OSOBY UPOWAŻNIONE DO UDZIELANIA WYJAŚNIEŃ KOMISJI"]
["Lp.","imię i nazwisko",null,null,null,null,null,null,"stanowisko służbowe",null,null,null,null,null,"nr telefonu",null,null,null,null,"e-mail"]
[1]
[2]
["13. ","ZŁĄCZNIKI"]
["1)","Do wniosku dołączone zostały załączniki:   "]
[null,"a)","kopia prawomocnej decyzji o pozwoleniu na budowę - dotyczy robót realizowanych na podstawie pozwolenia na budowę (obligatoryjnie),\nlub"]
[null,null,"kopia prawomocnej decyzji o zezwoleniu na realizację inwestycji drogowej - dotyczy robót realizowanych na podstawie ZRID (obligatoryjnie), \nlub"]
[null,null,"kopia zgłoszenia robót budowlanych z poświadczeniem o braku podstaw do wniesienia sprzeciwu na zgłoszenie wykonania robót budowlanych potwierdzone:\n - zaświadczeniem organu administracji architektoniczno-budowlanej \n   lub \n - pieczęcią organu administracji architektoniczno-budowlanej \ndotyczy robót realizowanych na podstawie zgłoszenia (obligatoryjnie),"]
[null,"b)","zgodna ze stanem faktycznym, czytelna mapa poglądowa z naniesioną skalą i z zaznaczonym miejscem/odcinkiem realizacji wnioskowanego zadania oraz elementami mającymi wpływ na ocenę merytoryczną wniosku - dotyczy kryterium nr 4 i nr 5 (obligatoryjnie),"]
[null,"c)","kopia strony projektu stałej organizacji ruchu, z której wynika, że projekt jest zatwierdzony (obligatoryjnie) \n"]
[null,null,"lub \npismo organu uprawnionego do zatwierdzenia organizacji ruchu (obligatoryjnie),"]
[null,"d)","rysunki  z charakterystycznymi przekrojami poprzecznymi pasa drogowego w liniach rozgraniczających z wykazaniem wszystkich elementów drogi - przekroje normalne i przekroje konstrukcyjne lub normalno-konstrukcyjne (obligatoryjnie)"]
[null,"e)","kopia kosztorysu inwestorskiego (obligatoryjnie)"]
[null,"f)","kopia zgody na odstępstwo od przepisów techniczno-budowlanych (jeśli dotyczy),"]
[null,"g)","informacja dotycząca komplementarności zadania z programami rządowymi z podaniem nazwy programu, numeru i daty umowy z Wojewodą lub umowy/umów wynikających z programów społeczno - gospodarczych - dotyczy kryterium nr 4 (jeśli dotyczy), "]
[null,"h)","dodatkowe załączniki (jeśli dotyczy),"]
[null,null,null,null,null,null,null,null,null,null,null,null,null,null,null,null,null,null,null,null,null,null,null,null,null,null,{"$f":"LEN(C184)","v":0},"z",250]
["14. ","OŚWIADCZENIE I ZOBOWIĄZANIE WNIOSKODAWCY (ustawowego zarządcy drogi)"]
["Wnioskodawca zobowiązuję się do: "]
["•  ","przeprowadzenia postępowania o zamówienie publiczne zgodnie z obowiązującymi przepisami Prawa zamówień publicznych,   "]
[]
["Wnioskodawca oświadcza, że: "]
["1)","do wniosku dołączone zostały załączniki wskazane w punkcie 13 wniosku;"]
["2)","dane i informacje zawarte we wniosku są prawidłowe i kompletne;"]
["3)","na dzień złożenia wniosku, zadanie obejmuje inwestycję wyłącznie na drodze dla której wnioskodawca pełni rolę ustawowego zarządcy i która:\n publicznej, :"]
[null,"•","została zaliczona do kategorii dróg publicznych"]
[null,null,"lub"]
[null,"•","zostanie zaliczona do kategorii dróg publicznych"]
[null,null,"uchwałą właściwego organu jst w sprawie zaliczenia drogi/dróg do odpowiedniej kategorii w terminie 12 miesięcy od dnia zatwierdzenia rozliczenia "]
["4)","zapewnione zostanie zabezpieczenie całości zadeklarowanego we wniosku wkładu własnego;"]
["5)","dopełnił bądź dopełni wszelkich wymogów wynikających z przepisów prawa uprawniających do realizacji zadania;"]
[]
["OŚWIADCZENIA:"]
["OŚWIADCZENIE O PRZEKAZANIU DANYCH O SIECI DRÓG PUBLICZNYCH (obligatoryjnie)"]
[null,"Wnioskodawca oświadcza, że zgodnie z zapisami § 2.2 rozporządzenia Ministra Infrastruktury z dnia 16 lutego 2005 r. w sprawie trybu sporządzania informacji oraz gromadzenia i udostępniania danych o sieci dróg publicznych, obiektach mostowych, tunelach oraz promach (Dz.U. 2005 nr 67 poz. 583) sporządzono oraz przekazano do Generalnego Dyrektora Dróg Krajowych i Autostrad informacje dla celów statystycznych o sieci dróg publicznych. "]
[]
["OŚWIADCZENIE O POSIADANIU TYTUŁU PRAWNEGO DO NIERUCHOMOŚCI (obligatoryjnie)"]
[null,"Wnioskodawca oświadcza, że posiada tytuł prawny do nieruchomości wskazanych w oświadczeniu o dysponowaniu nieruchomością na cele budowlane zgodnie z art. 3 Prawa budowlanego, tj. tytuł prawny wynikający z prawa własności, użytkowania wieczystego, zarządu, ograniczonego prawa rzeczowego albo stosunku zobowiązaniowego, przewidującego uprawnienia do wykonywania robót budowlanych, ponadto tytuł ten nie wynika z posiadania samoistnego/władania lub z mocy prawa na podst. art. 73 ustawy z dnia 13 października 1998 r. Przepisy wprowadzające ustawy reformujące administrację publiczną (dotyczy sytuacji gdy jst nie posiada decyzji potwierdzającej ten fakt)"]
[]
["OŚWIADCZENIE O ZGODNOŚCI Z PRZEPISAMI PRAWA I WYTYCZNYMI (obligatoryjnie)"]
[null,"Wnioskodawca oświadcza, że realizacja zgłoszonego zadania odbędzie się z zachowaniem przepisów prawa budowlanego, w tym warunków techniczno-budowlanych dotyczących dróg, spełnienia parametrów technicznych wynikających z wytycznych projektowania infrastruktury dla pieszych oraz rowerów, odpowiedniego oznakowania i zastosowania urządzeń bezpieczeństwa i organizacji ruchu, w szczególności z:"]
[null,"•  ","ustawą z dnia 7 lipca 1994 r. prawo budowlane (tj. Dz.U. z 2021 r. poz. 2351 z późn. zm.);"]
[null,"•  ","rozporządzeniem Ministra Infrastruktury z dnia 24 czerwca 2022 r. w sprawie przepisów techniczno-budowlanych dotyczących dróg publicznych (tj. Dz. U. z 2022 r. poz. 1518);\nlub\nrozporządzeniem Ministra Transportu i Gospodarki Morskiej z dnia 2 marca 1999 r. w sprawie warunków technicznych, jakim powinny odpowiadać drogi publiczne i ich usytuowanie - w przypadku, gdy zgłoszenie/pozwolenie jest sprzed 2022 roku\n"]
[null,"•  ","ustawą z dnia 21 marca 1985 r. o drogach publicznych (tj. Dz. U. z 2022 r. poz. 1693 z późn. Zm.);"]
[null,"•  ","wytycznymi projektowania infrastruktury dla pieszych. Część 3: Projektowanie przejść dla pieszych \n(WR-D-41-3);"]
[null,"•  ","wytycznymi projektowania infrastruktury dla pieszych. Część 4: Projektowanie oświetlenia przejść dla pieszych (WR-D-41-4);"]
[null,"•  ","wytycznymi projektowania infrastruktury dla rowerów. Część 1: Planowanie tras dla rowerów \n(WR-D-42-1);"]
[null,"•  ","wytycznymi projektowania infrastruktury dla rowerów. Część 2: Projektowanie dróg dla\nrowerów, dróg dla pieszych i rowerów oraz pasów i kontrapasów ruchu dla rowerów (WR-D-42-2);"]
[null,"•  ","wytycznymi projektowania infrastruktury dla rowerów. Część 3: Projektowanie przejazdów dla\nrowerów oraz infrastruktury dla rowerów na skrzyżowaniach i węzłach (WR-D-42-3)."]
[]
["OŚWIADCZENIE O DZIAŁANIACH INFORMACYJNYCH (obligatoryjnie)"]
[null,"Wnioskodawca oświadcza, że realizując zgłoszone zadanie dopełni działań informacyjnych wynikających z art. 38 ustawy z dnia 23 października 2018 r. o Rządowym Funduszu Rozwoju Dróg (Dz.U. z 2023 r. poz. 747 z późn. zm.)"]
[]
["OŚWIADCZENIE O ODPOWIEDZIALNOŚCI KARNEJ (obligatoryjnie)"]
[null,"Ja, niżej podpisana/y, oświadczam, że informacje zawarte we wniosku oraz przedłożonych załącznikach są zgodne z prawdą. Jestem świadomy odpowiedzialności karnej wynikającej z art. 271 Kodeksu Karnego, dotyczącego poświadczenia nieprawdy, co do okoliczności mającej znaczenie prawne."]
[]
["Podpisy i pieczątki osób upoważnionych z ramienia wnioskodawcy (wraz z podpisem Skarbnika/Głównego Księgowego) - ustawowy zarządca drogi"]

{"sheet":"Remont","index":1,"n_rows":215,"n_cols":32,"rows_kept":215,"cut":false,"hidden":false,"merged":[[71,0,73,0],[74,1,74,7],[74,17,74,25],[75,1,75,7],[75,17,75,25],[74,12,74,13],[74,9,74,10],[74,14,74,15],[75,9,75,10],[75,12,75,13],[75,14,75,15],[74,0,81,0],[81,1,81,7],[81,17,81,25],[81,9,81,10],[81,12,81,13],[81,14,81,15],[77,1,77,7],[77,17,77,25],[78,1,78,7],[78,17,78,25],[80,1,80,7],[77,9,77,10],[77,12,77,13],[65,8,65,16],[65,17,65,25],[66,8,66,16],[66,17,66,25],[67,8,67,16],[67,17,67,25],[72,8,72,15],[73,8,73,16],[71,17,71,25],[72,17,72,25],[73,17,73,25],[128,23,128,24],[129,23,129,24],[130,23,130,24],[104,3,104,23],[104,24,104,25],[105,3,105,23],[105,24,105,25],[106,3,106,23],[106,24,106,25],[125,23,125,24],[108,1,108,25],[109,1,110,1],[109,2,109,9],[109,10,109,12],[109,13,109,25],[110,2,110,9],[110,10,110,12],[110,13,110,25],[113,1,113,25],[114,2,114,25],[115,1,115,25],[70,1,70,7],[71,1,71,7],[72,1,72,7],[73,1,73,7],[70,8,70,24],[71,8,71,16],[122,23,122,24],[123,23,123,24],[124,23,124,24],[77,14,77,15],[78,9,78,10],[78,12,78,13],[78,14,78,15],[80,9,80,10],[80,12,80,13],[80,14,80,15],[100,3,100,23],[100,24,100,25],[101,3,101,23],[101,24,101,25],[102,2,102,25],[103,3,103,23],[103,24,103,25],[96,2,96,25],[116,2,116,3],[116,4,116,25],[111,1,111,25],[112,1,112,12],[112,13,112,25],[107,1,107,4],[107,6,107,25],[215,0,215,25],[26,0,27,11],[210,1,210,25],[211,0,211,22],[211,23,211,25],[212,1,212,25],[213,1,213,25],[214,0,214,25],[204,2,204,25],[205,2,205,25],[206,2,206,25],[208,0,208,22],[208,23,208,25],[209,1,209,25],[198,1,198,25],[199,2,199,25],[200,2,200,25],[191,0,191,22],[191,23,191,25],[192,1,192,25],[189,1,189,25],[190,0,190,25],[193,1,193,25],[201,2,201,25],[202,2,202,25],[203,2,203,25],[194,0,194,22],[194,23,194,25],[195,1,195,25],[196,1,196,25],[197,0,197,22],[197,23,197,25],[187,1,187,25],[188,1,188,25],[181,1,181,25],[182,0,182,25],[183,1,183,25],[184,1,184,25],[185,1,185,25],[186,2,186,12],[186,13,186,16],[186,23,186,25],[176,2,176,22],[176,23,177,25],[177,2,177,22],[178,1,178,25],[179,0,179,25],[180,1,180,25],[175,2,175,22],[175,23,175,25],[174,2,174,22],[174,23,174,25],[168,1,168,25],[169,1,169,25],[167,1,167,7],[167,8,167,13],[167,14,167,18],[167,19,167,25],[173,2,173,22],[173,23,173,25],[164,1,164,25],[165,1,165,7],[165,8,165,13],[165,14,165,18],[165,19,165,25],[166,1,166,7],[166,8,166,13],[166,14,166,18],[166,19,166,25],[170,2,170,22],[170,23,170,25],[171,2,171,22],[171,23,171,25],[172,2,172,22],[172,23,172,25],[161,1,161,25],[162,1,163,1],[162,2,163,3],[162,4,162,6],[162,7,162,25],[163,4,163,6],[163,7,163,25],[158,1,158,25],[159,1,160,1],[159,2,160,3],[159,4,159,6],[159,7,159,25],[160,4,160,6],[160,7,160,25],[154,1,154,4],[154,6,154,25],[155,1,155,25],[156,1,157,1],[156,2,157,3],[156,4,156,6],[156,7,156,25],[157,4,157,6],[157,7,157,25],[152,1,152,25],[153,2,153,3],[153,4,153,25],[150,1,150,25],[151,2,151,3],[151,4,151,25],[147,1,147,25],[148,1,149,1],[148,2,149,3],[148,4,148,6],[148,7,148,25],[149,4,149,6],[149,7,149,25],[145,1,145,25],[146,2,146,3],[146,4,146,25],[142,1,142,25],[143,1,144,1],[143,2,144,3],[143,4,143,6],[143,7,143,25],[144,4,144,6],[144,7,144,25],[140,1,140,25],[141,1,141,3],[141,4,141,5],[141,6,141,8],[141,9,141,11],[141,12,141,25],[138,1,138,25],[139,1,139,3],[139,4,139,5],[139,6,139,8],[139,9,139,11],[139,12,139,25],[137,1,137,4],[137,6,137,25],[133,1,133,25],[126,1,126,25],[121,1,121,25],[120,1,120,4],[120,6,120,25],[117,1,117,25],[118,1,119,1],[118,2,118,11],[118,12,118,14],[118,15,118,25],[119,2,119,11],[119,12,119,14],[119,15,119,25],[134,2,134,23],[134,24,134,25],[135,2,135,23],[135,24,135,25],[136,2,136,23],[136,24,136,25],[127,23,127,24],[131,23,131,24],[132,23,132,24],[97,24,97,25],[98,3,98,23],[98,24,98,25],[99,3,99,23],[99,24,99,25],[92,1,92,23],[92,24,92,25],[93,2,93,23],[93,24,93,25],[94,1,94,25],[95,1,95,25],[97,3,97,23],[89,2,89,23],[89,24,89,25],[90,2,90,23],[90,24,90,25],[91,2,91,23],[91,24,91,25],[86,1,86,25],[87,1,87,4],[87,6,87,25],[88,1,88,25],[85,1,85,4],[85,5,85,25],[65,1,65,7],[66,1,66,7],[67,1,67,7],[63,1,63,25],[83,1,83,4],[83,5,83,25],[84,1,84,4],[84,5,84,25],[76,1,76,7],[79,1,79,7],[82,1,82,7],[76,9,76,10],[79,9,79,10],[82,9,82,10],[76,17,76,25],[79,17,79,25],[82,17,82,25],[68,8,68,25],[68,1,68,7],[69,8,69,25],[64,8,64,16],[64,17,64,25],[61,1,61,11],[61,12,61,19],[61,20,61,25],[62,1,62,11],[62,12,62,19],[62,20,62,25],[64,0,64,7],[69,1,69,7],[55,0,55,2],[55,3,55,7],[55,8,55,12],[55,13,55,19],[55,20,55,25],[59,1,59,11],[59,12,59,19],[59,20,59,25],[60,1,60,11],[60,12,60,19],[60,20,60,25],[56,0,56,2],[56,3,56,12],[56,13,56,19],[56,20,56,25],[57,1,57,25],[58,1,58,11],[58,12,58,19],[58,20,58,25],[53,0,53,2],[53,3,53,7],[53,8,53,12],[53,13,53,19],[53,20,53,25],[54,0,54,2],[54,3,54,7],[54,8,54,12],[54,13,54,19],[54,20,54,25],[51,0,51,2],[51,3,51,7],[51,8,51,12],[51,13,51,19],[51,20,51,25],[52,0,52,2],[52,3,52,7],[52,8,52,12],[52,13,52,19],[52,20,52,25],[49,0,49,2],[49,3,49,7],[49,8,49,12],[49,13,49,19],[49,20,49,25],[50,0,50,2],[50,3,50,7],[50,8,50,12],[50,13,50,19],[50,20,50,25],[44,1,44,25],[45,0,45,25],[46,0,47,2],[46,3,46,12],[46,13,47,19],[46,20,47,25],[47,3,47,7],[47,8,47,12],[48,0,48,2],[48,3,48,7],[48,8,48,12],[48,13,48,19],[48,20,48,25],[43,1,43,19],[43,20,43,25],[28,1,28,25],[29,1,29,9],[29,10,29,17],[29,18,29,25],[32,1,32,9],[32,10,32,17],[32,18,32,25],[33,10,33,17],[33,18,33,25],[30,1,30,9],[30,10,30,17],[30,18,30,25],[31,1,31,9],[31,10,31,17],[31,18,31,25],[34,0,34,9],[33,1,33,9],[40,1,40,3],[40,4,40,25],[41,1,41,19],[41,20,41,25],[42,1,42,3],[42,4,42,25],[36,1,36,25],[37,1,37,19],[37,20,37,25],[38,1,38,3],[38,4,38,25],[39,1,39,19],[39,20,39,25],[25,1,25,25],[26,12,26,17],[26,18,26,25],[27,12,27,16],[27,18,27,24],[34,10,34,17],[34,18,34,25],[35,0,35,9],[35,10,35,25],[23,0,24,2],[23,3,24,11],[23,12,24,15],[23,17,23,21],[23,22,23,25],[24,17,24,21],[24,22,24,25],[22,1,22,25],[21,1,21,3],[21,4,21,6],[21,7,21,10],[21,11,21,17],[21,18,21,25],[19,1,19,25],[20,1,20,3],[20,4,20,6],[20,7,20,10],[20,11,20,17],[20,18,20,25],[13,1,13,25],[14,0,14,1],[14,2,14,25],[15,0,15,1],[15,2,15,25],[16,0,16,1],[16,2,16,25],[12,14,12,16],[12,17,12,25],[4,0,4,25],[5,0,5,25],[6,0,12,1],[6,2,12,13],[6,14,6,25],[17,1,17,25],[18,0,18,25],[6,26,11,28],[7,14,7,25],[8,14,8,25],[9,14,9,16],[9,17,9,25],[0,1,0,3],[0,4,0,25],[1,1,1,3],[1,4,1,25],[2,4,2,25],[3,0,3,3],[3,4,3,25],[10,14,10,16],[10,17,10,25],[11,14,11,16],[11,17,11,25],[127,0,132,0],[122,2,122,20],[122,21,122,22],[123,2,123,20],[123,21,123,22],[124,2,124,20],[124,21,124,22],[125,2,125,20],[125,21,125,22],[127,2,127,20],[127,21,127,22],[128,2,128,20],[128,21,128,22],[129,2,129,20],[129,21,129,22],[130,2,130,20],[130,21,130,22],[131,2,131,20],[131,21,131,22],[132,2,132,20],[132,21,132,22],[122,0,125,0]]}
["!"," UWAGA: ",null,null,"WNIOSEK NALEŻY ZŁOŻYĆ ZA PISMEM PRZEWODNIM."]
[null,null,null,null,"PRZED WYPEŁNIENIEM WNIOSKU NALEŻY ZAPOZNAĆ SIĘ Z INSTRUKCJĄ "]
[null,null,null,null,"WYPEŁNIAJĄC WNIOSEK NALEŻY KIEROWAĆ SIĘ INSTRUKCJĄ POMOCNICZĄ I WSKAZÓWKAMI  - (szare pola po prawej stronie wniosku oraz zakładka INSTRUKCJA)."]
[null,null,null,null,"PLIK ZOSTAŁ ZABEZPIECZONY PRZED EDYTOWANIEM. \nPROSZĘ NIE USUWAĆ ZABEZPIECZEŃ I SAMODZIELNIE NIE EDYTOWAĆ PLIKU."]
["WNIOSEK O DOFINANSOWANIE W RAMACH RZĄDOWEGO FUNDUSZU ROZWOJU DRÓG"]
["REMONT"]
["PIECZĘĆ WPŁYWU \nDO URZĘDU \nWOJEWÓDZKIEGO",null,null,null,null,null,null,null,null,null,null,null,null,null,"NR EWIDENCYJNY \nWNIOSKU",null,null,null,null,null,null,null,null,null,null,null,"POLA POMOCNICZE - liczniki znaków użytych\nw komórkach"]
[null,null,null,null,null,null,null,null,null,null,null,null,null,null,"     /A /2024"]
[null,null,null,null,null,null,null,null,null,null,null,null,null,null,"JEDNOSTKA SAMORZĄDU TERYTORIALNEGO"]
[null,null,null,null,null,null,null,null,null,null,null,null,null,null,"JST  "]
[null,null,null,null,null,null,null,null,null,null,null,null,null,null,"POWIAT  "]
[null,null,null,null,null,null,null,null,null,null,null,null,null,null,"GMINA  "]
[null,null,null,null,null,null,null,null,null,null,null,null,null,null,"NR TERC  ",null,null,{"$f":"IFERROR(VLOOKUP(CONCATENATE(R10&R11&R12),DANE!$A$70:$K$184,7,0),\"\")","v":""},null,null,null,null,null,null,null,null,null,"↓"]
["1. ","DANE JEDNOSTKI SAMORZĄDU TERYTORIALNEGO"]
["NAZWA ",null,null,null,null,null,null,null,null,null,null,null,null,null,null,null,null,null,null,null,null,null,null,null,null,null,{"$f":"LEN(C15)","v":0},"z",90]
["ADRES ",null,null,null,null,null,null,null,null,null,null,null,null,null,null,null,null,null,null,null,null,null,null,null,null,null,{"$f":"LEN(C16)","v":0},"z",90]
["NIP ",null,null,null,null,null,null,null,null,null,null,null,null,null,null,null,null,null,null,null,null,null,null,null,null,null,{"$f":"LEN(C17)","v":0},"z",90]
["2. ","TYTUŁ ZADANIA "]
[null,null,null,null,null,null,null,null,null,null,null,null,null,null,null,null,null,null,null,null,null,null,null,null,null,null,{"$f":"LEN(A19)","v":0},"z",300]
["3. \n","LOKALIZACJA ZADANIA (kategoria, numer i lokalizacja drogi, na której znajduje się realizowane zadanie)"]
["L.p.","KATEGORIA",null,null,"NR DROGI",null,null,"POWIAT ",null,null,null,"GMINA",null,null,null,null,null,null,"MIEJSCOWOŚĆ"]
[1]
["4. ","PRZEWIDYWANY OKRES REALIZACJI ZADANIA (rozpoczęcie i zakończenie realizacji zadania)"]
["Zadanie ",null,null,{"$f":"IF(AND(R24=\"\",R25=\"\",W25=\"\"),\"\",IFERROR(IF(AF24<12,\"JEDNOROCZNE\",\"WIELOLETNIE\"),\"nie wybrano lub błędnie wybrano daty realizacji zadania\"))","v":""},null,null,null,null,null,null,null,null,"realizowane ",null,null,null,"od ",null,null,null,null,null,2024,null,null,null,null,null,null,{"$f":"IF(R24=\"stycznia\",1,IF(R24=\"lutego\",2,IF(R24=\"marca\",3,IF(R24=\"kwietnia\",4,IF(R24=\"maja\",5,IF(R24=\"czerwca\",6,IF(R24=\"lipca\",7,IF(R24=\"sierpnia\",8,IF(R24=\"września\",9,IF(R24=\"października\",10,IF(R24=\"listopada\",11,IF(R24=\"grudnia\",12,\"\"))))))))))))","v":""},{"$f":"DATE(W24,AD24,1)","v":{"$error":"#VALUE!"}},{"$f":"DATEDIF(AE24,AE25,\"m\")","v":{"$error":"#VALUE!"}}]
[null,null,null,null,null,null,null,null,null,null,null,null,null,null,null,null,"do ",null,null,null,null,null,null,null,null,null,null,null,null,{"$f":"IF(R25=\"stycznia\",1,IF(R25=\"lutego\",2,IF(R25=\"marca\",3,IF(R25=\"kwietnia\",4,IF(R25=\"maja\",5,IF(R25=\"czerwca\",6,IF(R25=\"lipca\",7,IF(R25=\"sierpnia\",8,IF(R25=\"września\",9,IF(R25=\"października\",10,IF(R25=\"listopada\",11,IF(R25=\"grudnia\",12,\"\"))))))))))))","v":""},{"$f":"DATE(W25,AD25,1)","v":{"$error":"#VALUE!"}},{"$f":"IFERROR(IF(AF24>0,\"OK\",\"BŁĄD\"),\"liczba\")","v":"liczba"}]
["5. ","DŁUGOŚĆ ODCINKÓW DRÓG OBJĘTYCH ZADANIEM, WG RODZAJU ROBÓT BUDOWLANYCH [km]"]
[null,null,null,null,null,null,null,null,null,null,null,null,"REMONT",null,null,null,null,null,"ŁĄCZNIE"]
[null,null,null,null,null,null,null,null,null,null,null,null,null,null,null,null,null,"km",{"$f":"IF(M28=\"\",\"\",M28)","v":""},null,null,null,null,null,null,"km"]
["6. ","PRZEWIDYWANY HARMONOGRAM RZECZOWO-FINANSOWY REALIZACJI ZADANIA (brutto)"]
["Lp.","ELEMENTY I RODZAJE ROBÓT",null,null,null,null,null,null,null,null,"KOSZT KWALIFIKOWALNY\n [zł]",null,null,null,null,null,null,null,"KOSZT NIEKWALIFIKOWALNY\n [zł]"]
["1.","Roboty budowlane"]
["2.","Nadzór inwestorski (wszystkie branże)"]
["3.","Tablice informacyjne"]
["4.","Dodatkowy obowiązek informacyjny\n(jeśli dotyczy)"]
["SUMA ",null,null,null,null,null,null,null,null,null,{"$f":"SUM(K31:R34)","v":0},null,null,null,null,null,null,null,{"$f":"SUM(S31:Z34)","v":0}]
["OGÓŁEM ",null,null,null,null,null,null,null,null,null,{"$f":"SUM(K35,S35)","v":0}]
["7. ","PRZEWIDYWANE KOSZTY REALIZACJI ZADANIA BRUTTO - WYDATKI KWALIFIKOWALNE [zł]"]
["A.","ŁĄCZNY KOSZT REALIZACJI ZADANIA [zł]",null,null,null,null,null,null,null,null,null,null,null,null,null,null,null,null,null,null,{"$f":"IF(K35=0,\"\",K35)","v":""}]
[null,"SŁOWNIE :",null,null,{"$f":"IF(OR(U38=0,U38=\"\"),\"\",Slownie(U38))","v":""}]
["B.","KWOTA WNIOSKOWANEGO DOFINANSOWANIA [zł]",null,null,null,null,null,null,null,null,null,null,null,null,null,null,null,null,null,null,{"$f":"IF(OR(U38=\"\",U44=\"\"),\"\",FLOOR((U38*U44),1))","v":""}]
[null,"SŁOWNIE :",null,null,{"$f":"IF(OR(U40=0,U40=\"\"),\" \",Slownie(U40))","v":" "}]
["C.","KWOTA WKŁADU WŁASNEGO [zł]",null,null,null,null,null,null,null,null,null,null,null,null,null,null,null,null,null,null,{"$f":"IF(OR(U38=\"\",U44=\"\"),\"\",U38-U40)","v":""}]
[null,"SŁOWNIE :",null,null,{"$f":"IF(OR(U42=0,U42=\"\"),\" \",Slownie(U42))","v":" "}]
["D.","UDZIAŁ DOFINANSOWANIA W KOSZTACH KWALIFIKOWALNYCH ZADANIA [%]",null,null,null,null,null,null,null,null,null,null,null,null,null,null,null,null,null,null,{"$f":"IFERROR(VLOOKUP(CONCATENATE(R11&R12),DANE!$B$70:$K$184,10,FALSE),\"\")","v":""}]
["8. ","PRZEWIDYWANY TERMIN DOKONYWANIA WYPŁAT NA RZECZ WYKONAWCY ZADANIA"]
["KWOTA DO WYPŁATY W DANYM ROKU NA RZECZ WYKONAWCY ZADANIA "]
["ROK",null,null,"KWALIFIKOWALNE",null,null,null,null,null,null,null,null,null,"NIEKWALIFIKOWALNE",null,null,null,null,null,null,"OGÓŁEM"]
[null,null,null,"DOFINANSOWANIE",null,null,null,null,"ŚRODKI WŁASNE"]
[2024,null,null,null,null,null,null,null,null,null,null,null,null,null,null,null,null,null,null,null,{"$f":"IF(AND(D49=\"\",I49=\"\",N49=\"\"),\"\",SUM(D49:T49))","v":""}]
[2025,null,null,null,null,null,null,null,null,null,null,null,null,null,null,null,null,null,null,null,""]
[2026,null,null,null,null,null,null,null,null,null,null,null,null,null,null,null,null,null,null,null,""]
[2027,null,null,null,null,null,null,null,null,null,null,null,null,null,null,null,null,null,null,null,""]
[2028,null,null,null,null,null,null,null,null,null,null,null,null,null,null,null,null,null,null,null,""]
[2029,null,null,null,null,null,null,null,null,null,null,null,null,null,null,null,null,null,null,null,""]
[2030,null,null,null,null,null,null,null,null,null,null,null,null,null,null,null,null,null,null,null,""]
["SUMA",null,null,{"$f":"SUM(D49:H55)","v":0},null,null,null,null,{"$f":"SUM(I49:M55)","v":0},null,null,null,null,null,null,null,null,null,null,null,null,null,null,null,null,null,null,null,null,{"$f":"IF(U40=\"\",\"ok\",IF(D56<>U40,\"błąd\",\"ok\"))","v":"ok"},{"$f":"IF(U42=\"\",\"ok\",IF(I56<>U42,\"błąd\",\"ok\"))","v":"ok"}]
["ŁĄCZNIE",null,null,{"$f":"D56+I56","v":0},null,null,null,null,null,null,null,null,null,{"$f":"SUM(N49:T55)","v":0},null,null,null,null,null,null,{"$f":"SUM(U49:Z55)","v":0},null,null,null,null,null,null,null,null,{"$f":"IF(U38=\"\",\"ok\",IF(D57<>U38,\"błąd\",\"ok\"))","v":"ok"},{"$f":"IF(N57<>S35,\"błąd\",\"ok\")","v":"ok"},{"$f":"IF(U57<>K36,\"błąd\",\"ok\")","v":"ok"}]
["9.\n","INFORMACJA O DOPEŁNIENIU WYMOGÓW, JAKIE W ZWIĄZKU Z PLANOWANĄ REALIZACJĄ ZADANIA WYNIKAJĄ Z OBOWIĄZUJĄCYCH PRZEPISÓW PRAWA"]
[null,"Rodzaj dokumentu",null,null,null,null,null,null,null,null,null,null,"nr dokumentu / \nznak dokumentu \n(jeśli dotyczy)",null,null,null,null,null,null,null,"data dokumentu (wydania, zatwierdzenia lub opracowania) \nw formacie: dd.mm.rrrr"]
["1.","Zgłoszenie robót budowlanych z potwierdzeniem/poświadczeniem o braku sprzeciwu"]
["2.","Opracowanie do zgłoszenia robót budowlanych"]
["3.","Kosztorys inwestorski"]
["4.","Zatwierdzony projekt stałej organizacji ruchu lub pismo organu uprawnionego do zatwierdzenia organizacji ruchu"]
["10.\n ","OPIS ZADANIA OBEJMUJĄCY STAN ISTNIEJĄCY ORAZ PROJEKTOWANY WRAZ Z UZASADNIENIEM REALIZACJI ZADANIA"]
[null,null,null,null,null,null,null,null,"stan istniejący",null,null,null,null,null,null,null,null,"stan projektowany"]
[null,"kategoria drogi ",null,null,null,null,null,null,{"$f":"IF(B22=\"\",\"\",B22)","v":""}]
[null,"numer drogi ",null,null,null,null,null,null,{"$f":"IF(E22=\"\",\"\",E22)","v":""}]
[null,"klasa drogi "]
[null,"rodzaj robót budowlanych ",null,null,null,null,null,null,{"$f":"IF(OR(I66<>\"\",I67<>\"\"),\"remont\",\"\")","v":""}]
[null,"realizowany kilometraż "]
[null,"realizowana długość odcinka ",null,null,null,null,null,null,null,null,null,null,null,null,null,null,null,null,null,null,null,null,null,null,null,"km"]
[null,"przekrój jezdni"]
[null,"szerokość pasa ruchu ",null,null,null,null,null,null,null,null,null,null,null,null,null,null,"m"]
[null,"zgoda na odstępstwo "]
[null,"droga dla pieszych\n(strona prawa)",null,null,null,null,null,null,"dł.",null,null,"m","szer.",null,null,null,"m"]
[null,"droga dla pieszych\n(strona lewa)",null,null,null,null,null,null,"dł.",null,null,"m","szer.",null,null,null,"m"]
[null,"łączna długość \ndrogi dla pieszych",null,null,null,null,null,null,"dł.",{"$f":"IF(AND(J75=\"\",J76=\"\"),\"\",SUM(J75:K76))","v":""},null,"m"]
[null,"droga dla pieszych i rowerów\n(strona prawa)",null,null,null,null,null,null,"dł.",null,null,"m","szer.",null,null,null,"m"]
[null,"droga dla pieszych i rowerów\n(strona lewa)",null,null,null,null,null,null,"dł.",null,null,"m","szer.",null,null,null,"m"]
[null,"łączna długość \ndrogi dla pieszych i rowerów",null,null,null,null,null,null,"dł.",{"$f":"IF(AND(J78=\"\",J79=\"\"),\"\",SUM(J78:K79))","v":""},null,"m"]
[null,"droga dla rowerów\n(strona prawa)",null,null,null,null,null,null,"dł.",null,null,"m","szer.",null,null,null,"m"]
[null,"droga dla pieszych\n(strona lewa)",null,null,null,null,null,null,"dł.",null,null,"m","szer.",null,null,null,"m"]
[null,"łączna długość \ndrogi dla rowerów",null,null,null,null,null,null,"dł.",{"$f":"IF(AND(J81=\"\",J82=\"\"),\"\",SUM(J81:K82))","v":""},null,"m"]
[null,"stan istniejący",null,null,null,null,null,null,null,null,null,null,null,null,null,null,null,null,null,null,null,null,null,null,null,null,{"$f":"LEN(F84)","v":0},"z",400]
[null,"stan projektowany",null,null,null,null,null,null,null,null,null,null,null,null,null,null,null,null,null,null,null,null,null,null,null,null,{"$f":"LEN(F85)","v":0},"z",400]
[null,"uzasadnienie",null,null,null,null,null,null,null,null,null,null,null,null,null,null,null,null,null,null,null,null,null,null,null,null,{"$f":"LEN(F86)","v":0},"z",400]
["11. ","CHARAKTERYSTYKA ZADANIA WEDŁUG KRYTERIÓW OCENY MERYTORYCZNEJ"]
[null,"Kryterium nr 1",null,null,null,"-","Wpływ zadania na poprawę bezpieczeństwa ruchu drogowego "]
["A. ","Ryzyko społeczne wypadków.\nOdcinek zlokalizowany jest na drodze publicznej przebiegającej przez powiat (w przypadku drogi powaitowej) lub gminę (w przypadku drogi gminnej) o dużym poziomie ryzyka społecznego:"]
[null,"•","wypadki drogowe ogółem",null,null,null,null,null,null,null,null,null,null,null,null,null,null,null,null,null,null,null,null,null,{"$f":"IF($R$10=\"\",\"\",IF($R$10=\"powiat\",VLOOKUP($R$11,DANE!$D$336:$M$348,8,0),VLOOKUP($R$12,DANE!$F$356:$M$456,6,0)))","v":""}]
[null,"•","wypadki drogowe z udziałem pieszych",null,null,null,null,null,null,null,null,null,null,null,null,null,null,null,null,null,null,null,null,null,{"$f":"IF($R$10=\"\",\"\",IF($R$10=\"powiat\",VLOOKUP($R$11,DANE!$D$336:$M$348,9,0),VLOOKUP($R$12,DANE!$F$356:$M$456,7,0)))","v":""}]
[null,"•","ofiary śmiertelne",null,null,null,null,null,null,null,null,null,null,null,null,null,null,null,null,null,null,null,null,null,{"$f":"IF($R$10=\"\",\"\",IF($R$10=\"powiat\",VLOOKUP($R$11,DANE!$D$336:$M$348,10,0),VLOOKUP($R$12,DANE!$F$356:$M$456,8,0)))","v":""}]
["B.\n\n","Realizacja projektu obejmuje co najmniej jedno zgłoszenie określone w Programie Likwidacji Miejsc Niebezpiecznych na Drogach Lokalnych w województwie świętokrzyskim 2019 - 2023 Bezpieczni na 5+"]
[null,"•","Pozycja, pod którą zgłoszenie znajduje się w Programie Bezpieczni na 5+"]
["C. ","Rozwiązania zwiększające bezpieczeństwo uczestników ruchu drogowego (spełniające wymogi Wytycznych projektowania infrastruktury dla pieszych WR-D-41-3, WR-D-41-4 oraz Wytycznych projektowania infrastruktury dla rowerów WR-D-42-1, WR-D-42-2, WR-D-42-3)"]
[null,"ROZWIAZANIA DODATKOWE/SPECJALNE"]
[null,"1)","przejścia dla pieszych lub/i przejazdy dla rowerzystów o podwyższonym standardzie bezpieczeństwa, \nw tym:"]
[null,null,"•","oświetlenie przejścia dla pieszych lub/i przejazdu dla rowerzystów"]
[null,null,"•","przejście dla pieszych lub/i przejazd dla rowerzystów z wyspą dzieląca (tzw. azylem)"]
[null,null,"•","wyniesione przejście dla pieszych lub/i przejazd dla rowerzystów"]
[null,null,"•","sygnalizacja świetlna na przejściu dla pieszych lub/i na przejeździe dla rowerzystów"]
[null,null,"•","oznakowanie aktywne lub sygnalizacja ostrzegawcza na przejściu dla pieszych lub/i na przejeździe dla rowerzystów"]
[null,"2)","inne rozwiązania w zakresie bezpieczeństwa niezwiązane z przejściem dla pieszych lub/i przejazdem dla rowerzystów:"]
[null,null,"•","wyniesione skrzyżowanie"]
[null,null,"•","wyspa dzieląca na jezdni wraz z odgięciem toru jazdy na wjeździe do miejscowości "]
[null,null,"•","radar ze znakiem/tablicą zmiennej treści (aktywną), informującym o prędkości ruchu pojazdu"]
[null,null,"•","oznakowanie aktywne na dojeździe do przejazdu kolejowo-drogowego "]
[null,"Kryterium nr 2",null,null,null,"-","Znaczenie zadania dla rozwoju spójnej sieci dróg publicznych "]
["A.\n ","Odcinek drogi ma bezpośrednie połączenie z drogą wyższego rzędu lub stanowi kontynuację realizacji drogi w ramach wcześniej zawartych umów o dofinansowanie z RFRD"]
[null,null,"bezpośrednie połączenie z drogą wyższego rzędu",null,null,null,null,null,null,null,null,null,null,null,null,null,null,null,null,null,null,null,null,null,null,null,{"$f":"LEN(N110)","v":0},"z",60]
[null,null,"kontynuacja drogi w ramach wcześniejszych umów dofinansowania z RFRD",null,null,null,null,null,null,null,null,null,null,null,null,null,null,null,null,null,null,null,null,null,null,null,0,"z",90]
["B. \n","Odcinek drogi biegnie przez gminę, dla której wskaźnik peryferyjności czasowej jest mniejszy niż 30 min., mieści się w przedziale 30 do 50 minut, jest większy niż 50 min."]
[null,"wskaźnik peryferyjności czasowej:",null,null,null,null,null,null,null,null,null,null,null,{"$f":"IF(L22=\"\",\"\",VLOOKUP(L22,DANE!$E$83:$O$184,11,0))","v":""}]
["C. \n","Przewidywane znaczenie wnioskowanego odcinka drogi dla rozwoju społeczno - gospodarczego województwa"]
[null,null,null,null,null,null,null,null,null,null,null,null,null,null,null,null,null,null,null,null,null,null,null,null,null,null,{"$f":"LEN(A115)","v":0},"z",400]
["D. ","Odcinek jest częścią drogi, która stanowi zamknięcie spójnego ciągu komunikacyjnego"]
[null,null,null,null,null,null,null,null,null,null,null,null,null,null,null,null,null,null,null,null,null,null,null,null,null,null,{"$f":"LEN(E117)","v":0},"z",250]
["E.\n ","Odcinek drogi został uszkodzony  w wyniku działania niekorzystnych zjawisk atmosferycznych w ciągu 4 lat przed datą złożenia wniosku o dofinansowanie i jest ujęty w protokole strat potwierdzonym przez Wojewodę Świętokrzyskiego"]
[null,null,"uszkodzona w wyniku działania niekorzystnych zjawisk atmosferycznych ",null,null,null,null,null,null,null,null,null,null,null,null,null,null,null,null,null,null,null,null,null,null,null,{"$f":"LEN(P119)","v":0},"z",60]
[null,null,"i ujęta w protokole strat potwierdzonym przez Wojewodę Świętokrzyskiego",null,null,null,null,null,null,null,null,null,null,null,null,null,null,null,null,null,null,null,null,null,null,null,0,"z",60]
[null,"Kryterium nr 3\n",null,null,null,"-","Podnoszenie standardów technicznych dróg oraz zachowanie ich jednorodności pod względem spełniania tych standardów"]
["A. ","Remont skrzyżowań:"]
[null,"•","zwykłych z drogami publicznymi",null,null,null,null,null,null,null,null,null,null,null,null,null,null,null,null,null,null,null,null,null,null,"szt."]
[null,"•","skanalizowanych",null,null,null,null,null,null,null,null,null,null,null,null,null,null,null,null,null,null,null,null,null,null,"szt."]
[null,"•","w formie ronda",null,null,null,null,null,null,null,null,null,null,null,null,null,null,null,null,null,null,null,null,null,null,"szt."]
[null,"•","innych podnoszących poziom bezpieczeństwa np. z sygnalizacją świetlną ",null,null,null,null,null,null,null,null,null,null,null,null,null,null,null,null,null,null,null,null,null,null,"szt."]
["B. ","Remont drogowych obiektów inżynierskich:"]
[null,"•","mostów",null,null,null,null,null,null,null,null,null,null,null,null,null,null,null,null,null,null,null,null,null,null,"szt."]
[null,"•","wiaduktów",null,null,null,null,null,null,null,null,null,null,null,null,null,null,null,null,null,null,null,null,null,null,"szt."]
[null,"•","estakad",null,null,null,null,null,null,null,null,null,null,null,null,null,null,null,null,null,null,null,null,null,null,"szt."]
[null,"•","kładek dla pieszych",null,null,null,null,null,null,null,null,null,null,null,null,null,null,null,null,null,null,null,null,null,null,"szt."]
[null,"•","przepustów pod koroną drogi",null,null,null,null,null,null,null,null,null,null,null,null,null,null,null,null,null,null,null,null,null,null,"szt."]
[null,"•","konstrukcji oporowej",null,null,null,null,null,null,null,null,null,null,null,null,null,null,null,null,null,null,null,null,null,null,"szt."]
["C.","Rodzaj robót budowlanych realizowanych w ramach wnioskowanego zadania:"]
[null,"•","remont drogi dla pieszych lub drogi dla rowerów"]
[null,"•","remont drogi dla pieszych i rowerów"]
[null,"•","wymiana oświetlenia ulicznego"]
[null,"Kryterium nr 4",null,null,null,"-","Zwiększenie dostępności transportowej jednostek administracyjnych"]
["A.\n","Odcinek przebiega w całości lub w części na obszarze wiejskim (wykracza poza granice administracyjne miasta)"]
[null,null,null,null,null,null,"przebiega",null,null,null,null,null,{"$f":"IF(AND(E140=\"TAK\",J140<>\"\"),\"na obszarze wiejskim\",\"\")","v":""}]
["B.\n\n","Odcinek drogi przebiega w całości lub w części w granicach administracyjnych miast ujętych w pakiecie dla średnich miast uznanych za zagrożone utratą funkcji społeczno - gospodarczych (na podstawie Analizy Instytutu Geografii i Przestrzennego Zagospodarowania PAN)"]
[null,null,null,null,null,null,"przebiega"]
["C.\n\n\n","Odcinek drogi stanowi bezpośredni/pośredni dojazd do:\n• miejsc zgromadzeń ludności np.: cmentarz, boisko, amfiteatr, obiekty zabytkowe, sakralne; \n• instytucji publicznych lub świadczących usługi publiczne np.: urząd gminy, szkoła, ośrodek zdrowia, ośrodek pomocy społecznej, remiza OSP, świetlica wiejska \n*(dojazd pośredni - położenie powyżej 200 m.b. od drogi, dojazd bezpośredni - położenie do 200 m.b. od drogi)"]
[null,null,null,null,{"$f":"IF(C144=\"TAK\",\"bezpośredni dojazd do:\",\"\")","v":""},null,null,null,null,null,null,null,null,null,null,null,null,null,null,null,null,null,null,null,null,null,{"$f":"LEN(H144)","v":0},"z",250]
[null,null,null,null,{"$f":"IF(C144=\"TAK\",\"pośredni dojazd do:\",\"\")","v":""},null,null,null,null,null,null,null,null,null,null,null,null,null,null,null,null,null,null,null,null,null,{"$f":"LEN(H145)","v":0},"z",250]
["D.\n","Odcinek drogi przyczynia się do poprawy dostępności komunikacyjnej obszarów o niższym poziomie zamożności"]
[null,null,null,null,null,null,null,null,null,null,null,null,null,null,null,null,null,null,null,null,null,null,null,null,null,null,{"$f":"LEN(E147)","v":0},"z",300]
["E.\n\n\n\n","Odcinek drogi stanowi dojazd do nieruchomości, na których zostały zrealizowane lub będą realizowane przez gminę lub związek międzygminny inwestycje mieszkaniowe w ramach programów społeczno - gospodarczych m.in.: mieszkania na wynajem, noclegownie, schroniska dla osób bezdomnych, mieszkania chronione, ogrzewalnie i tymczasowe pomieszczenia\n*(dojazd pośredni - położenie powyżej 200 m.b. od drogi, dojazd bezpośredni - położenie do 200 m.b. od drogi)"]
[null,null,null,null,{"$f":"IF(C149=\"TAK\",\"bezpośredni dojazd do:\",\"\")","v":""},null,null,null,null,null,null,null,null,null,null,null,null,null,null,null,null,null,null,null,null,null,{"$f":"LEN(H149)","v":0},"z",250]
[null,null,null,null,{"$f":"IF(C149=\"TAK\",\"pośredni dojazd do:\",\"\")","v":""},null,null,null,null,null,null,null,null,null,null,null,null,null,null,null,null,null,null,null,null,null,{"$f":"LEN(H150)","v":0},"z",250]
["F.\n","Odcinek drogi prowadzi do obiektu użyteczności publicznej objętego dofinansowaniem z programu Maluch+, Senior+, Rządowego Funduszu Inwestycji Lokalnych"]
[null,null,null,null,null,null,null,null,null,null,null,null,null,null,null,null,null,null,null,null,null,null,null,null,null,null,{"$f":"LEN(E152)","v":0},"z",250]
["G.\n\n","Bezpośrednio w ciągu drogi objętej zadaniem przebiega linia autobusowa objęta wsparciem z Funduszu Rozwoju Przewozów Autobusowych, realizowane są usługi transportu publicznego, uchwalono planowany przebieg linii użyteczności publicznej"]
[null,null,null,null,null,null,null,null,null,null,null,null,null,null,null,null,null,null,null,null,null,null,null,null,null,null,{"$f":"LEN(E154)","v":0},"z",250]
[null,"Kryterium nr 5",null,null,null,"-","Poprawa dostępności do terenów gospodarczych i inwestycyjnych"]
["A.\n\n","Odcinek drogi zapewnia bezpośredni/pośredni dojazd do lokalnych ośrodków gospodarczych np. do strefy ekonomicznej, podmiotów gospodarczych, lokalnego targowiska \n*(dojazd pośredni - położenie powyżej 200 m.b. od drogi, dojazd bezpośredni - położenie do 200 m.b. od drogi)"]
[null,null,null,null,{"$f":"IF(C157=\"TAK\",\"bezpośredni dojazd do:\",\"\")","v":""},null,null,null,null,null,null,null,null,null,null,null,null,null,null,null,null,null,null,null,null,null,{"$f":"LEN(H157)","v":0},"z",250]
[null,null,null,null,{"$f":"IF(C157=\"TAK\",\"pośredni dojazd do:\",\"\")","v":""},null,null,null,null,null,null,null,null,null,null,null,null,null,null,null,null,null,null,null,null,null,0,"z",250]
["B.\n\n\n","Odcinek drogi umożliwia bezpośredni/pośredni dojazd do terenów inwestycyjnych, rozumianych jako tereny przeznaczone w studium uwarunkowań przestrzennych, miejscowym planie zagospodarowania lub w decyzji lokalizacyjnej pod działalność gospodarczą \n*(dojazd pośredni - położenie powyżej 200 m.b. od drogi, dojazd bezpośredni - położenie do 200 m.b. od drogi)"]
[null,null,null,null,{"$f":"IF(C160=\"TAK\",\"bezpośredni dojazd do:\",\"\")","v":""},null,null,null,null,null,null,null,null,null,null,null,null,null,null,null,null,null,null,null,null,null,{"$f":"LEN(H160)","v":0},"z",250]
[null,null,null,null,{"$f":"IF(C160=\"TAK\",\"pośredni dojazd do:\",\"\")","v":""},null,null,null,null,null,null,null,null,null,null,null,null,null,null,null,null,null,null,null,null,null,0,"z",250]
["C.\n\n\n","Odcinek drogi zapewnia bezpośredni/pośredni dojazd do terenów, na których jest prowadzona produkcja rolna, sadownictwo, ogrodnictwo lub/i zlokalizowane są gospodarstwa agroturystyczne ważne ze względu na specyfikę obszaru \n*(dojazd pośredni - położenie powyżej 200 m.b. od drogi, dojazd bezpośredni - położenie do 200 m.b. od drogi)"]
[null,null,null,null,{"$f":"IF(C163=\"TAK\",\"bezpośredni dojazd do:\",\"\")","v":""},null,null,null,null,null,null,null,null,null,null,null,null,null,null,null,null,null,null,null,null,null,{"$f":"LEN(H163)","v":0},"z",250]
[null,null,null,null,{"$f":"IF(C163=\"TAK\",\"pośredni dojazd do:\",\"\")","v":""},null,null,null,null,null,null,null,null,null,null,null,null,null,null,null,null,null,null,null,null,null,0,"z",250]
["12. ","OSOBY UPOWAŻNIONE DO UDZIELANIA WYJAŚNIEŃ KOMISJI"]
["Lp.","imię i nazwisko",null,null,null,null,null,null,"stanowisko służbowe",null,null,null,null,null,"nr telefonu",null,null,null,null,"e-mail"]
[1]
[2]
["13. ","ZŁĄCZNIKI"]
["1)","Do wniosku dołączone zostały załączniki:   "]
[null,"a)","kopia zgłoszenia robót budowlanych z poświadczeniem o braku podstaw do wniesienia sprzeciwu na zgłoszenie wykonania robót budowlanych potwierdzone:\n - zaświadczeniem organu administracji architektoniczno-budowlanej \n   lub \n - pieczęcią organu administracji architektoniczno-budowlanej \ndotyczy robót realizowanych na podstawie zgłoszenia (obligatoryjnie)"]
[null,"b)","zgodna ze stanem faktycznym, czytelna mapa poglądowa z naniesioną skalą i z zaznaczonym miejscem/odcinkiem realizacji wnioskowanego zadania oraz elementami mającymi wpływ na ocenę merytoryczną wniosku - dotyczy kryterium nr 4 i nr 5 (obligatoryjnie),"]
[null,"c)","kopia strony projektu stałej organizacji ruchu, z której wynika, że projekt jest zatwierdzony (obligatoryjnie) \n"]
[null,null,"lub \npismo organu uprawnionego do zatwierdzenia organizacji ruchu (obligatoryjnie),"]
[null,"d)","kopia kosztorysu inwestorskiego (obligatoryjnie)"]
[null,"e)","informacja dotycząca komplementarności zadania z programami rządowymi z podaniem nazwy programu, numeru i daty umowy z Wojewodą lub umowy/umów wynikających z programów społeczno - gospodarczych - dotyczy kryterium nr 4 (jeśli dotyczy), "]
[null,"f)","dodatkowe załączniki (jeśli dotyczy),"]
[null,null,null,null,null,null,null,null,null,null,null,null,null,null,null,null,null,null,null,null,null,null,null,null,null,null,{"$f":"LEN(C178)","v":0},"z",250]
["14. ","OŚWIADCZENIE I ZOBOWIĄZANIE WNIOSKODAWCY (ustawowego zarządcy drogi)"]
["Wnioskodawca zobowiązuję się do: "]
["•  ","przeprowadzenia postępowania o zamówienie publiczne zgodnie z obowiązującymi przepisami Prawa zamówień publicznych,   "]
[]
["Wnioskodawca oświadcza, że: "]
["1)","do wniosku dołączone zostały załączniki wskazane w punkcie 13 wniosku;"]
["2)","dane i informacje zawarte we wniosku są prawidłowe i kompletne;"]
["3)","na dzień złożenia wniosku, zadanie obejmuje inwestycję wyłącznie na drodze dla której wnioskodawca pełni rolę ustawowego zarządcy i która:\n publicznej, :"]
[null,"•","została zaliczona do kategorii dróg publicznych"]
["4)","zapewnione zostanie zabezpieczenie całości zadeklarowanego we wniosku wkładu własnego;"]
["5)","dopełnił bądź dopełni wszelkich wymogów wynikających z przepisów prawa uprawniających do realizacji zadania;"]
[]
["OŚWIADCZENIA:"]
["OŚWIADCZENIE O PRZEKAZANIU DANYCH O SIECI DRÓG PUBLICZNYCH (obligatoryjnie)"]
[null,"Wnioskodawca oświadcza, że zgodnie z zapisami § 2.2 rozporządzenia Ministra Infrastruktury z dnia 16 lutego 2005 r. w sprawie trybu sporządzania informacji oraz gromadzenia i udostępniania danych o sieci dróg publicznych, obiektach mostowych, tunelach oraz promach (Dz.U. 2005 nr 67 poz. 583) sporządzono oraz przekazano do Generalnego Dyrektora Dróg Krajowych i Autostrad informacje dla celów statystycznych o sieci dróg publicznych. "]
[]
["OŚWIADCZENIE O POSIADANIU TYTUŁU PRAWNEGO DO NIERUCHOMOŚCI (obligatoryjnie)"]
[null,"Wnioskodawca oświadcza, że posiada tytuł prawny do nieruchomości wskazanych w oświadczeniu o dysponowaniu nieruchomością na cele budowlane zgodnie z art. 3 Prawa budowlanego, tj. tytuł prawny wynikający z prawa własności, użytkowania wieczystego, zarządu, ograniczonego prawa rzeczowego albo stosunku zobowiązaniowego, przewidującego uprawnienia do wykonywania robót budowlanych, ponadto tytuł ten nie wynika z posiadania samoistnego/władania lub z mocy prawa na podst. art. 73 ustawy z dnia 13 października 1998 r. Przepisy wprowadzające ustawy reformujące administrację publiczną (dotyczy sytuacji gdy jst nie posiada decyzji potwierdzającej ten fakt)"]
[]
["OŚWIADCZENIE O ZGODNOŚCI Z PRZEPISAMI PRAWA I WYTYCZNYMI (obligatoryjnie)"]
[null,"Wnioskodawca oświadcza, że realizacja zgłoszonego zadania odbędzie się z zachowaniem przepisów prawa budowlanego, w tym warunków techniczno-budowlanych dotyczących dróg, spełnienia parametrów technicznych wynikających z wytycznych projektowania infrastruktury dla pieszych oraz rowerów, odpowiedniego oznakowania i zastosowania urządzeń bezpieczeństwa i organizacji ruchu, w szczególności z:"]
[null,"•  ","ustawą z dnia 7 lipca 1994 r. prawo budowlane (tj. Dz.U. z 2021 r. poz. 2351 z późn. zm.);"]
[null,"•  ","rozporządzeniem Ministra Infrastruktury z dnia 24 czerwca 2022 r. w sprawie przepisów techniczno-budowlanych dotyczących dróg publicznych (tj. Dz. U. z 2022 r. poz. 1518);\nlub\nrozporządzeniem Ministra Transportu i Gospodarki Morskiej z dnia 2 marca 1999 r. w sprawie warunków technicznych, jakim powinny odpowiadać drogi publiczne i ich usytuowanie - w przypadku, gdy zgłoszenie/pozwolenie jest sprzed 2022 roku\n"]
[null,"•  ","ustawą z dnia 21 marca 1985 r. o drogach publicznych (tj. Dz. U. z 2022 r. poz. 1693 z późn. Zm.);"]
[null,"•  ","wytycznymi projektowania infrastruktury dla pieszych. Część 3: Projektowanie przejść dla pieszych \n(WR-D-41-3);"]
[null,"•  ","wytycznymi projektowania infrastruktury dla pieszych. Część 4: Projektowanie oświetlenia przejść dla pieszych (WR-D-41-4);"]
[null,"•  ","wytycznymi projektowania infrastruktury dla rowerów. Część 1: Planowanie tras dla rowerów \n(WR-D-42-1);"]
[null,"•  ","wytycznymi projektowania infrastruktury dla rowerów. Część 2: Projektowanie dróg dla\nrowerów, dróg dla pieszych i rowerów oraz pasów i kontrapasów ruchu dla rowerów (WR-D-42-2);"]
[null,"•  ","wytycznymi projektowania infrastruktury dla rowerów. Część 3: Projektowanie przejazdów dla\nrowerów oraz infrastruktury dla rowerów na skrzyżowaniach i węzłach (WR-D-42-3)."]
[]
["OŚWIADCZENIE O DZIAŁANIACH INFORMACYJNYCH (obligatoryjnie)"]
[null,"Wnioskodawca oświadcza, że realizując zgłoszone zadanie dopełni działań informacyjnych wynikających z art. 38 ustawy z dnia 23 października 2018 r. o Rządowym Funduszu Rozwoju Dróg (Dz.U. z 2023 r. poz. 747 z późn. zm.)"]
[]
["OŚWIADCZENIE O ODPOWIEDZIALNOŚCI KARNEJ (obligatoryjnie)"]
[null,"Ja, niżej podpisana/y, oświadczam, że informacje zawarte we wniosku oraz przedłożonych załącznikach są zgodne z prawdą. Jestem świadomy odpowiedzialności karnej wynikającej z art. 271 Kodeksu Karnego, dotyczącego poświadczenia nieprawdy, co do okoliczności mającej znaczenie prawne."]
[]
["Podpisy i pieczątki osób upoważnionych z ramienia wnioskodawcy (wraz z podpisem Skarbnika/Głównego Księgowego) - ustawowy zarządca drogi"]

{"sheet":"DANE","index":2,"n_rows":460,"n_cols":16,"rows_kept":460,"cut":false,"hidden":true,"merged":[[186,4,188,4],[186,5,188,5],[186,7,186,9],[188,7,188,9],[294,6,294,8],[294,9,294,11],[294,12,294,14],[294,15,297,15],[295,5,297,5],[295,6,295,7],[295,8,297,8],[295,9,295,10],[295,11,297,11],[295,12,295,13],[295,14,297,14],[296,6,297,6],[296,7,297,7],[296,9,297,9],[296,10,297,10],[296,12,297,12],[296,13,297,13]]}
[null,null,"DANE DO WNIOSKU - proszę nic nie zmieniać w tym arkuszu"]
[]
[null,null,"KATEGORIA",null,"Rodzaj","jednoroczne","wieloletnie","Dzień","Miesiąc ","Rok","Kolumna1",null,"ROBOTY","R","BRP"]
[null,"GMINA","gminna","gminnych","jednoroczne",2024,2024,1,"I",2000,2023,null,"REMONT","remont","budowa"]
[null,"POWIAT","powiatowa","powiatowych","wieloletnie",2025,2025,2,"II",2001,2022,null,"BUDOWA / ROZBUDOWA / PRZEBUDOWA",null,"rozbudowa"]
[null,null,"bez kategorii",null,null,null,2026,3,"III",2002,2021,null,null,null,"przebudowa"]
[null,null,"TAK","TAK",null,null,2027,4,"IV",2003,2020]
[null,null,"NIE","NIE",null,null,2028,5,"V",2004,2019]
[null,null,null,"NIE DOTYCZY",null,null,2029,6,"VI",2005,2018,null,null,null,"jednej drogi publicznej odchodzącej od tego skrzyżowania (kontynuacja od skrzyżowania)"]
[null,null,null,null,null,null,2030,7,"VII",2006,2017,null,null,null,"dwóch dróg publicznych odchodzących od tego skrzyżowania (kontynuacja od skrzyżowania)"]
[null,null,null,null,null,null,null,8,"VIII",2007,2016,null,null,null,"trzech dróg publicznych odchodzących od tego skrzyżowania (kontynuacja od skrzyżowania)"]
[null,null,"Klasa drogi",null,"budowa",null,null,9,"IX",2008,2015,null,null,null,"czterech dróg publicznych odchodzących od tego skrzyżowania (kontynuacja od skrzyżowania)"]
[null,null,"D - dojazdowa",null,"rozbudowa",null,null,10,"X",2009,2014]
[null,null,"L - lokalna",null,"przebudowa",null,null,11,"XI",2010,2013]
[null,null,"Z - zbiorcza",null,"remont",null,null,12,"XII",2011,2012]
[null,null,"G - główna",null,null,null,null,13,null,2012,2011]
[null,null,"GP - główna ruchu przyspieszonego",null,"stycznia","styczeń",null,14,null,2013,2010]
[null,null,null,null,"lutego","luty",null,15,null,2014,2009]
[null,null,"Peryferyjność",null,"marca","marzec",null,16,null,2015,2008]
[null,null,"mniejszy niż 30 minut",null,"kwietnia","kwiecień",null,17,null,2016,2007]
[null,null,"w przedziale od 30 do 50 minut",null,"maja","maj",null,18,null,2017,2006]
[null,null,"większy niż 50 minut",null,"czerwca","czerwiec",null,19,null,2018,2005]
[null,null,null,null,"lipca","lipiec",null,20,null,2019,2004]
[null,null,null,null,"sierpnia","sierpień",null,21,null,2020,2003]
[null,null,"w całości",null,"września","wrzesień",null,22,null,2021,2002]
[null,null,"w części",null,"października","październik",null,23,null,2022,2001]
[null,null,null,null,"listopada","listopad",null,24,null,2023,2000]
[null,null,null,null,"grudnia","grudzień",null,25]
[null,null,null,null,null,null,null,26]
[null,null,null,null,null,null,null,27]
[null,null,"bezpośredni dojazd do:",null,null,null,null,28]
[null,null,"pośredni dojazd do:",null,null,null,null,29]
[null,null,"bezpośredni i pośredni dojazd do:",null,null,null,null,30]
[null,null,null,null,null,null,null,31]
[]
[]
[null,"GMINA","POWIAT","Buski","Jędrzejowski","Kazimierski","Kielecki","Konecki","Opatowski","Ostrowiecki","Pińczowski","Sandomierski","Skarżyski","Starachowicki","Staszowski","Włoszczowski"]
[null,"Buski","Buski","Busko-Zdrój","Imielno","Bejsce","Bieliny","Fałków","Baćkowice","Bałtów","Działoszyce","Dwikozy","Bliżyn","Brody","Bogoria","Kluczewsko"]
[null,"Jędrzejowski","Jędrzejowski","Gnojno","Jędrzejów","Czarnocin","Bodzentyn","Gowarczów","Iwaniska","Bodzechów","Kije","Klimontów","Łączna","Mirzec","Łubnice","Krasocin"]
[null,"Kazimierski","Kazimierski","Nowy Korczyn","Małogoszcz","Kazimierza Wielka","Chęciny","Końskie","Lipnik","Ćmielów","Michałów","Koprzywnica","Skarżysko-Kamienna","Pawłów","Oleśnica","Moskorzew"]
[null,"Kielecki","Kielecki","Pacanów","Nagłowice","Opatowiec","Chmielnik","Radoszyce","Opatów","Kunów","Pińczów","Łoniów","Skarżysko-Kościelne","Starachowice","Osiek","Radków"]
[null,"Konecki","Konecki","Solec-Zdrój","Oksa","Skalbmierz","Daleszyce","Ruda Maleniecka","Ożarów","Ostrowiec Świętokrzyski","Złota","Obrazów","Suchedniów","Wąchock","Połaniec","Secemin"]
[null,"Opatowski","Opatowski","Stopnica","Sędziszów",null,"Górno","Słupia Konecka","Sadowie","Waśniów",null,"Samborzec",null,null,"Rytwiany","Włoszczowa"]
[null,"Ostrowiecki","Ostrowiecki","Tuczępy","Słupia Jędrzejowska",null,"Kielce","Smyków","Tarłów",null,null,"Sandomierz",null,null,"Staszów"]
[null,"Pińczowski","Pińczowski","Wiślica","Sobków",null,"Łagów","Stąporków","Wojciechowice",null,null,"Wilczyce",null,null,"Szydłów"]
[null,"Sandomierski","Sandomierski",null,"Wodzisław",null,"Łopuszno",null,null,null,null,"Zawichost"]
[null,"Skarżyski","Skarżyski",null,null,null,"Masłów"]
[null,"Starachowicki","Starachowicki",null,null,null,"Miedziana Góra"]
[null,"Staszowski","Staszowski",null,null,null,"Mniów"]
[null,"Włoszczowski","Włoszczowski",null,null,null,"Morawica"]
[null,null,null,null,null,null,"Nowa Słupia"]
[null,null,null,null,null,null,"Nowiny"]
[null,null,null,null,null,null,"Piekoszów"]
[null,null,null,null,null,null,"Pierzchnica"]
[null,null,null,null,null,null,"Raków"]
[null,null,null,null,null,null,"Strawczyn"]
[null,null,null,null,null,null,"Zagnańsk"]
[]
[]
[]
[]
[]
[]
[]
[]
[]
[]
[null,null,"POWIAT / GMINA",null,null,null,"TERC / TERYT",null,null,null,"%"]
[null,null,null,null,"POWIATY","JST","Teryt","Dochód RAZEM","Dochód na mieszkańca","Dochód art. 14 ","%",null,null,null,"peryferyjność"]
[{"$f":"IF(D70=\"\",_xlfn.CONCAT(\"powiat\",B70),_xlfn.CONCAT(\"gmina\",B70))","v":"powiatbuski"},{"$f":"CONCATENATE(E70&D70)","v":"buski"},"buski26",null,"buski","powiat buski",2601,26527448.859999999,377.48596721404789,1.0140010148759659,0.7]
[{"$f":"IF(D71=\"\",_xlfn.CONCAT(\"powiat\",B71),_xlfn.CONCAT(\"gmina\",B71))","v":"powiatjędrzejowski"},"jędrzejowski","jędrzejowski26",null,"jędrzejowski","powiat jędrzejowski",2602,30304747.239999998,360.6763376258599,0.9688470675970553,0.8]
["powiatkazimierski","kazimierski","kazimierski26",null,"kazimierski","powiat kazimierski",2603,12632130.98,382.75705178317122,1.0281601772470466,0.7]
["powiatkielecki","kielecki","kielecki26",null,"kielecki","powiat kielecki",2604,84572327.859999999,401.42170598342523,1.0782970828413008,0.7]
["powiatkonecki","konecki","konecki26",null,"konecki","powiat konecki",2605,35525321.600000001,455.21939518195796,1.2228081804269806,0.7]
["powiatopatowski","opatowski","opatowski26",null,"opatowski","powiat opatowski",2606,27570873.530000001,542.31738488168537,1.4567703872898941,0.7]
["powiatostrowiecki","ostrowiecki","ostrowiecki26",null,"ostrowiecki","powiat ostrowiecki",2607,41427817.049999997,390.01531759256642,1.047657296441395,0.7]
["powiatpińczowski","pińczowski","pińczowski26",null,"pińczowski","powiat pińczowski",2608,14419486.039999999,379.12094546984275,1.0183928857126798,0.7]
["powiatsandomierski","sandomierski","sandomierski26",null,"sandomierski","powiat sandomierski",2609,24736611.120000001,327.67195358448578,0.88019084771078648,0.8]
["powiatskarżyski","skarżyski","skarżyski26",null,"skarżyski","powiat skarżyski",2610,36163336.399999999,502.5756906998721,1.3500164368565566,0.7]
["powiatstarachowicki","starachowicki","starachowicki26",null,"starachowicki","powiat starachowicki",2611,29351667.399999999,335.60488228770049,0.90150024317087563,0.8]
["powiatstaszowski","staszowski","staszowski26",null,"staszowski","powiat staszowski",2612,24700606.039999999,349.47588449185753,0.93876046350745446,0.8]
["powiatwłoszczowski","włoszczowski","włoszczowski26",null,"włoszczowski","powiat włoszczowski",2613,16639741.800000001,374.64239108409322,1.0063626141615465,0.7]
["gminabuskiBusko-Zdrój",{"$f":"CONCATENATE(D83&E83)","v":"buskiBusko-Zdrój"},"Busko-Zdrój26","buski","Busko-Zdrój","gmina Busko-Zdrój",2601013,63580725.509999998,2007.7912498815801,0.87552396592476556,0.8,"buski",null,null,{"$f":"VLOOKUP($F83,$D$191:$M$292,9,0)","v":"w przedziale od 30 do 50 minut"}]
["gminabuskiGnojno","buskiGnojno","Gnojno26","buski","Gnojno","gmina Gnojno",2601022,8897521.2100000009,2074.497833993938,0.90461225539648726,0.7,"buski",null,null,"w przedziale od 30 do 50 minut"]
["gminabuskiNowy Korczyn","buskiNowy Korczyn","Nowy Korczyn26","buski","Nowy Korczyn","gmina Nowy Korczyn",2601033,12108930,2115.0969432314409,0.92231603467868506,0.7,"buski",null,null,"większy niż 50 minut"]
["gminabuskiPacanów","buskiPacanów","Pacanów26","buski","Pacanów","gmina Pacanów",2601043,14638013.49,2049.2809029819405,0.89361607865282555,0.8,"buski",null,null,"większy niż 50 minut"]
["gminabuskiSolec-Zdrój","buskiSolec-Zdrój","Solec-Zdrój26","buski","Solec-Zdrój","gmina Solec-Zdrój",2601052,10418213.92,2094.5343626859672,0.91334944909869387,0.7,"buski",null,null,"większy niż 50 minut"]
["gminabuskiStopnica","buskiStopnica","Stopnica26","buski","Stopnica","gmina Stopnica",2601063,15268337.92,2037.9522050186865,0.88867604986739435,0.8,"buski",null,null,"w przedziale od 30 do 50 minut"]
["gminabuskiTuczępy","buskiTuczępy","Tuczępy26","buski","Tuczępy","gmina Tuczępy",2601072,8615500.5999999996,2363.0007131102575,1.0304177567998485,0.7,"buski",null,null,"w przedziale od 30 do 50 minut"]
["gminabuskiWiślica","buskiWiślica","Wiślica26","buski","Wiślica","gmina Wiślica",2601083,11040242.559999999,2068.2357736980139,0.90188160106901638,0.7,"buski",null,null,"w przedziale od 30 do 50 minut"]
["gminajędrzejowskiImielno","jędrzejowskiImielno","Imielno26","jędrzejowski","Imielno","gmina Imielno",2602012,8677560.620000001,2045.6295662423388,0.89202386490880647,0.8,"jędrzejowski",null,null,"w przedziale od 30 do 50 minut"]
["gminajędrzejowskiJędrzejów","jędrzejowskiJędrzejów","Jędrzejów26","jędrzejowski","Jędrzejów","gmina Jędrzejów",2602023,53788849,1963.0966788321168,0.85603430627870403,0.8,"jędrzejowski",null,null,"w przedziale od 30 do 50 minut"]
["gminajędrzejowskiMałogoszcz","jędrzejowskiMałogoszcz","Małogoszcz26","jędrzejowski","Małogoszcz","gmina Małogoszcz",2602033,25738618.700000003,2255.9925234464022,0.98375541846838399,0.7,"jędrzejowski",null,null,"w przedziale od 30 do 50 minut"]
["gminajędrzejowskiNagłowice","jędrzejowskiNagłowice","Nagłowice26","jędrzejowski","Nagłowice","gmina Nagłowice",2602042,9964278.4499999993,2056.6106191950462,0.89681229848313904,0.8,"jędrzejowski",null,null,"w przedziale od 30 do 50 minut"]
["gminajędrzejowskiOksa","jędrzejowskiOksa","Oksa26","jędrzejowski","Oksa","gmina Oksa",2602052,9139214,2037.7288740245262,0.88857866342956993,0.8,"jędrzejowski",null,null,"w przedziale od 30 do 50 minut"]
["gminajędrzejowskiSędziszów","jędrzejowskiSędziszów","Sędziszów26","jędrzejowski","Sędziszów","gmina Sędziszów",2602063,25356628.900000002,2080.8000082061385,0.90736040192842382,0.7,"jędrzejowski",null,null,"większy niż 50 minut"]
["gminajędrzejowskiSłupia Jędrzejowska","jędrzejowskiSłupia Jędrzejowska","Słupia Jędrzejowska26","jędrzejowski","Słupia Jędrzejowska","gmina Słupia Jędrzejowska",2602072,8760890.3200000003,2074.5655505564764,0.90464178410042795,0.7,"jędrzejowski",null,null,"większy niż 50 minut"]
["gminajędrzejowskiSobków","jędrzejowskiSobków","Sobków26","jędrzejowski","Sobków","gmina Sobków",2602082,17782214.119999997,2109.8972615092543,0.92004864459855396,0.7,"jędrzejowski",null,null,"mniejszy niż 30 minut"]
["gminajędrzejowskiWodzisław","jędrzejowskiWodzisław","Wodzisław26","jędrzejowski","Wodzisław","gmina Wodzisław",2602093,14324445.239999998,2105.2976543209875,0.9180429249663935,0.7,"jędrzejowski",null,null,"w przedziale od 30 do 50 minut"]
["gminakazimierskiBejsce","kazimierskiBejsce","Bejsce26","kazimierski","Bejsce","gmina Bejsce",2603012,7735098.3599999994,1957.2617307692306,0.85348989989717183,0.8,"kazimierski",null,null,"w przedziale od 30 do 50 minut"]
["gminakazimierskiCzarnocin","kazimierskiCzarnocin","Czarnocin26","kazimierski","Czarnocin","gmina Czarnocin",2603022,7319231.5,1980.84749661705,0.86377478546765818,0.8,"kazimierski",null,null,"większy niż 50 minut"]
["gminakazimierskiKazimierza Wielka","kazimierskiKazimierza Wielka","Kazimierza Wielka26","kazimierski","Kazimierza Wielka","gmina Kazimierza Wielka",2603033,30062052.75,1893.6726141732283,0.82576102342404856,0.8,"kazimierski",null,null,"w przedziale od 30 do 50 minut"]
["gminakazimierskiOpatowiec","kazimierskiOpatowiec","Opatowiec26","kazimierski","Opatowiec","gmina Opatowiec",2603043,6567769.0600000005,2066.6359534298304,0.90118397825287477,0.7,"kazimierski",null,null,"większy niż 50 minut"]
["gminakazimierskiSkalbmierz","kazimierskiSkalbmierz","Skalbmierz26","kazimierski","Skalbmierz","gmina Skalbmierz",2603053,12672744.469999999,2010.5893177851815,0.87674410049205798,0.8,"kazimierski",null,null,"w przedziale od 30 do 50 minut"]
["gminakieleckiBieliny","kieleckiBieliny","Bieliny26","kielecki","Bieliny","gmina Bieliny",2604012,18608181.219999999,1816.8503436828744,0.79226165493390954,0.8,"kielecki",null,null,"w przedziale od 30 do 50 minut"]
["gminakieleckiBodzentyn","kieleckiBodzentyn","Bodzentyn26","kielecki","Bodzentyn","gmina Bodzentyn",2604023,23777222.059999999,2099.1632435772931,0.9153679339167774,0.7,"kielecki",null,null,"w przedziale od 30 do 50 minut"]
["gminakieleckiChęciny","kieleckiChęciny","Chęciny26","kielecki","Chęciny","gmina Chęciny",2604033,29194079.59,1955.0043253197616,0.85250552835359839,0.8,"kielecki",null,null,"mniejszy niż 30 minut"]
["gminakieleckiChmielnik","kieleckiChmielnik","Chmielnik26","kielecki","Chmielnik","gmina Chmielnik",2604043,22865005.800000001,2064.7467762326169,0.90036017751555375,0.7,"kielecki",null,null,"w przedziale od 30 do 50 minut"]
["gminakieleckiDaleszyce","kieleckiDaleszyce","Daleszyce26","kielecki","Daleszyce","gmina Daleszyce",2604053,37218233.740000002,2356.0317617269102,1.0273788532515613,0.7,"kielecki",null,null,"w przedziale od 30 do 50 minut"]
["gminakieleckiGórno","kieleckiGórno","Górno26","kielecki","Górno","gmina Górno",2604062,27147844.700000003,1844.5335439597773,0.80433328105408175,0.8,"kielecki",null,null,"mniejszy niż 30 minut"]
["gminakieleckiKielce","kieleckiKielce","Kielce26","kielecki","Kielce","gmina Kielce",{"$error":"#N/A"},{"$error":"#N/A"},{"$error":"#N/A"},{"$error":"#N/A"},{"$error":"#N/A"},"kielecki",null,null,0]
["gminakieleckiŁagów","kieleckiŁagów","Łagów26","kielecki","Łagów","gmina Łagów",2604073,14851261,2206.7252600297179,0.96227177575434208,0.7,"kielecki",null,null,"w przedziale od 30 do 50 minut"]
["gminakieleckiŁopuszno","kieleckiŁopuszno","Łopuszno26","kielecki","Łopuszno","gmina Łopuszno",2604082,18256657.75,2057.0881971830986,0.89702055268992609,0.8,"kielecki",null,null,"w przedziale od 30 do 50 minut"]
["gminakieleckiMasłów","kieleckiMasłów","Masłów26","kielecki","Masłów","gmina Masłów",2604092,22549586.280000001,2001.2057401490949,0.87265226718668121,0.8,"kielecki",null,null,"mniejszy niż 30 minut"]
["gminakieleckiMiedziana Góra",{"$f":"CONCATENATE(D115&E115)","v":"kieleckiMiedziana Góra"},"Miedziana Góra26","kielecki","Miedziana Góra","gmina Miedziana Góra",2604102,22463608.099999998,1905.3102714164545,0.8308357779954032,0.8,"kielecki",null,null,"mniejszy niż 30 minut"]
["gminakieleckiMniów","kieleckiMniów","Mniów26","kielecki","Mniów","gmina Mniów",2604112,17944258.449999999,1936.7791095520777,0.84455818164128538,0.8,"kielecki",null,null,"w przedziale od 30 do 50 minut"]
["gminakieleckiMorawica","kieleckiMorawica","Morawica26","kielecki","Morawica","gmina Morawica",2604123,40273851.359999999,2356.2983477650364,1.0274951016241818,0.7,"kielecki",null,null,"mniejszy niż 30 minut"]
["gminakieleckiNowa Słupia","kieleckiNowa Słupia","Nowa Słupia26","kielecki","Nowa Słupia","gmina Nowa Słupia",2604133,17293774.66,1874.2575766771431,0.81729483918893286,0.8,"kielecki",null,null,"w przedziale od 30 do 50 minut"]
["gminakieleckiNowiny","kieleckiNowiny","Nowiny26","kielecki","Nowiny","gmina Nowiny",2604172,36911130,4604.681886227545,2.007932521416083,0.7,"kielecki",null,null,"mniejszy niż 30 minut"]
["gminakieleckiPiekoszów","kieleckiPiekoszów","Piekoszów26","kielecki","Piekoszów","gmina Piekoszów",2604142,33187491.919999998,2011.8508680892337,0.8772942162102545,0.8,"kielecki",null,null,"mniejszy niż 30 minut"]
["gminakieleckiPierzchnica","kieleckiPierzchnica","Pierzchnica26","kielecki","Pierzchnica","gmina Pierzchnica",2604153,9747609.0099999998,2119.5061991737334,0.92423874912900494,0.7,"kielecki",null,null,"w przedziale od 30 do 50 minut"]
["gminakieleckiRaków","kieleckiRaków","Raków26","kielecki","Raków","gmina Raków",2604162,11649365.459999999,2133.1927229445155,0.93020693908511987,0.7,"kielecki",null,null,"w przedziale od 30 do 50 minut"]
["gminakieleckiStrawczyn","kieleckiStrawczyn","Strawczyn26","kielecki","Strawczyn","gmina Strawczyn",2604182,21410228.039999999,1943.3809603340292,0.84743700611041217,0.8,"kielecki",null,null,"w przedziale od 30 do 50 minut"]
["gminakieleckiZagnańsk","kieleckiZagnańsk","Zagnańsk26","kielecki","Zagnańsk","gmina Zagnańsk",2604192,24278223.649999999,1903.4279615836926,0.83001497186330353,0.8,"kielecki",null,null,"mniejszy niż 30 minut"]
["gminakoneckiFałków","koneckiFałków","Fałków26","konecki","Fałków","gmina Fałków",2605012,9165752.4600000009,2148.0554159831267,0.93668801322779027,0.7,"konecki",null,null,"w przedziale od 30 do 50 minut"]
["gminakoneckiGowarczów","koneckiGowarczów","Gowarczów26","konecki","Gowarczów","gmina Gowarczów",2605022,9353469.9499999993,2058.8751815980627,0.89779979091109441,0.8,"konecki",null,null,"w przedziale od 30 do 50 minut"]
["gminakoneckiKońskie","koneckiKońskie","Końskie26","konecki","Końskie","gmina Końskie",2605033,69857581.609999999,2028.3261696814843,0.88447848967030906,0.8,"konecki",null,null,"w przedziale od 30 do 50 minut"]
["gminakoneckiRadoszyce","koneckiRadoszyce","Radoszyce26","konecki","Radoszyce","gmina Radoszyce",2605043,17893637.120000001,2069.5856025907938,0.9024702118349992,0.7,"konecki",null,null,"w przedziale od 30 do 50 minut"]
["gminakoneckiRuda Maleniecka","koneckiRuda Maleniecka","Ruda Maleniecka26","konecki","Ruda Maleniecka","gmina Ruda Maleniecka",2605052,8712234.0999999996,2913.7906688963208,1.270597011744695,0.7,"konecki",null,null,"w przedziale od 30 do 50 minut"]
["gminakoneckiSłupia Konecka","koneckiSłupia Konecka","Słupia Konecka26","konecki","Słupia Konecka","gmina Słupia Konecka",2605062,6875806.8799999999,2136.6708763206962,0.93172363392985935,0.7,"konecki",null,null,"w przedziale od 30 do 50 minut"]
["gminakoneckiSmyków","koneckiSmyków","Smyków26","konecki","Smyków","gmina Smyków",2605072,7571048.7400000002,2021.102172984517,0.88132837023516886,0.8,"konecki",null,null,"w przedziale od 30 do 50 minut"]
["gminakoneckiStąporków","koneckiStąporków","Stąporków26","konecki","Stąporków","gmina Stąporków",2605083,33691151.649999999,2081.1138211131015,0.90749724420267863,0.7,"konecki",null,null,"w przedziale od 30 do 50 minut"]
["gminaopatowskiBaćkowice","opatowskiBaćkowice","Baćkowice26","opatowski","Baćkowice","gmina Baćkowice",2606012,10887025.92,2267.1857392753018,0.98863636847478931,0.7,"opatowski",null,null,"w przedziale od 30 do 50 minut"]
["gminaopatowskiIwaniska","opatowskiIwaniska","Iwaniska26","opatowski","Iwaniska","gmina Iwaniska",2606022,12870223.870000001,2001.2787855698959,0.87268411960984327,0.8,"opatowski",null,null,"w przedziale od 30 do 50 minut"]
[{"$f":"IF(D135=\"\",_xlfn.CONCAT(\"powiat\",B135),_xlfn.CONCAT(\"gmina\",B135))","v":"gminaopatowskiLipnik"},"opatowskiLipnik","Lipnik26","opatowski","Lipnik","gmina Lipnik",2606032,10218875.010000002,2020.7385821633384,0.88116982164215607,0.8,"opatowski",null,null,{"$f":"VLOOKUP($F135,$D$191:$M$292,9,0)","v":"w przedziale od 30 do 50 minut"}]
["gminaopatowskiOpatów","opatowskiOpatów","Opatów26","opatowski","Opatów","gmina Opatów",2606043,22618442.800000001,1993.3412179430686,0.8692228381201238,0.8,"opatowski",null,null,"w przedziale od 30 do 50 minut"]
["gminaopatowskiOżarów","opatowskiOżarów","Ożarów26","opatowski","Ożarów","gmina Ożarów",2606053,38264204.350000001,3659.8952032520328,1.5959457754431579,0.7,"opatowski",null,null,"większy niż 50 minut"]
["gminaopatowskiSadowie","opatowskiSadowie","Sadowie26","opatowski","Sadowie","gmina Sadowie",2606062,8242427.9299999997,2153.7569715181603,0.93917425203088656,0.7,"opatowski",null,null,"w przedziale od 30 do 50 minut"]
["gminaopatowskiTarłów","opatowskiTarłów","Tarłów26","opatowski","Tarłów","gmina Tarłów",2606072,10455472.68,2104.5637439613524,0.9177228936340831,0.7,"opatowski",null,null,"większy niż 50 minut"]
["gminaopatowskiWojciechowice","opatowskiWojciechowice","Wojciechowice26","opatowski","Wojciechowice","gmina Wojciechowice",2606082,8461568.2800000012,2141.0850910931176,0.93364851074373234,0.7,"opatowski",null,null,"w przedziale od 30 do 50 minut"]
["gminaostrowieckiBałtów","ostrowieckiBałtów","Bałtów26","ostrowiecki","Bałtów","gmina Bałtów",2607022,6902396.0599999996,2078.4089310448658,0.90631774106455509,0.7,"ostrowiecki",null,null,"większy niż 50 minut"]
["gminaostrowieckiBodzechów","ostrowieckiBodzechów","Bodzechów26","ostrowiecki","Bodzechów","gmina Bodzechów",2607032,24502147.420000002,1867.9688511092477,0.81455255711646091,0.8,"ostrowiecki",null,null,"większy niż 50 minut"]
["gminaostrowieckiĆmielów","ostrowieckiĆmielów","Ćmielów26","ostrowiecki","Ćmielów","gmina Ćmielów",2607043,15572461.17,2163.1422655924434,0.9432668338118716,0.7,"ostrowiecki",null,null,"większy niż 50 minut"]
["gminaostrowieckiKunów","ostrowieckiKunów","Kunów26","ostrowiecki","Kunów","gmina Kunów",2607053,15192831.32,1573.4083802816901,0.68610556261998623,0.8,"ostrowiecki",null,null,"większy niż 50 minut"]
["gminaostrowieckiOstrowiec Świętokrzyski","ostrowieckiOstrowiec Świętokrzyski","Ostrowiec Świętokrzyski26","ostrowiecki","Ostrowiec Świętokrzyski","gmina Ostrowiec Świętokrzyski",2607011,132384003,1998.0078330163906,0.87125777742802257,0.8,"ostrowiecki",null,null,"w przedziale od 30 do 50 minut"]
["gminaostrowieckiWaśniów","ostrowieckiWaśniów","Waśniów26","ostrowiecki","Waśniów","gmina Waśniów",2607062,13178873.6,1975.8431184407796,0.86159256008534613,0.8,"ostrowiecki",null,null,"w przedziale od 30 do 50 minut"]
["gminapińczowskiDziałoszyce",{"$f":"CONCATENATE(D147&E147)","v":"pińczowskiDziałoszyce"},"Działoszyce26","pińczowski","Działoszyce","gmina Działoszyce",2608013,9997554.8999999985,2106.9662592202317,0.91877054223190058,0.7,"pińczowski",null,null,"w przedziale od 30 do 50 minut"]
["gminapińczowskiKije","pińczowskiKije","Kije26","pińczowski","Kije","gmina Kije",2608022,12908967.84,3014.7052405418031,1.3146021472346832,0.7,"pińczowski",null,null,"w przedziale od 30 do 50 minut"]
["gminapińczowskiMichałów","pińczowskiMichałów","Michałów26","pińczowski","Michałów","gmina Michałów",2608032,9359123.8000000007,2098.4582511210765,0.91506051261924448,0.7,"pińczowski",null,null,"w przedziale od 30 do 50 minut"]
["gminapińczowskiPińczów","pińczowskiPińczów","Pińczów26","pińczowski","Pińczów","gmina Pińczów",2608043,43987158,2180.2804460966545,0.95074016440072961,0.7,"pińczowski",null,null,"w przedziale od 30 do 50 minut"]
["gminapińczowskiZłota","pińczowskiZłota","Złota26","pińczowski","Złota","gmina Złota",2608052,8755118.8000000007,2002.5431838975298,0.87323547724644224,0.8,"pińczowski",null,null,"większy niż 50 minut"]
["gminasandomierskiDwikozy","sandomierskiDwikozy","Dwikozy26","sandomierski","Dwikozy","gmina Dwikozy",2609022,15871374.800000001,1850.4575958960011,0.80691654235968446,0.8,"sandomierski",null,null,"w przedziale od 30 do 50 minut"]
["gminasandomierskiKlimontów","sandomierskiKlimontów","Klimontów26","sandomierski","Klimontów","gmina Klimontów",2609033,15423593.140000001,1960.0448773668827,0.8547035278313857,0.8,"sandomierski",null,null,"w przedziale od 30 do 50 minut"]
["gminasandomierskiKoprzywnica","sandomierskiKoprzywnica","Koprzywnica26","sandomierski","Koprzywnica","gmina Koprzywnica",2609043,12119962.84,1869.2108019740901,0.81509412623961297,0.8,"sandomierski",null,null,"w przedziale od 30 do 50 minut"]
["gminasandomierskiŁoniów","sandomierskiŁoniów","Łoniów26","sandomierski","Łoniów","gmina Łoniów",2609052,14494426.640000001,1963.4823408290438,0.85620247930021509,0.8,"sandomierski",null,null,"w przedziale od 30 do 50 minut"]
["gminasandomierskiObrazów","sandomierskiObrazów","Obrazów26","sandomierski","Obrazów","gmina Obrazów",2609062,12373955.24,1956.6659139784947,0.85323008609450668,0.8,"sandomierski",null,null,"w przedziale od 30 do 50 minut"]
["gminasandomierskiSamborzec","sandomierskiSamborzec","Samborzec26","sandomierski","Samborzec","gmina Samborzec",2609072,15517280.959999999,1863.2662055715657,0.8125019062473865,0.8,"sandomierski",null,null,"w przedziale od 30 do 50 minut"]
["gminasandomierskiSandomierz","sandomierskiSandomierz","Sandomierz26","sandomierski","Sandomierz","gmina Sandomierz",2609011,50401168.159999996,2224.8242323651452,0.9701640723460373,0.7,"sandomierski",null,null,"w przedziale od 30 do 50 minut"]
["gminasandomierskiWilczyce","sandomierskiWilczyce","Wilczyce26","sandomierski","Wilczyce","gmina Wilczyce",2609082,7340948.8799999999,2046.5427599665459,0.8924220751266877,0.8,"sandomierski",null,null,"w przedziale od 30 do 50 minut"]
["gminasandomierskiZawichost","sandomierskiZawichost","Zawichost26","sandomierski","Zawichost","gmina Zawichost",2609093,8720961.9699999988,2034.2808420807089,0.88707510343434415,0.8,"sandomierski",null,null,"większy niż 50 minut"]
["gminaskarżyskiBliżyn","skarżyskiBliżyn","Bliżyn26","skarżyski","Bliżyn","gmina Bliżyn",2610022,15825855.32,1992.6788365650971,0.86893399794760562,0.8,"skarżyski",null,null,"w przedziale od 30 do 50 minut"]
["gminaskarżyskiŁączna","skarżyskiŁączna","Łączna26","skarżyski","Łączna","gmina Łączna",2610032,10478000.34,2159.9670871985159,0.94188225522077851,0.7,"skarżyski",null,null,"mniejszy niż 30 minut"]
["gminaskarżyskiSkarżysko-Kamienna","skarżyskiSkarżysko-Kamienna","Skarżysko-Kamienna26","skarżyski","Skarżysko-Kamienna","gmina Skarżysko-Kamienna",2610011,87323051.5,2011.032460503892,0.87693733874358393,0.8,"skarżyski",null,null,"w przedziale od 30 do 50 minut"]
["gminaskarżyskiSkarżysko-Kościelne","skarżyskiSkarżysko-Kościelne","Skarżysko-Kościelne26","skarżyski","Skarżysko-Kościelne","gmina Skarżysko-Kościelne",2610042,11085725.359999999,1893.0541939890709,0.82549135311232003,0.8,"skarżyski",null,null,"w przedziale od 30 do 50 minut"]
["gminaskarżyskiSuchedniów","skarżyskiSuchedniów","Suchedniów26","skarżyski","Suchedniów","gmina Suchedniów",2610053,18581496.649999999,1879.76698533131,0.81969728979981238,0.8,"skarżyski",null,null,"w przedziale od 30 do 50 minut"]
["gminastarachowickiBrody","starachowickiBrody","Brody26","starachowicki","Brody","gmina Brody",2611022,21502670,2023.780705882353,0.88249637998006225,0.8,"starachowicki",null,null,"w przedziale od 30 do 50 minut"]
["gminastarachowickiMirzec","starachowickiMirzec","Mirzec26","starachowicki","Mirzec","gmina Mirzec",2611032,16004737.620000001,1961.6052972177965,0.85538396957375329,0.8,"starachowicki",null,null,"w przedziale od 30 do 50 minut"]
["gminastarachowickiPawłów","starachowickiPawłów","Pawłów26","starachowicki","Pawłów","gmina Pawłów",2611042,28155229.280000001,1861.0105942230155,0.81151831704527988,0.8,"starachowicki",null,null,"w przedziale od 30 do 50 minut"]
["gminastarachowickiStarachowice","starachowickiStarachowice","Starachowice26","starachowicki","Starachowice","gmina Starachowice",2611011,95266694.629999995,2032.1827391795898,0.88616019787679956,0.8,"starachowicki",null,null,"w przedziale od 30 do 50 minut"]
["gminastarachowickiWąchock","starachowickiWąchock","Wąchock26","starachowicki","Wąchock","gmina Wąchock",2611053,13296961.83,1994.4445522723863,0.86970396166710717,0.8,"starachowicki",null,null,"w przedziale od 30 do 50 minut"]
["gminastaszowskiBogoria","staszowskiBogoria","Bogoria26","staszowski","Bogoria","gmina Bogoria",2612012,16746370.92,2196.5334365162644,0.9578274961296398,0.7,"staszowski",null,null,"w przedziale od 30 do 50 minut"]
["gminastaszowskiŁubnice","staszowskiŁubnice","Łubnice26","staszowski","Łubnice","gmina Łubnice",2612022,8231249.5899999999,2027.900859817689,0.88429302767134921,0.8,"staszowski",null,null,"większy niż 50 minut"]
["gminastaszowskiOleśnica","staszowskiOleśnica","Oleśnica26","staszowski","Oleśnica","gmina Oleśnica",2612033,7437441.5499999998,1942.3978976234002,0.8470083285956489,0.8,"staszowski",null,null,"większy niż 50 minut"]
["gminastaszowskiOsiek","staszowskiOsiek","Osiek26","staszowski","Osiek","gmina Osiek",2612043,16400607.84,2156.8395370857443,0.94051844557247788,0.7,"staszowski",null,null,"w przedziale od 30 do 50 minut"]
["gminastaszowskiPołaniec","staszowskiPołaniec","Połaniec26","staszowski","Połaniec","gmina Połaniec",2612053,37518216.899999999,3256.5069785608885,1.4200429975474123,0.7,"staszowski",null,null,"większy niż 50 minut"]
["gminastaszowskiRytwiany","staszowskiRytwiany","Rytwiany26","staszowski","Rytwiany","gmina Rytwiany",2612062,13619897.310000001,2152.6627643432907,0.93869710850048138,0.7,"staszowski",null,null,"w przedziale od 30 do 50 minut"]
["gminastaszowskiStaszów","staszowskiStaszów","Staszów26","staszowski","Staszów","gmina Staszów",2612073,48571952,1927.4584126984128,0.84049376833388378,0.8,"staszowski",null,null,"w przedziale od 30 do 50 minut"]
["gminastaszowskiSzydłów","staszowskiSzydłów","Szydłów26","staszowski","Szydłów","gmina Szydłów",2612083,9659978.6999999993,2139.5301661129565,0.93297046511253112,0.7,"staszowski",null,null,"w przedziale od 30 do 50 minut"]
["gminawłoszczowskiKluczewsko",{"$f":"CONCATENATE(D179&E179)","v":"włoszczowskiKluczewsko"},"Kluczewsko26","włoszczowski","Kluczewsko","gmina Kluczewsko",2613012,10772689.649999999,2106.9215040093877,0.91875102612946902,0.7,"włoszczowski",null,null,"w przedziale od 30 do 50 minut"]
["gminawłoszczowskiKrasocin","włoszczowskiKrasocin","Krasocin26","włoszczowski","Krasocin","gmina Krasocin",2613022,23663009.540000003,2235.3116890232386,0.97473726671885852,0.7,"włoszczowski",null,null,"w przedziale od 30 do 50 minut"]
["gminawłoszczowskiMoskorzew","włoszczowskiMoskorzew","Moskorzew26","włoszczowski","Moskorzew","gmina Moskorzew",2613032,5570298.2300000004,2141.5987043444829,0.93387247860434197,0.7,"włoszczowski",null,null,"większy niż 50 minut"]
["gminawłoszczowskiRadków","włoszczowskiRadków","Radków26","włoszczowski","Radków","gmina Radków",2613042,5298057,2154.5575437169582,0.93952335214104099,0.7,"włoszczowski",null,null,"w przedziale od 30 do 50 minut"]
["gminawłoszczowskiSecemin","włoszczowskiSecemin","Secemin26","włoszczowski","Secemin","gmina Secemin",2613052,10046615.48,2148.5490761334477,0.93690328027442848,0.7,"włoszczowski",null,null,"większy niż 50 minut"]
["gminawłoszczowskiWłoszczowa","włoszczowskiWłoszczowa","Włoszczowa26","włoszczowski","Włoszczowa","gmina Włoszczowa",2613063,40761971,2147.6275553213909,0.93650143891960547,0.7,"włoszczowski",null,null,"w przedziale od 30 do 50 minut"]
[]
[]
[null,null,null,null,null,"Gmina",null,"Dostępność czasowa"]
[null,null,null,null,null,null,"Dostępność czasowa","do 30 minut","< 30 minut do 50 minut","> 50 minut"]
[null,null,null,null,null,null,null,"Liczba przyznanych punktów"]
[null,null,null,null,null,2,null,3,4,5,"peryjeryjność"]
[null,null,null,{"$f":"_xlfn.CONCAT(E191,\" \",F191)","v":"gmina Baćkowice"},"gmina","Baćkowice","35-40",null,1,null,{"$f":"H191+I191+J191","v":1},{"$f":"IF(K191=0,\"mniejszy niż 30 minut\",IF(K191=1,\"w przedziale od 30 do 50 minut\",\"większy niż 50 minut\"))","v":"w przedziale od 30 do 50 minut"}]
[null,null,null,{"$f":"_xlfn.CONCAT(E192,\" \",F192)","v":"gmina Bałtów"},"gmina","Bałtów","60-65",null,null,2,{"$f":"H192+I192+J192","v":2},{"$f":"IF(K192=0,\"mniejszy niż 30 minut\",IF(K192=1,\"w przedziale od 30 do 50 minut\",\"większy niż 50 minut\"))","v":"większy niż 50 minut"}]
[null,null,null,"gmina Bejsce","gmina","Bejsce","45-50",null,1,null,1,"w przedziale od 30 do 50 minut"]
[null,null,null,"gmina Bieliny","gmina","Bieliny","35-40",null,1,null,1,"w przedziale od 30 do 50 minut"]
[null,null,null,"gmina Bliżyn","gmina","Bliżyn","30-35",null,1,null,1,"w przedziale od 30 do 50 minut"]
[null,null,null,"gmina Bodzechów","gmina","Bodzechów","50-55",null,null,2,2,"większy niż 50 minut"]
[null,null,null,"gmina Bodzentyn","gmina","Bodzentyn","35-40",null,1,null,1,"w przedziale od 30 do 50 minut"]
[null,null,null,"gmina Bogoria","gmina","Bogoria","40-45",null,1,null,1,"w przedziale od 30 do 50 minut"]
[null,null,null,"gmina Brody","gmina","Brody","45-50",null,1,null,1,"w przedziale od 30 do 50 minut"]
[null,null,null,{"$f":"_xlfn.CONCAT(E200,\" \",F200)","v":"gmina Busko-Zdrój"},"gmina","Busko-Zdrój","35-40",null,1,null,1,"w przedziale od 30 do 50 minut"]
[null,null,null,"gmina Chęciny","gmina","Chęciny","20-30",0,null,null,0,"mniejszy niż 30 minut"]
[null,null,null,"gmina Chmielnik","gmina","Chmielnik","30-35",null,1,null,1,"w przedziale od 30 do 50 minut"]
[null,null,null,"gmina Czarnocin","gmina","Czarnocin","50-55",null,null,2,2,"większy niż 50 minut"]
[null,null,null,"gmina Ćmielów","gmina","Ćmielów","50-55",null,null,2,2,"większy niż 50 minut"]
[null,null,null,"gmina Daleszyce","gmina","Daleszyce","30-35",null,1,null,1,"w przedziale od 30 do 50 minut"]
[null,null,null,"gmina Dwikozy","gmina","Dwikozy","45-50",null,1,null,1,"w przedziale od 30 do 50 minut"]
[null,null,null,"gmina Działoszyce","gmina","Działoszyce","45-50",null,1,null,1,"w przedziale od 30 do 50 minut"]
[null,null,null,"gmina Fałków","gmina","Fałków","45-50",null,1,null,1,"w przedziale od 30 do 50 minut"]
[null,null,null,"gmina Gnojno","gmina","Gnojno","40-45",null,1,null,1,"w przedziale od 30 do 50 minut"]
[null,null,null,"gmina Gowarczów","gmina","Gowarczów","45-50",null,1,null,1,"w przedziale od 30 do 50 minut"]
[null,null,null,"gmina Górno","gmina","Górno","20-30",0,null,null,0,"mniejszy niż 30 minut"]
[null,null,null,"gmina Imielno","gmina","Imielno","35-40",null,1,null,1,"w przedziale od 30 do 50 minut"]
[null,null,null,"gmina Iwaniska","gmina","Iwaniska","35-40",null,1,null,1,"w przedziale od 30 do 50 minut"]
[null,null,null,"gmina Jędrzejów","gmina","Jędrzejów","30-35",null,1,null,1,"w przedziale od 30 do 50 minut"]
[null,null,null,"gmina Kazimierza Wielka","gmina","Kazimierza Wielka","45-50",null,1,null,1,"w przedziale od 30 do 50 minut"]
[null,null,null,"gmina Kielce","gmina","Kielce"]
[null,null,null,"gmina Kije","gmina","Kije","30-35",null,1,null,1,"w przedziale od 30 do 50 minut"]
[null,null,null,"gmina Klimontów","gmina","Klimontów","40-45",null,1,null,1,"w przedziale od 30 do 50 minut"]
[null,null,null,"gmina Kluczewsko","gmina","Kluczewsko","45-50",null,1,null,1,"w przedziale od 30 do 50 minut"]
[null,null,null,"gmina Końskie","gmina","Końskie","35-40",null,1,null,1,"w przedziale od 30 do 50 minut"]
[null,null,null,"gmina Koprzywnica","gmina","Koprzywnica","40-45",null,1,null,1,"w przedziale od 30 do 50 minut"]
[null,null,null,"gmina Krasocin","gmina","Krasocin","40-45",null,1,null,1,"w przedziale od 30 do 50 minut"]
[null,null,null,"gmina Kunów","gmina","Kunów","50-55",null,null,2,2,"większy niż 50 minut"]
[null,null,null,"gmina Lipnik","gmina","Lipnik","40-45",null,1,null,1,"w przedziale od 30 do 50 minut"]
[null,null,null,"gmina Łagów","gmina","Łagów","35-40",null,1,null,1,"w przedziale od 30 do 50 minut"]
[null,null,null,"gmina Łączna","gmina","Łączna","20-30",0,null,null,0,"mniejszy niż 30 minut"]
[null,null,null,"gmina Łoniów","gmina","Łoniów","40-45",null,1,null,1,"w przedziale od 30 do 50 minut"]
[null,null,null,"gmina Łopuszno","gmina","Łopuszno","35-40",null,1,null,1,"w przedziale od 30 do 50 minut"]
[null,null,null,"gmina Łubnice","gmina","Łubnice","55-60",null,null,2,2,"większy niż 50 minut"]
[null,null,null,"gmina Małogoszcz","gmina","Małogoszcz","35-40",null,1,null,1,"w przedziale od 30 do 50 minut"]
[null,null,null,"gmina Masłów","gmina","Masłów","20-30",0,null,null,0,"mniejszy niż 30 minut"]
[null,null,null,"gmina Michałów","gmina","Michałów","40-45",null,1,null,1,"w przedziale od 30 do 50 minut"]
[null,null,null,"gmina Miedziana Góra","gmina","Miedziana Góra","20-30",0,null,null,0,"mniejszy niż 30 minut"]
[null,null,null,"gmina Mirzec","gmina","Mirzec","40-45",null,1,null,1,"w przedziale od 30 do 50 minut"]
[null,null,null,"gmina Mniów","gmina","Mniów","30-35",null,1,null,1,"w przedziale od 30 do 50 minut"]
[null,null,null,"gmina Morawica","gmina","Morawica","20-30",0,null,null,0,"mniejszy niż 30 minut"]
[null,null,null,"gmina Moskorzew","gmina","Moskorzew","50-55",null,null,2,2,"większy niż 50 minut"]
[null,null,null,"gmina Nagłowice","gmina","Nagłowice","40-45",null,1,null,1,"w przedziale od 30 do 50 minut"]
[null,null,null,"gmina Nowa Słupia","gmina","Nowa Słupia","40-45",null,1,null,1,"w przedziale od 30 do 50 minut"]
[null,null,null,"gmina Nowy Korczyn","gmina","Nowy Korczyn","50-55",null,null,2,2,"większy niż 50 minut"]
[null,null,null,"gmina Obrazów","gmina","Obrazów","40-45",null,1,null,1,"w przedziale od 30 do 50 minut"]
[null,null,null,"gmina Oksa","gmina","Oksa","40-45",null,1,null,1,"w przedziale od 30 do 50 minut"]
[null,null,null,"gmina Oleśnica","gmina","Oleśnica","50-55",null,null,2,2,"większy niż 50 minut"]
[null,null,null,"gmina Opatowiec","gmina","Opatowiec","50-55",null,null,2,2,"większy niż 50 minut"]
[null,null,null,"gmina Opatów","gmina","Opatów","35-40",null,1,null,1,"w przedziale od 30 do 50 minut"]
[null,null,null,"gmina Osiek","gmina","Osiek","45-50",null,1,null,1,"w przedziale od 30 do 50 minut"]
[null,null,null,"gmina Ostrowiec Świętokrzyski","gmina","Ostrowiec Świętokrzyski","45-50",null,1,null,1,"w przedziale od 30 do 50 minut"]
[null,null,null,"gmina Ożarów","gmina","Ożarów","50-55",null,null,2,2,"większy niż 50 minut"]
[null,null,null,"gmina Pacanów","gmina","Pacanów","50-55",null,null,2,2,"większy niż 50 minut"]
[null,null,null,"gmina Pawłów","gmina","Pawłów","40-45",null,1,null,1,"w przedziale od 30 do 50 minut"]
[null,null,null,"gmina Piekoszów","gmina","Piekoszów","20-30",0,null,null,0,"mniejszy niż 30 minut"]
[null,null,null,"gmina Pierzchnica","gmina","Pierzchnica","30-35",null,1,null,1,"w przedziale od 30 do 50 minut"]
[null,null,null,"gmina Pińczów","gmina","Pińczów","40-45",null,1,null,1,"w przedziale od 30 do 50 minut"]
[null,null,null,"gmina Połaniec","gmina","Połaniec","50-55",null,null,2,2,"większy niż 50 minut"]
[null,null,null,"gmina Radków","gmina","Radków","45-50",null,1,null,1,"w przedziale od 30 do 50 minut"]
[null,null,null,{"$f":"_xlfn.CONCAT(E256,\" \",F256)","v":"gmina Radoszyce"},"gmina","Radoszyce","35-40",null,1,null,{"$f":"H256+I256+J256","v":1},{"$f":"IF(K256=0,\"mniejszy niż 30 minut\",IF(K256=1,\"w przedziale od 30 do 50 minut\",\"większy niż 50 minut\"))","v":"w przedziale od 30 do 50 minut"}]
[null,null,null,"gmina Raków","gmina","Raków","35-40",null,1,null,1,"w przedziale od 30 do 50 minut"]
[null,null,null,"gmina Ruda Maleniecka","gmina","Ruda Maleniecka","35-40",null,1,null,1,"w przedziale od 30 do 50 minut"]
[null,null,null,"gmina Rytwiany","gmina","Rytwiany","45-50",null,1,null,1,"w przedziale od 30 do 50 minut"]
[null,null,null,"gmina Sadowie","gmina","Sadowie","40-45",null,1,null,1,"w przedziale od 30 do 50 minut"]
[null,null,null,"gmina Samborzec","gmina","Samborzec","40-45",null,1,null,1,"w przedziale od 30 do 50 minut"]
[null,null,null,"gmina Sandomierz","gmina","Sandomierz","40-45",null,1,null,1,"w przedziale od 30 do 50 minut"]
[null,null,null,"gmina Secemin","gmina","Secemin","50-55",null,null,2,2,"większy niż 50 minut"]
[null,null,null,"gmina Sędziszów","gmina","Sędziszów","50-55",null,null,2,2,"większy niż 50 minut"]
[null,null,null,"gmina Nowiny","gmina","Nowiny","20-30",0,null,null,0,"mniejszy niż 30 minut"]
[null,null,null,"gmina Skalbmierz","gmina","Skalbmierz","45-50",null,1,null,1,"w przedziale od 30 do 50 minut"]
[null,null,null,"gmina Skarżysko-Kościelne","gmina","Skarżysko-Kościelne","40-45",null,1,null,1,"w przedziale od 30 do 50 minut"]
[null,null,null,"gmina Skarżysko-Kamienna","gmina","Skarżysko-Kamienna","30-35",null,1,null,1,"w przedziale od 30 do 50 minut"]
[null,null,null,"gmina Słupia Jędrzejowska","gmina","Słupia Jędrzejowska","50-55",null,null,2,2,"większy niż 50 minut"]
[null,null,null,"gmina Słupia Konecka","gmina","Słupia Konecka","40-45",null,1,null,1,"w przedziale od 30 do 50 minut"]
[null,null,null,"gmina Smyków","gmina","Smyków","30-35",null,1,null,1,"w przedziale od 30 do 50 minut"]
[null,null,null,"gmina Sobków","gmina","Sobków","20-30",0,null,null,0,"mniejszy niż 30 minut"]
[null,null,null,"gmina Solec-Zdrój","gmina","Solec-Zdrój","50-55",null,null,2,2,"większy niż 50 minut"]
[null,null,null,"gmina Starachowice","gmina","Starachowice","40-45",null,1,null,1,"w przedziale od 30 do 50 minut"]
[null,null,null,"gmina Staszów","gmina","Staszów","40-45",null,1,null,1,"w przedziale od 30 do 50 minut"]
[null,null,null,"gmina Stąporków","gmina","Stąporków","35-40",null,1,null,1,"w przedziale od 30 do 50 minut"]
[null,null,null,"gmina Stopnica","gmina","Stopnica","45-50",null,1,null,1,"w przedziale od 30 do 50 minut"]
[null,null,null,"gmina Strawczyn","gmina","Strawczyn","30-35",null,1,null,1,"w przedziale od 30 do 50 minut"]
[null,null,null,"gmina Suchedniów","gmina","Suchedniów","30-35",null,1,null,1,"w przedziale od 30 do 50 minut"]
[null,null,null,"gmina Szydłów","gmina","Szydłów","40-45",null,1,null,1,"w przedziale od 30 do 50 minut"]
[null,null,null,"gmina Tarłów","gmina","Tarłów","60-65",null,null,2,2,"większy niż 50 minut"]
[null,null,null,"gmina Tuczępy","gmina","Tuczępy","45-50",null,1,null,1,"w przedziale od 30 do 50 minut"]
[null,null,null,"gmina Waśniów","gmina","Waśniów","40-45",null,1,null,1,"w przedziale od 30 do 50 minut"]
[null,null,null,"gmina Wąchock","gmina","Wąchock","35-40",null,1,null,1,"w przedziale od 30 do 50 minut"]
[null,null,null,"gmina Wilczyce","gmina","Wilczyce","45-50",null,1,null,1,"w przedziale od 30 do 50 minut"]
[null,null,null,"gmina Wiślica","gmina","Wiślica","45-50",null,1,null,1,"w przedziale od 30 do 50 minut"]
[null,null,null,"gmina Włoszczowa","gmina","Włoszczowa","45-50",null,1,null,1,"w przedziale od 30 do 50 minut"]
[null,null,null,"gmina Wodzisław","gmina","Wodzisław","40-45",null,1,null,1,"w przedziale od 30 do 50 minut"]
[null,null,null,"gmina Wojciechowice","gmina","Wojciechowice","45-50",null,1,null,1,"w przedziale od 30 do 50 minut"]
[null,null,null,"gmina Zagnańsk","gmina","Zagnańsk","20-30",0,null,null,0,"mniejszy niż 30 minut"]
[null,null,null,"gmina Zawichost","gmina","Zawichost","50-55",null,null,2,2,"większy niż 50 minut"]
[null,null,null,"gmina Złota","gmina","Złota","50-55",null,null,2,2,"większy niż 50 minut"]
[]
[]
[null,null,null,null,null,null,"Kryterium - wypadki ogółem, ofiary śmiertelne i cięzko ranne - 3 pkt",null,null,"Kryterium - wypadki z udziałem pieszych - 3 pkt",null,null,"Kryterium - wypadki spowodowane zbyt dużą prędkością - 3 pkt",null,null,"Łączna liczba przyznanych punktów w kryterium 1"]
[null,null,null,null,null,"Nazwa","Ofiary śmiertelne i ciężko ranni",null,"Liczba przyznanych punktów","Ofiary śmiertelne i ciężko ranni",null,"Liczba przyznanych punktów","Ofiary śmiertelne i ciężko ranni",null,"Liczba przyznanych punktów"]
[null,null,null,null,null,null,"Klasa ryzyka","Poziom ryzyka",null,"Klasa ryzyka","Poziom ryzyka",null,"Klasa ryzyka","Poziom ryzyka"]
[]
[null,null,null,null,null,"buski","B","Małe",0,"B","Małe",0,"C","Średnie",0,{"$f":"I299+L299+O299","v":0}]
[null,null,null,null,null,"jędrzejowski","D","Duże",1,"C","Średnie",0,"D","Duże",1,{"$f":"I300+L300+O300","v":2}]
[null,null,null,null,null,"kazimierski","A","Bardzo małe",0,"A","Bardzo małe",0,"B","Małe",0,0]
[null,null,null,null,null,"kielecki","E","Bardzo duże",1,"E","Bardzo duże",1,"E","Bardzo duże",1,3]
[null,null,null,null,null,"konecki","D","Duże",1,"D","Duże",1,"C","Średnie",0,2]
[null,null,null,null,null,"opatowski","D","Duże",1,"D","Duże",1,"D","Duże",1,3]
[null,null,null,null,null,"ostrowiecki","B","Małe",0,"D","Duże",1,"A","Bardzo małe",0,1]
[null,null,null,null,null,"pińczowski","A","Bardzo małe",0,"B","Małe",0,"A","Bardzo małe",0,0]
[null,null,null,null,null,"sandomierski","D","Duże",1,"D","Duże",1,"C","Średnie",0,2]
[null,null,null,null,null,"skarżyski","A","Bardzo małe",0,"C","Średnie",0,"A","Bardzo małe",0,0]
[null,null,null,null,null,"starachowicki","A","Bardzo małe",0,"C","Średnie",0,"A","Bardzo małe",0,0]
[null,null,null,null,null,"staszowski","A","Bardzo małe",0,"A","Bardzo małe",0,"B","Małe",0,0]
[null,null,null,null,null,"włoszczowski","B","Małe",0,"A","Bardzo małe",0,"B","Małe",0,0]
[]
[]
[null,null,"DROGI POWIATOWE I GMINNE",null,"RFRD - KRYTERIUM 1 - ",null,"poziom ryzyka społecznego uwzgledniającego liczbę wypadków drogowych, \nw tym z udziałem pieszych oraz liczbę ofiar śmiertelnych "]
[null,null,null,null,"Lp.","Nazwa jst","Liczba przyznanych punktów - wypadki drogowe ogółem na 100 tys. ludności","Liczba przyznanych punktów - wypadki drogowe z udziałem pieszych na 100 tys. ludności","Liczba przyznanych punktów - ofiary śmiertelne na 100 tys. ludności","Łączna liczba przyznanych punktów \nw kryterium 1","Liczba przyznanych punktów - wypadki drogowe ogółem na 100 tys. ludności","Liczba przyznanych punktów - wypadki drogowe z udziałem pieszych na 100 tys. ludności","Liczba przyznanych punktów - ofiary śmiertelne na 100 tys. ludności"]
[null,null,null,"buski",1,"Powiat buski",0,1,0,1,{"$f":"IF(G316=0,\"NIE\",\"TAK\")","v":"NIE"},{"$f":"IF(H316=0,\"NIE\",\"TAK\")","v":"TAK"},"NIE"]
[null,null,null,"jędrzejowski",2,"Powiat jędrzejowski",1,1,1,3,{"$f":"IF(G317=0,\"NIE\",\"TAK\")","v":"TAK"},"TAK","TAK"]
[null,null,null,"kazimierski",3,"Powiat kazimierski",1,1,1,3,"TAK","TAK","TAK"]
[null,null,null,"kielecki",4,"Powiat kielecki",1,1,1,3,"TAK","TAK","TAK"]
[null,null,null,"konecki",5,"Powiat konecki",1,1,1,3,"TAK","TAK","TAK"]
[null,null,null,"opatowski",6,"Powiat opatowski",1,1,1,3,"TAK","TAK","TAK"]
[null,null,null,"ostrowiecki",7,"Powiat ostrowiecki",0,1,0,1,"NIE","TAK","NIE"]
[null,null,null,"pińczowski",8,"Powiat pińczowski",1,1,1,3,"TAK","TAK","TAK"]
[null,null,null,"sandomierski",9,"Powiat sandomierski",1,1,1,3,"TAK","TAK","TAK"]
[null,null,null,"skarżyski",10,"Powiat skarżyski",1,1,0,2,"TAK","TAK","NIE"]
[null,null,null,"starachowicki",11,"Powiat starachowicki",1,1,0,2,"TAK","TAK","NIE"]
[null,null,null,"staszowski",12,"Powiat staszowski",1,1,1,3,"TAK","TAK","TAK"]
[null,null,null,"włoszczowski",13,"Powiat włoszczowski",1,1,1,3,"TAK","TAK","TAK"]
[null,null,null,null,null,null,null,null,null,0,{"$f":"COUNTIF($J$316:$J$328,J329)","v":0}]
[null,null,null,null,null,null,null,null,null,1,{"$f":"COUNTIF($J$316:$J$328,J330)","v":2}]
[null,null,null,null,null,null,null,null,null,2,2]
[null,null,null,null,null,null,null,null,null,3,9]
[]
[null,null,"POWIATY - DROGI POWIATOWE",null,"RFRD - KRYTERIUM 1 - ",null,"poziom ryzyka społecznego uwzgledniającego liczbę wypadków drogowych, \nw tym z udziałem pieszych oraz liczbę ofiar śmiertelnych "]
[null,null,null,null,"Lp.","Nazwa jst","Liczba przyznanych punktów - wypadki drogowe ogółem na 100 tys. ludności","Liczba przyznanych punktów - wypadki drogowe z udziałem pieszych na 100 tys. ludności","Liczba przyznanych punktów - ofiary śmiertelne na 100 tys. ludności","Łączna liczba przyznanych punktów \nw kryterium 1","Liczba przyznanych punktów - wypadki drogowe ogółem na 100 tys. ludności","Liczba przyznanych punktów - wypadki drogowe z udziałem pieszych na 100 tys. ludności","Liczba przyznanych punktów - ofiary śmiertelne na 100 tys. ludności"]
[null,null,null,"buski",1,"Powiat buski",0,0,0,0,{"$f":"IF(G336=0,\"NIE\",\"TAK\")","v":"NIE"},{"$f":"IF(H336=0,\"NIE\",\"TAK\")","v":"NIE"},{"$f":"IF(I336=0,\"NIE\",\"TAK\")","v":"NIE"}]
[null,null,null,"jędrzejowski",2,"Powiat jędrzejowski",1,1,1,3,{"$f":"IF(G337=0,\"NIE\",\"TAK\")","v":"TAK"},"TAK","TAK"]
[null,null,null,"kazimierski",3,"Powiat kazimierski",1,0,1,2,"TAK","NIE","TAK"]
[null,null,null,"kielecki",4,"Powiat kielecki",1,1,1,3,"TAK","TAK","TAK"]
[null,null,null,"konecki",5,"Powiat konecki",0,1,0,1,"NIE","TAK","NIE"]
[null,null,null,"opatowski",6,"Powiat opatowski",1,1,1,3,"TAK","TAK","TAK"]
[null,null,null,"ostrowiecki",7,"Powiat ostrowiecki",0,0,0,0,"NIE","NIE","NIE"]
[null,null,null,"pińczowski",8,"Powiat pińczowski",1,0,1,2,"TAK","NIE","TAK"]
[null,null,null,"sandomierski",9,"Powiat sandomierski",0,0,0,0,"NIE","NIE","NIE"]
[null,null,null,"skarżyski",10,"Powiat skarżyski",0,1,0,1,"NIE","TAK","NIE"]
[null,null,null,"starachowicki",11,"Powiat starachowicki",0,0,0,0,"NIE","NIE","NIE"]
[null,null,null,"staszowski",12,"Powiat staszowski",1,1,1,3,"TAK","TAK","TAK"]
[null,null,null,"włoszczowski",13,"Powiat włoszczowski",1,1,1,3,"TAK","TAK","TAK"]
[null,null,null,null,null,null,null,null,null,0,{"$f":"COUNTIF($J$336:$J$348,J349)","v":4}]
[null,null,null,null,null,null,null,null,null,1,{"$f":"COUNTIF($J$336:$J$348,J350)","v":2}]
[null,null,null,null,null,null,null,null,null,2,2]
[null,null,null,null,null,null,null,null,null,3,5]
[]
[null,null,"GMINY - DROGI GMINNE",null,"RFRD - KRYTERIUM 1 - ",null,"poziom ryzyka społecznego uwzgledniającego liczbę wypadków drogowych, \nw tym z udziałem pieszych oraz liczbę ofiar śmiertelnych "]
[null,null,null,null,"Lp.","Nazwa jst","Liczba przyznanych punktów - wypadki drogowe ogółem na 100 tys. ludności","Liczba przyznanych punktów - wypadki drogowe z udziałem pieszych na 100 tys. ludności","Liczba przyznanych punktów - ofiary śmiertelne na 100 tys. ludności","Łączna liczba przyznanych punktów \nw kryterium 1","Liczba przyznanych punktów - wypadki drogowe ogółem na 100 tys. ludności","Liczba przyznanych punktów - wypadki drogowe z udziałem pieszych na 100 tys. ludności","Liczba przyznanych punktów - ofiary śmiertelne na 100 tys. ludności"]
[null,null,null,{"$f":"VLOOKUP(F356,$E$83:$L$184,8,0)","v":"buski"},1,"Busko-Zdrój",0,1,0,1,{"$f":"IF(G356=0,\"NIE\",\"TAK\")","v":"NIE"},{"$f":"IF(H356=0,\"NIE\",\"TAK\")","v":"TAK"},{"$f":"IF(I356=0,\"NIE\",\"TAK\")","v":"NIE"}]
[null,null,null,{"$f":"VLOOKUP(F357,$E$83:$L$184,8,0)","v":"buski"},2,"Gnojno",0,0,0,0,{"$f":"IF(G357=0,\"NIE\",\"TAK\")","v":"NIE"},"NIE","NIE"]
[null,null,null,{"$f":"VLOOKUP(F358,$E$83:$L$184,8,0)","v":"buski"},3,"Nowy Korczyn",0,0,0,0,"NIE","NIE","NIE"]
[null,null,null,"buski",4,"Pacanów",0,1,0,1,"NIE","TAK","NIE"]
[null,null,null,"buski",5,"Solec-Zdrój",0,0,0,0,"NIE","NIE","NIE"]
[null,null,null,"buski",6,"Stopnica",0,1,0,1,"NIE","TAK","NIE"]
[null,null,null,"buski",7,"Tuczępy",0,0,0,0,"NIE","NIE","NIE"]
[null,null,null,"buski",8,"Wiślica",0,0,0,0,"NIE","NIE","NIE"]
[null,null,null,"jędrzejowski",9,"Imielno",1,0,0,1,"TAK","NIE","NIE"]
[null,null,null,"jędrzejowski",10,"Jędrzejów",1,1,0,2,"TAK","TAK","NIE"]
[null,null,null,"jędrzejowski",11,"Małogoszcz",1,1,1,3,"TAK","TAK","TAK"]
[null,null,null,"jędrzejowski",12,"Nagłowice",1,1,0,2,"TAK","TAK","NIE"]
[null,null,null,"jędrzejowski",13,"Oksa",0,0,0,0,"NIE","NIE","NIE"]
[null,null,null,"jędrzejowski",14,"Sędziszów",0,1,1,2,{"$f":"IF(G369=0,\"NIE\",\"TAK\")","v":"NIE"},{"$f":"IF(H369=0,\"NIE\",\"TAK\")","v":"TAK"},{"$f":"IF(I369=0,\"NIE\",\"TAK\")","v":"TAK"}]
[null,null,null,"jędrzejowski",15,"Słupia jędrzejowska",0,0,0,0,"NIE","NIE","NIE"]
[null,null,null,"jędrzejowski",16,"Sobków",0,0,0,0,"NIE","NIE","NIE"]
[null,null,null,"jędrzejowski",17,"Wodzisław",0,0,0,0,"NIE","NIE","NIE"]
[null,null,null,"kazimierski",18,"Bejsce",0,0,0,0,"NIE","NIE","NIE"]
[null,null,null,"kazimierski",19,"Czarnocin",0,0,0,0,"NIE","NIE","NIE"]
[null,null,null,"kazimierski",20,"Kazimierza Wielka",0,1,0,1,{"$f":"IF(G375=0,\"NIE\",\"TAK\")","v":"NIE"},"TAK","NIE"]
[null,null,null,"kazimierski",21,"Opatowiec",0,0,0,0,{"$f":"IF(G376=0,\"NIE\",\"TAK\")","v":"NIE"},{"$f":"IF(H376=0,\"NIE\",\"TAK\")","v":"NIE"},{"$f":"IF(I376=0,\"NIE\",\"TAK\")","v":"NIE"}]
[null,null,null,"kazimierski",22,"Skalbmierz",0,0,0,0,"NIE","NIE","NIE"]
[null,null,null,"kielecki",23,"Bieliny",0,0,0,0,"NIE","NIE","NIE"]
[null,null,null,"kielecki",24,"Bodzentyn",0,0,0,0,"NIE","NIE","NIE"]
[null,null,null,"kielecki",25,"Chęciny",0,0,0,0,"NIE","NIE","NIE"]
[null,null,null,"kielecki",26,"Chmielnik",0,0,1,1,"NIE","NIE","TAK"]
[null,null,null,"kielecki",27,"Daleszyce",0,0,0,0,"NIE","NIE","NIE"]
[null,null,null,"kielecki",28,"Górno",0,0,0,0,"NIE","NIE","NIE"]
[null,null,null,"kielecki",29,"Łagów",0,0,0,0,"NIE","NIE","NIE"]
[null,null,null,"kielecki",30,"Łopuszno",0,0,0,0,"NIE","NIE","NIE"]
[null,null,null,"kielecki",31,"Masłów",0,0,0,0,"NIE","NIE","NIE"]
[null,null,null,"kielecki",32,"Miedziana Góra",0,0,0,0,"NIE","NIE","NIE"]
[null,null,null,"kielecki",33,"Mniów",0,0,0,0,"NIE","NIE","NIE"]
[null,null,null,"kielecki",34,"Morawica",0,1,0,1,"NIE","TAK","NIE"]
[null,null,null,"kielecki",35,"Nowa Słupia",0,0,0,0,"NIE","NIE","NIE"]
[null,null,null,"kielecki",36,"Piekoszów",0,0,0,0,"NIE","NIE","NIE"]
[null,null,null,"kielecki",37,"Pierzchnica",0,0,0,0,"NIE","NIE","NIE"]
[null,null,null,"kielecki",38,"Raków",0,0,0,0,"NIE","NIE","NIE"]
[null,null,null,"kielecki",39,"Nowiny",0,0,0,0,"NIE","NIE","NIE"]
[null,null,null,"kielecki",40,"Strawczyn",0,0,0,0,"NIE","NIE","NIE"]
[null,null,null,"kielecki",41,"Zagnańsk",0,0,0,0,"NIE","NIE","NIE"]
[null,null,null,"konecki",42,"Fałków",0,0,0,0,"NIE","NIE","NIE"]
[null,null,null,"konecki",43,"Gowarczów",0,0,0,0,"NIE","NIE","NIE"]
[null,null,null,"konecki",44,"Końskie",0,1,0,1,"NIE","TAK","NIE"]
[null,null,null,"konecki",45,"Radoszyce",0,0,0,0,"NIE","NIE","NIE"]
[null,null,null,"konecki",46,"Ruda Maleniecka",0,0,0,0,"NIE","NIE","NIE"]
[null,null,null,"konecki",47,"Słupia Konecka",0,0,0,0,"NIE","NIE","NIE"]
[null,null,null,"konecki",48,"Smyków",0,0,0,0,"NIE","NIE","NIE"]
[null,null,null,"konecki",49,"Stąporków",0,0,0,0,"NIE","NIE","NIE"]
[null,null,null,"opatowski",50,"Baćkowice",0,0,0,0,"NIE","NIE","NIE"]
[null,null,null,"opatowski",51,"Iwaniska",0,1,0,1,"NIE","TAK","NIE"]
[null,null,null,"opatowski",52,"Lipnik",0,1,0,1,"NIE","TAK","NIE"]
[null,null,null,"opatowski",53,"Opatów",0,0,0,0,"NIE","NIE","NIE"]
[null,null,null,"opatowski",54,"Ożarów",0,1,0,1,"NIE","TAK","NIE"]
[null,null,null,"opatowski",55,"Sadowie",0,0,0,0,"NIE","NIE","NIE"]
[null,null,null,"opatowski",56,"Tarłów",1,0,0,1,"TAK","NIE","NIE"]
[null,null,null,"opatowski",57,"Wojciechowice",0,1,1,2,"NIE","TAK","TAK"]
[null,null,null,"ostrowiecki",58,"Ostrowiec Świętokrzyski",0,0,0,0,"NIE","NIE","NIE"]
[null,null,null,"ostrowiecki",59,"Bałtów",0,0,0,0,"NIE","NIE","NIE"]
[null,null,null,"ostrowiecki",60,"Bodzechów",0,0,0,0,"NIE","NIE","NIE"]
[null,null,null,"ostrowiecki",61,"Ćmielów",0,1,0,1,"NIE","TAK","NIE"]
[null,null,null,"ostrowiecki",62,"Kunów",0,0,0,0,"NIE","NIE","NIE"]
[null,null,null,"ostrowiecki",63,"Waśniów",0,1,0,1,"NIE","TAK","NIE"]
[null,null,null,"pińczowski",64,"Działoszyce",0,0,0,0,"NIE","NIE","NIE"]
[null,null,null,"pińczowski",65,"Kije",0,0,0,0,"NIE","NIE","NIE"]
[null,null,null,"pińczowski",66,"Michałów",0,0,0,0,"NIE","NIE","NIE"]
[null,null,null,{"$f":"VLOOKUP(F422,$E$83:$L$184,8,0)","v":"pińczowski"},67,"Pińczów",0,1,0,1,"NIE","TAK","NIE"]
[null,null,null,"pińczowski",68,"Złota",0,0,0,0,"NIE","NIE","NIE"]
[null,null,null,"sandomierski",69,"Sandomierz",0,1,0,1,"NIE","TAK","NIE"]
[null,null,null,"sandomierski",70,"Dwikozy",0,0,0,0,"NIE","NIE","NIE"]
[null,null,null,"sandomierski",71,"Klimontów",0,1,1,2,"NIE","TAK","TAK"]
[null,null,null,"sandomierski",72,"Koprzywnica",0,0,0,0,"NIE","NIE","NIE"]
[null,null,null,"sandomierski",73,"Łoniów",0,0,0,0,"NIE","NIE","NIE"]
[null,null,null,"sandomierski",74,"Obrazów",0,1,0,1,"NIE","TAK","NIE"]
[null,null,null,"sandomierski",75,"Samborzec",0,0,0,0,"NIE","NIE","NIE"]
[null,null,null,"sandomierski",76,"Wilczyce",0,0,0,0,"NIE","NIE","NIE"]
[null,null,null,"sandomierski",77,"Zawichost",0,0,0,0,"NIE","NIE","NIE"]
[null,null,null,"skarżyski",78,"Skarżysko-Kamienna",0,1,0,1,"NIE","TAK","NIE"]
[null,null,null,"skarżyski",79,"Bliżyn",0,0,0,0,"NIE","NIE","NIE"]
[null,null,null,"skarżyski",80,"Łączna",0,0,0,0,"NIE","NIE","NIE"]
[null,null,null,"skarżyski",81,"Skarżysko-Kościelne",0,0,0,0,"NIE","NIE","NIE"]
[null,null,null,"skarżyski",82,"Suchedniów",0,0,0,0,"NIE","NIE","NIE"]
[null,null,null,"starachowicki",83,"Starachowice",0,1,0,1,"NIE","TAK","NIE"]
[null,null,null,"starachowicki",84,"Brody",0,0,1,1,"NIE","NIE","TAK"]
[null,null,null,"starachowicki",85,"Mirzec",0,1,0,1,{"$f":"IF(G440=0,\"NIE\",\"TAK\")","v":"NIE"},{"$f":"IF(H440=0,\"NIE\",\"TAK\")","v":"TAK"},{"$f":"IF(I440=0,\"NIE\",\"TAK\")","v":"NIE"}]
[null,null,null,"starachowicki",86,"Pawłów",0,0,0,0,"NIE","NIE","NIE"]
[null,null,null,"starachowicki",87,"Wąchock",0,1,0,1,"NIE","TAK","NIE"]
[null,null,null,"staszowski",88,"Bogoria",0,0,0,0,"NIE","NIE","NIE"]
[null,null,null,"staszowski",89,"Łubnice",0,0,0,0,"NIE","NIE","NIE"]
[null,null,null,"staszowski",90,"Oleśnica",0,0,0,0,"NIE","NIE","NIE"]
[null,null,null,"staszowski",91,"Osiek",0,1,1,2,"NIE","TAK","TAK"]
[null,null,null,"staszowski",92,"Połaniec",0,0,0,0,"NIE","NIE","NIE"]
[null,null,null,"staszowski",93,"Rytwiany",0,0,0,0,"NIE","NIE","NIE"]
[null,null,null,"staszowski",94,"Staszów",0,0,0,0,"NIE","NIE","NIE"]
[null,null,null,"staszowski",95,"Szydłów",0,0,0,0,"NIE","NIE","NIE"]
[null,null,null,"włoszczowski",96,"Kluczewsko",0,0,0,0,"NIE","NIE","NIE"]
[null,null,null,"włoszczowski",97,"Krasocin",0,0,0,0,"NIE","NIE","NIE"]
[null,null,null,"włoszczowski",98,"Moskorzew",0,0,0,0,"NIE","NIE","NIE"]
[null,null,null,"włoszczowski",99,"Radków",0,0,0,0,"NIE","NIE","NIE"]
[null,null,null,"włoszczowski",100,"Secemin",0,0,0,0,"NIE","NIE","NIE"]
[null,null,null,"włoszczowski",101,"Włoszczowa",0,0,0,0,"NIE","NIE","NIE"]
[null,null,null,null,null,null,null,null,null,0,{"$f":"COUNTIF($J$356:$J$456,J457)","v":72}]
[null,null,null,null,null,null,null,null,null,1,{"$f":"COUNTIF($J$356:$J$456,J458)","v":22}]
[null,null,null,null,null,null,null,null,null,2,6]
[null,null,null,null,null,null,null,null,null,3,1]

{"sheet":"INSTRUKCJA","index":3,"n_rows":0,"n_cols":0,"rows_kept":0,"cut":false,"hidden":true,"merged":[]}

{"sheet":"Budowa (2)","index":4,"n_rows":312,"n_cols":53,"rows_kept":312,"cut":false,"hidden":true,"merged":[[311,0,311,25],[311,30,311,47],[308,1,308,25],[308,30,308,47],[309,1,309,25],[309,30,309,47],[310,0,310,25],[310,30,310,47],[304,2,304,25],[304,30,304,47],[305,2,305,25],[305,30,305,47],[307,0,307,22],[307,23,307,25],[307,30,307,47],[301,2,301,25],[301,30,301,47],[302,2,302,25],[302,30,302,47],[303,2,303,25],[303,30,303,47],[298,2,298,25],[298,30,298,47],[299,2,299,25],[299,30,299,47],[300,2,300,25],[300,30,300,47],[295,1,295,25],[295,30,295,47],[296,0,296,22],[296,23,296,25],[296,30,296,47],[297,1,297,25],[297,30,297,47],[292,1,292,25],[292,30,292,47],[293,0,293,22],[293,23,293,25],[293,30,293,47],[294,1,294,25],[294,30,294,47],[289,1,289,25],[289,30,289,47],[290,0,290,22],[290,23,290,25],[290,30,290,47],[291,1,291,25],[291,30,291,47],[286,2,286,25],[286,30,286,47],[287,2,287,25],[287,30,287,47],[288,2,288,25],[288,30,288,47],[283,0,283,25],[283,30,283,47],[284,0,284,22],[284,23,284,25],[284,30,284,47],[285,1,285,25],[285,30,285,47],[280,1,280,25],[280,30,280,47],[281,1,281,25],[281,30,281,47],[282,1,282,25],[282,30,282,47],[278,2,278,12],[278,13,278,16],[278,23,279,25],[278,30,278,47],[279,2,279,22],[279,30,279,47],[274,1,274,25],[274,30,274,47],[275,1,275,25],[275,30,275,47],[276,2,276,12],[276,13,276,16],[276,23,277,25],[276,30,276,47],[277,30,277,47],[271,1,271,25],[271,30,271,47],[272,0,272,25],[272,30,272,47],[273,1,273,25],[273,30,273,47],[268,1,268,25],[268,30,268,47],[269,0,269,25],[269,30,269,47],[270,1,270,25],[270,30,270,47],[265,2,265,22],[265,23,265,25],[265,30,265,47],[266,2,266,22],[266,23,267,25],[266,30,266,47],[267,2,267,22],[267,30,267,47],[263,2,263,22],[263,23,263,25],[263,30,263,47],[264,2,264,22],[264,23,264,25],[264,30,264,47],[261,2,261,22],[261,23,261,25],[261,30,261,47],[262,2,262,22],[262,23,262,25],[262,30,262,47],[259,2,259,22],[259,23,259,25],[259,30,259,47],[260,2,260,22],[260,23,260,25],[260,30,260,47],[257,2,257,22],[257,23,257,25],[257,30,257,47],[258,2,258,22],[258,23,258,25],[258,30,258,47],[254,2,254,25],[254,30,254,47],[255,2,255,22],[255,23,255,25],[255,30,255,47],[256,2,256,22],[256,23,256,25],[256,30,256,47],[252,2,252,22],[252,23,252,25],[252,30,252,47],[253,2,253,22],[253,23,253,25],[253,30,253,47],[249,1,249,25],[249,30,249,47],[250,1,250,25],[250,30,250,47],[251,2,251,22],[251,23,251,25],[251,30,251,47],[244,1,244,25],[244,30,244,47],[245,1,245,7],[245,8,245,13],[245,14,245,18],[245,19,245,25],[245,30,248,47],[246,1,246,7],[246,8,246,13],[246,14,246,18],[246,19,246,25],[247,1,247,7],[247,8,247,13],[247,14,247,18],[247,19,247,25],[248,1,248,7],[248,8,248,13],[248,14,248,18],[248,19,248,25],[242,1,243,1],[242,2,243,3],[242,4,242,6],[242,7,242,25],[243,4,243,6],[243,7,243,25],[240,1,241,1],[240,2,241,3],[240,4,240,6],[240,7,240,25],[241,4,241,6],[241,7,241,25],[237,1,237,25],[238,1,239,1],[238,2,239,3],[238,4,238,6],[238,7,238,25],[239,4,239,6],[239,7,239,25],[235,1,236,1],[235,2,236,3],[235,4,235,6],[235,7,235,25],[236,4,236,6],[236,7,236,25],[233,1,234,1],[233,2,234,3],[233,4,233,6],[233,7,233,25],[234,4,234,6],[234,7,234,25],[230,1,230,25],[231,1,232,1],[231,2,232,3],[231,4,231,6],[231,7,231,25],[232,4,232,6],[232,7,232,25],[228,1,229,1],[228,2,229,3],[228,4,228,6],[228,7,228,25],[229,4,229,6],[229,7,229,25],[226,1,227,1],[226,2,227,3],[226,4,226,6],[226,7,226,25],[227,4,227,6],[227,7,227,25],[222,1,222,4],[222,6,222,25],[222,30,222,47],[223,1,223,25],[224,1,225,1],[224,2,225,3],[224,4,224,6],[224,7,224,25],[225,4,225,6],[225,7,225,25],[218,1,218,25],[219,2,219,3],[219,4,219,25],[220,2,220,3],[220,4,220,25],[221,2,221,3],[221,4,221,25],[214,1,214,25],[215,2,215,3],[215,4,215,25],[216,2,216,3],[216,4,216,25],[217,2,217,3],[217,4,217,25],[212,1,213,1],[212,2,213,3],[212,4,212,6],[212,7,212,25],[213,4,213,6],[213,7,213,25],[210,1,211,1],[210,2,211,3],[210,4,210,6],[210,7,210,25],[211,4,211,6],[211,7,211,25],[207,1,207,25],[208,1,209,1],[208,2,209,3],[208,4,208,6],[208,7,208,25],[209,4,209,6],[209,7,209,25],[203,1,203,25],[204,2,204,3],[204,4,204,25],[205,2,205,3],[205,4,205,25],[206,2,206,3],[206,4,206,25],[201,1,202,1],[201,2,202,3],[201,4,201,6],[201,7,201,25],[202,4,202,6],[202,7,202,25],[199,1,200,1],[199,2,200,3],[199,4,199,6],[199,7,199,25],[200,4,200,6],[200,7,200,25],[196,1,196,25],[197,1,198,1],[197,2,198,3],[197,4,197,6],[197,7,197,25],[198,4,198,6],[198,7,198,25],[194,1,194,3],[194,4,194,5],[194,6,194,8],[194,9,194,11],[194,12,194,25],[195,1,195,3],[195,4,195,5],[195,6,195,8],[195,9,195,11],[195,12,195,25],[192,1,192,25],[193,1,193,3],[193,4,193,5],[193,6,193,8],[193,9,193,11],[193,12,193,25],[190,1,190,3],[190,4,190,5],[190,6,190,8],[190,9,190,11],[190,12,190,25],[191,1,191,3],[191,4,191,5],[191,6,191,8],[191,9,191,11],[191,12,191,25],[187,30,187,47],[188,1,188,25],[189,1,189,3],[189,4,189,5],[189,6,189,8],[189,9,189,11],[189,12,189,25],[180,3,180,23],[180,24,180,25],[181,3,181,23],[181,24,181,25],[187,1,187,4],[187,6,187,25],[177,3,177,23],[177,24,177,25],[178,3,178,23],[178,24,178,25],[179,3,179,23],[179,24,179,25],[173,1,173,25],[174,2,174,21],[174,22,174,25],[175,2,175,21],[175,22,175,25],[176,2,176,21],[176,22,176,25],[169,2,169,25],[170,1,170,3],[170,6,170,25],[171,3,171,23],[171,24,171,25],[172,3,172,23],[172,24,172,25],[165,1,165,3],[165,6,165,25],[166,2,166,25],[167,1,167,3],[167,6,167,25],[168,1,168,25],[162,0,162,7],[162,8,162,13],[162,14,162,19],[162,20,162,25],[163,1,163,25],[164,2,164,25],[160,0,160,7],[160,8,160,13],[160,14,160,19],[160,20,160,25],[161,0,161,7],[161,8,161,13],[161,14,161,19],[161,20,161,25],[157,0,157,20],[157,21,157,25],[158,0,158,25],[159,0,159,7],[159,8,159,13],[159,14,159,19],[159,20,159,25],[156,0,156,3],[156,4,156,10],[156,11,156,14],[156,15,156,18],[156,19,156,20],[156,21,156,25],[155,0,155,3],[155,4,155,10],[155,11,155,14],[155,15,155,18],[155,19,155,20],[155,21,155,25],[154,0,154,3],[154,4,154,10],[154,11,154,14],[154,15,154,18],[154,19,154,20],[154,21,154,25],[153,0,153,3],[153,4,153,10],[153,11,153,14],[153,15,153,18],[153,19,153,20],[153,21,153,25],[150,1,150,11],[150,12,150,14],[150,15,150,25],[151,1,151,4],[151,6,151,25],[152,0,152,25],[148,1,148,11],[148,12,148,14],[148,15,148,25],[149,1,149,11],[149,12,149,14],[149,15,149,25],[146,1,146,11],[146,12,146,14],[146,15,146,25],[147,1,147,11],[147,12,147,14],[147,15,147,25],[143,1,143,3],[143,4,143,25],[144,1,144,25],[145,1,145,11],[145,12,145,14],[145,15,145,25],[139,1,139,25],[140,1,140,25],[141,1,141,3],[141,4,141,25],[142,1,142,3],[142,4,142,25],[133,1,133,25],[134,1,134,25],[135,1,135,25],[136,1,136,25],[137,1,137,25],[138,1,138,25],[129,1,129,25],[130,1,130,12],[130,13,130,25],[131,1,131,12],[131,13,131,25],[132,1,132,12],[132,13,132,25],[127,1,128,1],[127,2,127,9],[127,10,127,12],[127,13,127,25],[128,2,128,9],[128,10,128,12],[128,13,128,25],[125,1,126,1],[125,2,125,9],[125,10,125,12],[125,13,125,25],[126,2,126,9],[126,10,126,12],[126,13,126,25],[123,1,124,1],[123,2,123,9],[123,10,123,12],[123,13,123,25],[124,2,124,9],[124,10,124,12],[124,13,124,25],[119,2,119,25],[120,0,120,25],[120,30,120,47],[121,1,121,4],[121,6,121,25],[122,1,122,25],[116,3,116,23],[116,24,116,25],[117,3,117,23],[117,24,117,25],[118,3,118,23],[118,24,118,25],[112,3,112,23],[112,24,112,25],[113,3,113,23],[113,24,113,25],[114,2,114,25],[115,3,115,23],[115,24,115,25],[109,3,109,23],[109,24,109,25],[110,3,110,23],[110,24,110,25],[111,3,111,23],[111,24,111,25],[105,2,105,23],[105,24,105,25],[105,30,105,47],[106,1,106,23],[107,1,107,25],[108,2,108,25],[103,2,103,21],[103,22,103,23],[103,24,103,25],[104,1,104,23],[104,24,104,25],[104,30,104,47],[101,2,101,21],[101,22,101,23],[101,24,101,25],[101,30,101,47],[102,2,102,21],[102,22,102,23],[102,24,102,25],[98,1,98,25],[98,30,98,47],[99,1,99,4],[99,6,99,25],[99,30,99,47],[100,1,100,25],[94,0,94,25],[95,1,95,4],[95,5,95,25],[96,1,96,4],[96,5,96,25],[97,1,97,4],[97,5,97,25],[90,0,90,25],[91,1,91,4],[91,5,91,25],[92,1,92,4],[92,5,92,25],[93,1,93,4],[93,5,93,25],[87,1,87,4],[87,5,87,25],[88,1,88,4],[88,5,88,25],[89,1,89,4],[89,5,89,25],[84,1,84,11],[84,12,84,19],[84,20,84,25],[85,1,85,25],[85,30,85,47],[86,0,86,25],[82,1,82,11],[82,12,82,19],[82,20,82,25],[83,1,83,11],[83,12,83,19],[83,20,83,25],[79,30,79,47],[80,1,80,11],[80,12,80,19],[80,20,80,25],[81,1,81,11],[81,12,81,19],[81,20,81,25],[78,1,78,8],[78,10,78,12],[78,14,78,16],[78,18,78,20],[78,22,78,24],[79,1,79,25],[76,2,76,4],[76,5,76,7],[76,8,76,11],[76,12,76,17],[76,18,76,25],[77,1,77,2],[77,3,77,25],[71,1,71,22],[71,23,71,25],[74,2,74,4],[74,5,74,7],[74,8,74,11],[74,12,74,17],[74,18,74,25],[75,2,75,4],[75,5,75,7],[75,8,75,11],[75,12,75,17],[75,18,75,25],[72,0,78,0],[72,2,72,4],[72,5,72,7],[72,8,72,11],[72,12,72,17],[64,1,64,22],[64,23,64,25],[65,0,66,0],[65,2,65,4],[65,5,65,7],[65,8,65,11],[65,12,65,17],[65,18,65,25],[66,2,66,4],[66,5,66,7],[72,18,72,25],[73,2,73,4],[73,5,73,7],[73,8,73,11],[73,12,73,17],[73,18,73,25],[66,8,66,11],[66,12,66,17],[66,18,66,25],[62,0,62,2],[62,3,62,12],[62,13,62,19],[62,20,62,25],[63,1,63,25],[63,30,63,47],[60,0,60,2],[60,3,60,7],[60,8,60,12],[60,13,60,19],[60,20,60,25],[61,0,61,2],[61,3,61,7],[61,8,61,12],[61,13,61,19],[61,20,61,25],[58,0,58,2],[58,3,58,7],[58,8,58,12],[58,13,58,19],[58,20,58,25],[59,0,59,2],[59,3,59,7],[59,8,59,12],[59,13,59,19],[59,20,59,25],[56,0,56,2],[56,3,56,7],[56,8,56,12],[56,13,56,19],[56,20,56,25],[57,0,57,2],[57,3,57,7],[57,8,57,12],[57,13,57,19],[57,20,57,25],[54,0,54,2],[54,3,54,7],[54,8,54,12],[54,13,54,19],[54,20,54,25],[55,0,55,2],[55,3,55,7],[55,8,55,12],[55,13,55,19],[55,20,55,25],[49,0,49,25],[50,1,50,25],[50,30,50,47],[51,0,51,25],[52,0,53,2],[52,3,52,12],[52,13,53,19],[52,20,53,25],[53,3,53,7],[53,8,53,12],[46,1,46,19],[46,20,46,25],[47,1,47,3],[47,4,47,25],[48,1,48,19],[48,20,48,25],[43,1,43,3],[43,4,43,25],[44,1,44,19],[44,20,44,25],[45,1,45,3],[45,4,45,25],[41,1,41,25],[41,30,41,47],[42,1,42,19],[42,20,42,25],[38,1,38,9],[38,10,38,17],[38,18,38,25],[38,30,38,47],[39,0,39,9],[39,10,39,17],[39,18,39,25],[39,30,39,47],[36,1,36,9],[36,10,36,17],[36,18,36,25],[36,30,36,47],[37,1,37,9],[37,10,37,17],[37,18,37,25],[37,30,37,47],[40,0,40,9],[40,10,40,25],[40,30,40,47],[34,1,34,9],[34,10,34,17],[34,18,34,25],[35,1,35,9],[35,10,35,17],[35,18,35,25],[31,30,31,47],[32,1,32,25],[32,30,32,47],[33,1,33,9],[33,10,33,17],[33,18,33,25],[35,30,35,47],[29,1,29,25],[29,30,29,47],[30,0,31,1],[30,2,30,9],[30,10,30,17],[30,18,30,25],[30,30,30,47],[31,2,31,9],[31,10,31,17],[31,18,31,25],[27,0,27,12],[27,13,27,15],[27,17,27,21],[27,22,27,25],[27,30,27,47],[28,0,28,15],[28,17,28,21],[28,22,28,25],[28,30,28,47],[24,0,24,25],[24,30,24,47],[25,1,25,25],[25,30,25,47],[26,0,26,2],[26,3,26,8],[26,9,26,25],[26,30,26,47],[23,2,23,4],[23,5,23,7],[23,8,23,11],[23,12,23,17],[23,18,23,25],[23,30,23,47],[22,2,22,4],[22,5,22,7],[22,8,22,11],[22,12,22,17],[22,18,22,25],[22,30,22,47],[21,2,21,4],[21,5,21,7],[21,8,21,11],[21,12,21,17],[21,18,21,25],[21,30,21,47],[19,1,19,25],[19,30,19,47],[20,2,20,4],[20,5,20,7],[20,8,20,11],[20,12,20,17],[20,18,20,25],[20,30,20,47],[16,0,16,2],[16,3,16,25],[16,30,16,47],[17,1,17,25],[17,30,17,47],[18,0,18,25],[18,30,18,47],[13,1,13,25],[13,30,13,47],[14,0,14,2],[14,3,14,25],[14,30,14,47],[15,0,15,2],[15,3,15,25],[15,30,15,47],[10,30,10,47],[11,14,11,16],[11,17,11,25],[11,30,11,47],[12,14,12,16],[12,17,12,25],[12,30,12,47],[8,14,8,25],[8,30,8,47],[9,14,9,16],[9,17,9,25],[9,30,9,47],[4,0,4,25],[5,0,5,25],[6,0,12,1],[6,2,12,13],[6,14,6,25],[6,26,12,28],[10,14,10,16],[10,17,10,25],[0,1,0,3],[0,4,0,25],[1,1,1,3],[1,4,1,25],[2,4,2,25],[3,0,3,3],[3,4,3,25],[6,30,7,47],[7,14,7,25]]}
["!"," UWAGA: ",null,null,"WNIOSEK NALEŻY ZŁOŻYĆ ZA PISMEM PRZEWODNIM.",null,null,null,null,null,null,null,null,null,null,null,null,null,null,null,null,null,null,null,null,null,null,null,null,null,"OK"]
[null,null,null,null,"PRZED WYPEŁNIENIEM WNIOSKU NALEŻY ZAPOZNAĆ SIĘ Z INSTRUKCJĄ ",null,null,null,null,null,null,null,null,null,null,null,null,null,null,null,null,null,null,null,null,null,null,null,null,null,"Wprowadzono błędną daną - proszę wprowadzić poprawną daną wybierając ją z listy rozwijanej"]
[null,null,null,null,"WYPEŁNIAJĄC WNIOSEK NALEŻY KIEROWAĆ SIĘ INSTRUKCJĄ POMOCNICZĄ I WSKAZÓWKAMI  - (szare pola po prawej stronie wniosku oraz zakładka INSTRUKCJA)."]
[null,null,null,null,"PLIK ZOSTAŁ ZABEZPIECZONY PRZED EDYTOWANIEM. \nPROSZĘ NIE USUWAĆ ZABEZPIECZEŃ I SAMODZIELNIE NIE EDYTOWAĆ PLIKU."]
["WNIOSEK O DOFINANSOWANIE W RAMACH RZĄDOWEGO FUNDUSZU ROZWOJU DRÓG"]
["BUDOWA / ROZBUDOWA / PRZEBUDOWA"]
["PIECZĘĆ WPŁYWU \nDO URZĘDU \nWOJEWÓDZKIEGO",null,null,null,null,null,null,null,null,null,null,null,null,null,"NR EWIDENCYJNY \nWNIOSKU",null,null,null,null,null,null,null,null,null,null,null,"POLA POMOCNICZE - liczniki znaków użytych\nw komórkach",null,null,null,"PIECZĘĆ WPŁYWU DO URZĘDU WOJEWÓDZKIEGO oraz NR EWIDENCYJNY WNIOSKU uzupełniają pracownicy Świętokrzyskiego Urzędu Wojewódzkiego."]
[null,null,null,null,null,null,null,null,null,null,null,null,null,null,"     /A /2024"]
[null,null,null,null,null,null,null,null,null,null,null,null,null,null,"JEDNOSTKA SAMORZĄDU TERYTORIALNEGO",null,null,null,null,null,null,null,null,null,null,null,null,null,null,null,"JEDNOSTKA SAMORZĄDU TERYTORIALNEGO:"]
[null,null,null,null,null,null,null,null,null,null,null,null,null,null,"JST  ",null,null,"POWIAT",null,null,null,null,null,null,null,null,null,null,null,null,{"$f":"IF(R10=\"\",\"Wybierz z listy rozwijanej jaka jednostka ubiega się o dofinansowanie (powiat czy gmina)\",IF(AND(R10<>\"\",AX10<>\"b\"),\"OK\",\"Wprowadzono błędną daną - proszę wprowadzić poprawną daną wybierając ją z listy rozwijanej\"))","v":"OK"},null,null,null,null,null,null,null,null,null,null,null,null,null,null,null,null,null,{"$f":"IF(AE10=\"\",\"\",IF(AE10=\"OK\",\"OK\",IF(AE10=\"Wprowadzono błędną daną - proszę wprowadzić poprawną daną wybierając ją z listy rozwijanej\",\"b\",\"w\")))","v":"OK"},{"$f":"IFERROR(IF(R10=\"\",\"\",VLOOKUP(R10,DANE!B4:B5,1,FALSE)),\"b\")","v":"POWIAT"}]
[null,null,null,null,null,null,null,null,null,null,null,null,null,null,"POWIAT  ",null,null,"Kazimierski",null,null,null,null,null,null,null,null,null,null,null,null,{"$f":"IF(AND(R10=\"\",R11=\"\"),\"\",IF(AND(R10=\"POWIAT\",R11=\"\"),\"Wybierz z listy rozwijanej powiat\",IF(AND(R10=\"\",R11<>\"\"),\"Wybierz z listy rozwijanej JST (pole powyżej)\",IF(AND(R10=\"GMINA\",R11=\"\"),\"Wybierz z listy rozwijanej powiat\",IF(AX11=\"b\",\"Wprowadzono błędną daną - proszę wprowadzić poprawną daną wybierając ją z listy rozwijanej\",\"OK\")))))","v":"OK"},null,null,null,null,null,null,null,null,null,null,null,null,null,null,null,null,null,{"$f":"IF(AE11=\"\",\"\",IF(AE11=\"OK\",\"OK\",IF(AE11=\"Wprowadzono błędną daną - proszę wprowadzić poprawną daną wybierając ją z listy rozwijanej\",\"b\",\"w\")))","v":"OK"},{"$f":"IFERROR(IF(R11=\"\",\"\",VLOOKUP(R11,POWIAT[POWIAT],1,FALSE)),\"b\")","v":"Kazimierski"}]
[null,null,null,null,null,null,null,null,null,null,null,null,null,null,"GMINA  ",null,null,null,null,null,null,null,null,null,null,null,null,null,null,null,{"$f":"IF(R10=\"POWIAT\",\"\",IF(AND(R10=\"GMINA\",R11=\"\"),\"\",IF(AND(R10=\"GMINA\",R11<>\"\",R12=\"\"),\"Wybierz z listy rozwijanej gminę\",IF(AND(R10=\"\",R11<>\"\",R12<>\"\"),\"Wybierz z listy rozwijanej JST (dwa pola powyżej)\",IF(AND(R10=\"\",R11=\"\",R12<>\"\"),\"Wybierz z listy rozwijanej JST (dwa pola powyżej) oraz POWIAT (pole powyżej)\",IF(AND(R10=\"\",R11=\"\",R12=\"\"),\"\",IF(AND(R10<>\"\",AW10=\"b\"),\"\",\"OK\")))))))","v":""},null,null,null,null,null,null,null,null,null,null,null,null,null,null,null,null,null,{"$f":"IF(AE12=\"\",\"\",IF(AE12=\"OK\",\"OK\",IF(AE12=\"Wprowadzono błędną daną - proszę wprowadzić poprawną daną wybierając ją z listy rozwijanej\",\"b\",\"w\")))","v":""}]
[null,null,null,null,null,null,null,null,null,null,null,null,null,null,"NR TERC  ",null,null,{"$f":"IFERROR(VLOOKUP(CONCATENATE(R11&R12),DANE!$B$70:$K$184,6,FALSE),\"\")","v":2603},null,null,null,null,null,null,null,null,null,null,null,null,{"$f":"IF(R13=\"\",\"NR TERC ładuje się automatycznie po uzupełnieniu powyższych danych dotyczących jst\",IF(AX13=4,\"Załadowano NR TERC dla powiatu\",IF(AX13=7,\"Załadowano NR TERC dla gminy\",\"\")))","v":"Załadowano NR TERC dla powiatu"},null,null,null,null,null,null,null,null,null,null,null,null,null,null,null,null,null,null,{"$f":"LEN(R13)","v":4}]
["1. ","DANE JEDNOSTKI SAMORZĄDU TERYTORIALNEGO",null,null,null,null,null,null,null,null,null,null,null,null,null,null,null,null,null,null,null,null,null,null,null,null,null,"↓",null,null,"DANE JEDNOSTKI SAMORZĄDU TERYTORIALNEGO:"]
["NAZWA ",null,null,null,null,null,null,null,null,null,null,null,null,null,null,null,null,null,null,null,null,null,null,null,null,null,{"$f":"LEN(D15)","v":0},"z",90,null,"Wpisz nazwę jednostki samorządu terytorialnego ubiegającej się o dofinansowanie (można użyć do 90 znaków)"]
["ADRES ",null,null,null,null,null,null,null,null,null,null,null,null,null,null,null,null,null,null,null,null,null,null,null,null,null,{"$f":"LEN(D16)","v":0},"z",90,null,"Wpisz adres jednostki samorządu terytorialnego ubiegającej się o dofinansowanie  (można użyć do 90 znaków)"]
["NIP ",null,null,null,null,null,null,null,null,null,null,null,null,null,null,null,null,null,null,null,null,null,null,null,null,null,0,"z",90,null,"Wpisz numer NIP jednostki samorządu terytorialnego ubiegającej się o dofinansowanie  (można użyć do 90 znaków)"]
["2. ","TYTUŁ ZADANIA ",null,null,null,null,null,null,null,null,null,null,null,null,null,null,null,null,null,null,null,null,null,null,null,null,null,null,null,null,"Uzupełnij poniższe dane dotyczące tytułu zadania zgłoszonego do dofinansowania:"]
[null,null,null,null,null,null,null,null,null,null,null,null,null,null,null,null,null,null,null,null,null,null,null,null,null,null,{"$f":"LEN(A19)","v":0},"z",300,null,"Wpisz tytuł zadania (można użyć do 300 wszystkich znaków)\nWAŻNE:\nTytuł powinien identyfikować zadanie (rodzaj robót i ich lokalizację: nazwa ulicy, nr drogi i lokalizacja drogi) oraz sugerować klasyfikację środków (remont / budowa / rozbudowa / przebudowa)"]
["8. \n","RODZAJ I LOKALIZACJA ZADANIA \n(kategoria, numer i lokalizacja drogi, na której znajduje się realizowane zadanie)",null,null,null,null,null,null,null,null,null,null,null,null,null,null,null,null,null,null,null,null,null,null,null,null,null,null,null,null,"Uzupełnij poniższe dane dotyczące rodzaju i lokalizacji zadania:"]
[null,"L.p.","KATEGORIA",null,null,"NR DROGI",null,null,"POWIAT ",null,null,null,"GMINA",null,null,null,null,null,"MIEJSCOWOŚĆ"]
[null,1]
[null,2]
[null,3]
["(miejsce na dodatkowe informacje np., w przypadku, gdy droga biegnie przez więcej niż jedną gminę)"]
["3. ","PRZEWIDYWANY OKRES REALIZACJI ZADANIA (rozpoczęcie i zakończenie realizacji zadania)",null,null,null,null,null,null,null,null,null,null,null,null,null,null,null,null,null,null,null,null,null,null,null,null,null,null,null,null,"Uzupełnij poniższe dane dotyczące przewidywanego okresu realizacji zgloszonego zadania:"]
["Zadanie ",null,null,"wieloletnie",null,null,null,null,null,{"$f":"IF(D27=\"\",\"\",IF(D27=\"jednoroczne\",\",  którego okres realizacji nie przekracza 12 miesięcy\",\" , którego okres realizacji przekracza 12 miesięcy\"))","v":" , którego okres realizacji przekracza 12 miesięcy"},null,null,null,null,null,null,null,null,null,null,null,null,null,null,null,null,null,null,null,null,"Wybierz z listy rozwijanej rodzaj zadania (jednoroczne / wieloletnie)"]
[null,null,null,null,null,null,null,null,null,null,null,null,null,"realizowane ",null,null,"od ","czerwca",null,null,null,null,2024,null,null,null,null,null,null,null,"Wybierz z listy rozwijanej miesiąc rozpoczęcia realizacji zadania",null,null,null,null,null,null,null,null,null,null,null,null,null,null,null,null,null,null,null,{"$f":"IF(R28=\"stycznia\",1,IF(R28=\"lutego\",2,IF(R28=\"marca\",3,IF(R28=\"kwietnia\",4,IF(R28=\"maja\",5,IF(R28=\"czerwca\",6,IF(R28=\"lipca\",7,IF(R28=\"sierpnia\",8,IF(R28=\"września\",9,IF(R28=\"października\",10,IF(R28=\"listopada\",11,IF(R28=\"grudnia\",12,\"\"))))))))))))","v":6},{"$f":"DATE(W28,AY28,1)","v":"2024-06-01"},{"$f":"DATEDIF(AZ28,AZ29,\"m\")","v":6}]
[null,null,null,null,null,null,null,null,null,null,null,null,null,null,null,null,"do ","grudnia",null,null,null,null,2024,null,null,null,null,null,null,null,"Wybierz z listy rozwijanej miesiąc i rok zakończenia zadania",null,null,null,null,null,null,null,null,null,null,null,null,null,null,null,null,null,null,null,{"$f":"IF(R29=\"stycznia\",1,IF(R29=\"lutego\",2,IF(R29=\"marca\",3,IF(R29=\"kwietnia\",4,IF(R29=\"maja\",5,IF(R29=\"czerwca\",6,IF(R29=\"lipca\",7,IF(R29=\"sierpnia\",8,IF(R29=\"września\",9,IF(R29=\"października\",10,IF(R29=\"listopada\",11,IF(R29=\"grudnia\",12,\"\"))))))))))))","v":12},{"$f":"DATE(W29,AY29,1)","v":"2024-12-01"},{"$f":"IFERROR(IF(AND(BA28<12,BA28>0),\"OK\",\"BŁĄD\"),\"liczba\")","v":"OK"}]
["4. ","RODZAJ ROBÓT (klasyfikacja wydatków w zależności od rodzaju robót)",null,null,null,null,null,null,null,null,null,null,null,null,null,null,null,null,null,null,null,null,null,null,null,null,null,null,null,null,"Uzupełnij poniższe dane dotyczące klasyfikacji wydatków w zależności od rodzaju robót zgloszonego zadania:"]
[null,null,"BUDOWA",null,null,null,null,null,null,null,"ROZBUDOWA",null,null,null,null,null,null,null,"PRZEBUDOWA",null,null,null,null,null,null,null,null,null,null,null,"Określ klasyfikację wydatków w zależności od rodzaju robót (budowa / rozbudowa / przebudowa)"]
[null,null,"TAK",null,null,null,null,null,null,null,null,null,null,null,null,null,null,null,null,null,null,null,null,null,null,null,null,null,null,null,"Czy w tym przypadku można wybrać jedną opcję czy więcej (np. budowa i przebudowa)"]
["5. ","PRZEWIDYWANY HARMONOGRAM RZECZOWO-FINANSOWY REALIZACJI ZADANIA",null,null,null,null,null,null,null,null,null,null,null,null,null,null,null,null,null,null,null,null,null,null,null,null,null,null,null,null,"Uzupełnij poniższe dane dotyczące harmonogramu rzeczowo-finansowego realizacji zadania:"]
["Lp.","ELEMENTY I RODZAJE ROBÓT",null,null,null,null,null,null,null,null,"KOSZT KWALIFIKOWALNY\n [zł]",null,null,null,null,null,null,null,"KOSZT NIEKWALIFIKOWALNY\n [zł]"]
["1.","Przygotowanie dokumentacji (tylko w trybie \"zaprojektuj i wybuduj\" i tylko dla zadań wieloletnich)"]
["2.","Roboty budowlane",null,null,null,null,null,null,null,null,null,null,null,null,null,null,null,null,null,null,null,null,null,null,null,null,null,null,null,null,"Wpisz koszt brutto robót budowlanych w podziale na wydatki kwalifikowalne i niekwalifikowalne"]
["3.","Nadzór inwestorski (wszystkie branże)",null,null,null,null,null,null,null,null,null,null,null,null,null,null,null,null,null,null,null,null,null,null,null,null,null,null,null,null,"Wpisz koszt brutto nadzoru inwestorskiego (wszystkie branże) w podziale na wydatki kwalifikowalne i niekwalifikowalne"]
["4.","Tablice informacyjne",null,null,null,null,null,null,null,null,null,null,null,null,null,null,null,null,null,null,null,null,null,null,null,null,null,null,null,null,"Wpisz koszt brutto tablic informacyjnych w podziale na wydatki kwalifikowalne i niekwalifikowalne"]
["5.","Dodatkowy obowiązek informacyjny\n(jeśli dotyczy)",null,null,null,null,null,null,null,null,null,null,null,null,null,null,null,null,null,null,null,null,null,null,null,null,null,null,null,null,"Czy uwzględniać dodatkowy obowiązek informacyjny i czy uwzględniamy w kosztach kwalifikacyjnych\nWpisz koszt brutto prowadzenia działań informacyjnych (innych niż tablice informacyjne) o realizacji zadania (o wartości powyżej 1 mln zł) przy udziale dofinansowania ze środków RFRD "]
["SUMA ",null,null,null,null,null,null,null,null,null,{"$f":"SUM(K35:R39)","v":0},null,null,null,null,null,null,null,{"$f":"SUM(S35:Z39)","v":0},null,null,null,null,null,null,null,null,null,null,null,"Sumy kosztów kwalifikowalnych i niekwalifikowalnych załadują się automatycznie po wypełnieniu danych dotyczących elementów i rodzajów robót"]
["OGÓŁEM ",null,null,null,null,null,null,null,null,null,{"$f":"SUM(K40,S40)","v":0},null,null,null,null,null,null,null,null,null,null,null,null,null,null,null,null,null,null,null,"Koszt realizacji zadania ogółem załaduje się automatycznie"]
["6. ","PRZEWIDYWANE KOSZTY REALIZACJI ZADANIA BRUTTO - WYDATKI KWALIFIKOWALNE [zł] 1\n",null,null,null,null,null,null,null,null,null,null,null,null,null,null,null,null,null,null,null,null,null,null,null,null,null,null,null,null,"Uzupełnij poniższe dane dotyczące przewidywanych kosztów realizacji zadania:"]
["A.","ŁĄCZNY KOSZT REALIZACJI ZADANIA [zł]",null,null,null,null,null,null,null,null,null,null,null,null,null,null,null,null,null,null,{"$f":"IF(K40=0,\"\",K40)","v":""}]
[null,"SŁOWNIE :",null,null,{"$f":"IF(OR(U43=0,U43=\"\"),\"\",Slownie(U43))","v":""}]
["B.","KWOTA WNIOSKOWANEGO DOFINANSOWANIA [zł]",null,null,null,null,null,null,null,null,null,null,null,null,null,null,null,null,null,null,{"$f":"IF(OR(U43=\"\",U49=\"\"),\"\",FLOOR((U43*U49),1))","v":""}]
[null,"SŁOWNIE :",null,null,{"$f":"IF(OR(U45=0,U45=\"\"),\" \",Slownie(U45))","v":" "}]
["C.","KWOTA WKŁADU WŁASNEGO [zł]",null,null,null,null,null,null,null,null,null,null,null,null,null,null,null,null,null,null,{"$f":"IF(OR(U43=\"\",U49=\"\"),\"\",U43-U45)","v":""}]
[null,"SŁOWNIE :",null,null,{"$f":"IF(OR(U47=0,U47=\"\"),\" \",Slownie(U47))","v":" "}]
["D.","UDZIAŁ DOFINANSOWANIA W KOSZTACH KWALIFIKOWALNYCH ZADANIA [%]",null,null,null,null,null,null,null,null,null,null,null,null,null,null,null,null,null,null,{"$f":"IFERROR(VLOOKUP(CONCATENATE(#REF!&#REF!),DANE!$B$70:$K$184,10,FALSE),\"\")","v":""}]
["1WYDATKI KWALIFIKOWALNE [zł]\nw tym: koszty związane z przebudową jezdni w obszarze oddziaływania przejść dla pieszych/przejazdów dla rowerów (usunięcie kolizji z sieciami, przebudowa skrzyżowania, zatoki autobusowej lub przystanku), koszty budowy/przebudowy przejść dla pieszych/przejazdów dla rowerów (budowa/przebudowa sieci, osłon przeciwhałasowych, tablicy informującej o prędkości/fotoradaru, oświetlenia ulicznego), koszt nadzoru inwestorskiego (jeśli wymagają tego przepisy) oraz koszt monitoringu przejścia dla pieszych/przejazdu dla rowerów/drogi."]
["7. ","PRZEWIDYWANY TERMIN DOKONYWANIA WYPŁAT NA RZECZ WYKONAWCY ZADANIA",null,null,null,null,null,null,null,null,null,null,null,null,null,null,null,null,null,null,null,null,null,null,null,null,null,null,null,null,"Uzupełnij poniższe dane dotyczące przewidywanego terminu dokonywania wypłat na rzecz zadania:"]
["KWOTA DO WYPŁATY W DANYM ROKU NA RZECZ WYKONAWCY ZADANIA "]
["ROK",null,null,"KWALIFIKOWALNE",null,null,null,null,null,null,null,null,null,"NIEKWALIFIKOWALNE",null,null,null,null,null,null,"OGÓŁEM"]
[null,null,null,"DOFINANSOWANIE",null,null,null,null,"ŚRODKI WŁASNE"]
[2024,null,null,null,null,null,null,null,null,null,null,null,null,null,null,null,null,null,null,null,{"$f":"IF(AND(D55=\"\",I55=\"\",N55=\"\"),\"\",SUM(D55:T55))","v":""}]
[2025,null,null,null,null,null,null,null,null,null,null,null,null,null,null,null,null,null,null,null,""]
[2026,null,null,null,null,null,null,null,null,null,null,null,null,null,null,null,null,null,null,null,""]
[2027,null,null,null,null,null,null,null,null,null,null,null,null,null,null,null,null,null,null,null,""]
[2028,null,null,null,null,null,null,null,null,null,null,null,null,null,null,null,null,null,null,null,""]
[2029,null,null,null,null,null,null,null,null,null,null,null,null,null,null,null,null,null,null,null,""]
[2030,null,null,null,null,null,null,null,null,null,null,null,null,null,null,null,null,null,null,null,""]
["SUMA",null,null,{"$f":"SUM(D55:H61)","v":0},null,null,null,null,{"$f":"SUM(I55:M61)","v":0},null,null,null,null,null,null,null,null,null,null,null,null,null,null,null,null,null,null,null,null,null,null,null,null,null,null,null,null,null,null,null,null,null,null,null,null,null,null,null,null,null,{"$f":"IF(U45=\"\",\"ok\",IF(D62<>U45,\"błąd\",\"ok\"))","v":"ok"},{"$f":"IF(U47=\"\",\"ok\",IF(I62<>U47,\"błąd\",\"ok\"))","v":"ok"}]
["ŁĄCZNIE",null,null,{"$f":"D62+I62","v":0},null,null,null,null,null,null,null,null,null,{"$f":"SUM(N55:T56)","v":0},null,null,null,null,null,null,{"$f":"SUM(U55:Z61)","v":0},null,null,null,null,null,null,null,null,null,null,null,null,null,null,null,null,null,null,null,null,null,null,null,null,null,null,null,null,null,{"$f":"IF(U43=\"\",\"ok\",IF(D63<>U43,\"błąd\",\"ok\"))","v":"ok"},{"$f":"IF(N63<>S40,\"błąd\",\"ok\")","v":"ok"},{"$f":"IF(U63<>K41,\"błąd\",\"ok\")","v":"ok"}]
["8. \n","RODZAJ I LOKALIZACJA ZADANIA \n(kategoria, numer i lokalizacja drogi, na której znajduje się realizowane zadanie)",null,null,null,null,null,null,null,null,null,null,null,null,null,null,null,null,null,null,null,null,null,null,null,null,null,null,null,null,"Uzupełnij poniższe dane dotyczące rodzaju i lokalizacji zadania:"]
["•  ","zadanie realizowane w obrębie jednej drogi publicznej (o jednym numerze)"]
[null,"L.p.","KATEGORIA",null,null,"NR DROGI",null,null,"POWIAT ",null,null,null,"GMINA",null,null,null,null,null,"MIEJSCOWOŚĆ"]
[null,1]
[]
[]
[]
[]
["•  ","zadanie realizowane w obrębie jednego skrzyżowania (przejścia dla pieszych i przejazdy dla rowerów)"]
[null,"L.p.","KATEGORIA",null,null,"NR DROGI",null,null,"POWIAT ",null,null,null,"GMINA",null,null,null,null,null,"MIEJSCOWOŚĆ"]
[null,1]
[null,2]
[null,3]
[null,4]
[null,"oraz "]
[null,"o numerze drogi/dróg",null,null,null,null,null,null,null,1,null,null,null,2,null,null,null,3,null,null,null,4]
["9.\n","INFORMACJA O DOPEŁNIENIU WYMOGÓW, JAKIE W ZWIĄZKU Z PLANOWANĄ REALIZACJĄ ZADANIA WYNIKAJĄ Z OBOWIĄZUJĄCYCH PRZEPISÓW PRAWA",null,null,null,null,null,null,null,null,null,null,null,null,null,null,null,null,null,null,null,null,null,null,null,null,null,null,null,null,"Uzupełnij poniższe dane dotyczące informacji o dopełnieniu wymogów, jakie wynikają z obowiązujących przepisów prawa:"]
[null,"Rodzaj dokumentu",null,null,null,null,null,null,null,null,null,null,"nr dokumentu / \nznak dokumentu \n(jeśli dotyczy)",null,null,null,null,null,null,null,"data dokumentu (wydania, zatwierdzenia lub opracowania) \nw formacie \ndd.mm.rrrr"]
["1.","Prawomocna decyzja o pozwoleniu na budowę lub \nprawomocna decyzja o zezwoleniu na realizację inwestycji drogowej \nlub \nzgłoszenie robót budowlanych z potwierdzeniem/poświadczeniem o braku sprzeciwu"]
["2.","Projekt budowlany \nlub \nopracowanie do zgłoszenia robót budowlanych"]
["3.","Kosztorys inwestorski"]
["4.","Zatwierdzony projekt stałej organizacji ruchu lub pismo organu uprawnionego do zatwierdzenia organizacji ruchu"]
["10.\n ","OPIS ZADANIA OBEJMUJĄCY STAN ISTNIEJĄCY ORAZ PROJEKTOWANY WRAZ Z UZASADNIENIEM REALIZACJI ZADANIA",null,null,null,null,null,null,null,null,null,null,null,null,null,null,null,null,null,null,null,null,null,null,null,null,null,null,null,null,"Uzupełnij poniższe dane dotyczące opisu stanu istniejącego oraz projektowanego wraz z uzasadnieniem realizacji zadania:"]
["ODCINEK 1:"]
[null,"stan istniejący",null,null,null,null,null,null,null,null,null,null,null,null,null,null,null,null,null,null,null,null,null,null,null,null,{"$f":"LEN(F88)","v":0},"z",400]
[null,"stan projektowany",null,null,null,null,null,null,null,null,null,null,null,null,null,null,null,null,null,null,null,null,null,null,null,null,{"$f":"LEN(F89)","v":0},"z",400]
[null,"uzasadnienie",null,null,null,null,null,null,null,null,null,null,null,null,null,null,null,null,null,null,null,null,null,null,null,null,0,"z",400]
["ODCINEK 2:"]
[null,"stan istniejący",null,null,null,null,null,null,null,null,null,null,null,null,null,null,null,null,null,null,null,null,null,null,null,null,{"$f":"LEN(F92)","v":0},"z",400]
[null,"stan projektowany",null,null,null,null,null,null,null,null,null,null,null,null,null,null,null,null,null,null,null,null,null,null,null,null,{"$f":"LEN(F93)","v":0},"z",400]
[null,"uzasadnienie",null,null,null,null,null,null,null,null,null,null,null,null,null,null,null,null,null,null,null,null,null,null,null,null,0,"z",400]
["ODCINEK 3:"]
[null,"stan istniejący",null,null,null,null,null,null,null,null,null,null,null,null,null,null,null,null,null,null,null,null,null,null,null,null,{"$f":"LEN(F96)","v":0},"z",400]
[null,"stan projektowany",null,null,null,null,null,null,null,null,null,null,null,null,null,null,null,null,null,null,null,null,null,null,null,null,{"$f":"LEN(F97)","v":0},"z",400]
[null,"uzasadnienie",null,null,null,null,null,null,null,null,null,null,null,null,null,null,null,null,null,null,null,null,null,null,null,null,0,"z",400]
["11. ","CHARAKTERYSTYKA ZADANIA WEDŁUG KRYTERIÓW OCENY MERYTORYCZNEJ",null,null,null,null,null,null,null,null,null,null,null,null,null,null,null,null,null,null,null,null,null,null,null,null,null,null,null,null,"CHARAKTERYSTYKA ZADANIA WEDŁUG KRYTERIÓW OCENY MERYTORYCZNEJ"]
[null,"Kryterium nr 1",null,null,null,"-","Wpływ zadania na poprawę bezpieczeństwa ruchu drogowego ",null,null,null,null,null,null,null,null,null,null,null,null,null,null,null,null,null,null,null,null,null,null,null,"Kryterium 1 - Wpływ zadania na poprawę bezpieczeństwa ruchu drogowego "]
["A. ","Ryzyko społeczne wypadków [TAK/NIE]\nZadanie zlokalizowane jest na drodze publicznej przebiegającej przez powiat o dużym poziomie ryzyka społecznego:"]
[null,"•","wypadki drogowe ogółem",null,null,null,null,null,null,null,null,null,null,null,null,null,null,null,null,null,null,null,{"$f":"IFERROR(VLOOKUP(#REF!,DANE!$F$299:$P$311,2,FALSE),\"\")","v":""},null,{"$f":"IF(OR(W102=\"D\",W102=\"E\"),\"TAK\",IF(W102=\"\",\"\",\"NIE\"))","v":""},null,null,null,null,null,{"$f":"IF(R102=\"\",\"NR TERC ładuje się automatycznie po uzupełnieniu powyższych danych dotyczących jst\",IF(AX102=4,\"Załadowano NR TERC dla powiatu\",IF(AX102=7,\"Załadowano NR TERC dla gminy\",\"\")))","v":"NR TERC ładuje się automatycznie po uzupełnieniu powyższych danych dotyczących jst"}]
[null,"•","wypadki drogowe z udziałem pieszych",null,null,null,null,null,null,null,null,null,null,null,null,null,null,null,null,null,null,null,{"$f":"IFERROR(VLOOKUP(#REF!,DANE!$F$299:$P$311,2,FALSE),\"\")","v":""},null,{"$f":"IF(OR(W103=\"D\",W103=\"E\"),\"TAK\",IF(W103=\"\",\"\",\"NIE\"))","v":""}]
[null,"•","ofiary śmiertelne",null,null,null,null,null,null,null,null,null,null,null,null,null,null,null,null,null,null,null,{"$f":"IFERROR(VLOOKUP(#REF!,DANE!$F$299:$P$311,2,FALSE),\"\")","v":""},null,{"$f":"IF(OR(W104=\"D\",W104=\"E\"),\"TAK\",IF(W104=\"\",\"\",\"NIE\"))","v":""}]
["B.\n\n","Realizacja projektu obejmuje zgłoszenie określone w Programie Likwidacji Miejsc Niebezpiecznych na Drogach Lokalnych w województwie świętokrzyskim 2019 - 2023 Bezpieczni na 5+ [TAK/NIE]",null,null,null,null,null,null,null,null,null,null,null,null,null,null,null,null,null,null,null,null,null,null,null,null,null,null,null,null,"Czy jeszcze będziemy stosować to kryterium?\nWybierz z listy rozwijanej [TAK/NIE], czy realizacja projektu obejmuje zgłoszenie określone w Programie Likwidacji Miejsc Niebezpiecznych na Drogach Lokalnych w województwie świętokrzyskim (2019-2023) Bezpieczni na 5+"]
[null,"•","Pozycja, pod którą zgłoszenie znajduje się w Programie Bezpieczni na 5+",null,null,null,null,null,null,null,null,null,null,null,null,null,null,null,null,null,null,null,null,null,null,null,null,null,null,null,{"$f":"IF(Y105=\"tak\",\"Podaj pozycję, pod którą zgłoszenie znajduje się na liście Programu Bezpieczni na 5+\",IF(Y105=\"nie\",\"OK\",\"\"))","v":""}]
["C. ","Rozwiązania zwiększające bezpieczeństwo uczestników ruchu drogowego (spełniające wymogi Wytycznych do projektowania infrastruktury dla pieszych WRD-41-3) [TAK/NIE]"]
[null,"ROZWIAZANIA DODATKOWE/SPECJALNE"]
[null,"1)","przejścia dla pieszych o podwyższonym standardzie bezpieczeństwa, w tym:"]
[null,null,"•","oświetlenie przejścia dla pieszych lub przejazdu dla rowerzystów"]
[null,null,"•","przejście dla pieszych lub przejazd dla rowerzystów z wyspą dzieląca (tzw. azylem)"]
[null,null,"•","wyniesione przejście dla pieszych lub przejazd dla rowerzystów"]
[null,null,"•","sygnalizacja świetlna na przejściu dla pieszych lub na przejeździe dla rowerzystów"]
[null,null,"•","oznakowanie aktywne lub sygnalizacja ostrzegawcza na przejściu dla pieszych lub na przejeździe dla rowerzystów"]
[null,"2)","inne rozwiązania w zakresie bezpieczeństwa niezwiązane z przejściem dla pieszych:"]
[null,null,"•","wyniesione skrzyżowanie"]
[null,null,"•","wyspa dzieląca na jezdni, wraz z odgięciem toru jazdy, na wjeździe do miejscowości "]
[null,null,"•","radar ze znakiem/tablicą zmiennej treści (aktywną), informującym o prędkości ruchu pojazdu"]
[null,null,"•","oznakowanie aktywne na dojeździe do przejazdu kolejowo-drogowego "]
[null,"3)","inne rozwiązania zwiększające bezpieczeństwo uczestników ruchu drogowego, nie wymienione powyżej:"]
["(miejsce na dodatkowe informacje np., w przypadku, gdy droga biegnie przez więcej niż jedną gminę)"]
[null,"Kryterium nr 2",null,null,null,"-","Znaczenie zadania dla rozwoju spójnej sieci dróg publicznych "]
["A.\n ","Odcinek ma bezpośrednie połączenie z drogą wyższego rzędu lub stanowi kontynuację remontu drogi \nw ramach wcześniej złożonych wniosków o dofinansowanie w ramach RFRD"]
[null,"ODCINEK 1","bezpośrednie połączenie z drogą wyższego rzędu",null,null,null,null,null,null,null,null,null,null,null,null,null,null,null,null,null,null,null,null,null,null,null,{"$f":"LEN(N124)","v":0},"z",60]
[null,null,"kontynuacja drogi w ramach wcześniejszych umów dofinansowania z RFRD",null,null,null,null,null,null,null,null,null,null,null,null,null,null,null,null,null,null,null,null,null,null,null,0,"z",90]
[null,"ODCINEK 2","bezpośrednie połączenie z drogą wyższego rzędu",null,null,null,null,null,null,null,null,null,null,null,null,null,null,null,null,null,null,null,null,null,null,null,0,"z",60]
[null,null,"kontynuacja drogi w ramach wcześniejszych umów dofinansowania z RFRD",null,null,null,null,null,null,null,null,null,null,null,null,null,null,null,null,null,null,null,null,null,null,null,0,"z",90]
[null,"ODCINEK 3","bezpośrednie połączenie z drogą wyższego rzędu",null,null,null,null,null,null,null,null,null,null,null,null,null,null,null,null,null,null,null,null,null,null,null,0,"z",60]
[null,null,"kontynuacja drogi w ramach wcześniejszych umów dofinansowania z RFRD",null,null,null,null,null,null,null,null,null,null,null,null,null,null,null,null,null,null,null,null,null,null,null,0,"z",90]
["B. \n","Odcinek biegnie przez gminę, dla której wskaźnik peryferyjności czasowej jest mniejszy niż 30 min., mieści się w przedziale 30 do 50 minut, jest większy niż 50 min."]
[null,"ODCINEK 1   wskaźnik peryferyjności czasowej:"]
[null,"ODCINEK 2   wskaźnik peryferyjności czasowej:"]
[null,"ODCINEK 3   wskaźnik peryferyjności czasowej:"]
["C. \n","Przewidywane znaczenie wnioskowanego odcinka drogi dla rozwoju społeczno - gospodarczego województwa"]
[null,"ODCINEK 1:"]
[null,null,null,null,null,null,null,null,null,null,null,null,null,null,null,null,null,null,null,null,null,null,null,null,null,null,{"$f":"LEN(A136)","v":0},"z",400]
[null,"ODCINEK 2:"]
[null,null,null,null,null,null,null,null,null,null,null,null,null,null,null,null,null,null,null,null,null,null,null,null,null,null,{"$f":"LEN(A138)","v":0},"z",400]
[null,"ODCINEK 3:"]
[null,null,null,null,null,null,null,null,null,null,null,null,null,null,null,null,null,null,null,null,null,null,null,null,null,null,{"$f":"LEN(A140)","v":0},"z",400]
["D. ","Odcinek stanowić będzie zamknięcie spójnego ciągu komunikacyjnego"]
[null,null,null,null,null,null,null,null,null,null,null,null,null,null,null,null,null,null,null,null,null,null,null,null,null,null,{"$f":"LEN(E142)","v":0},"z",250]
[null,null,null,null,null,null,null,null,null,null,null,null,null,null,null,null,null,null,null,null,null,null,null,null,null,null,0,"z",250]
[null,null,null,null,null,null,null,null,null,null,null,null,null,null,null,null,null,null,null,null,null,null,null,null,null,null,{"$f":"LEN(E144)","v":0},"z",250]
["E.\n ","Droga została uszkodzona w wyniku działania niekorzystnych zjawisk atmosferycznych i jest ujęta \nw protokole strat potwierdzonym przez Wojewodę Świętokrzyskiego"]
[null,"uszkodzona w wyniku działania niekorzystnych zjawisk atmosferycznych ",null,null,null,null,null,null,null,null,null,null,null,null,null,null,null,null,null,null,null,null,null,null,null,null,{"$f":"LEN(P146)","v":0},"z",60]
[null,"i ujęta w protokole strat potwierdzonym przez Wojewodę Świętokrzyskiego",null,null,null,null,null,null,null,null,null,null,null,null,null,null,null,null,null,null,null,null,null,null,null,null,0,"z",60]
[null,"uszkodzona w wyniku działania niekorzystnych zjawisk atmosferycznych ",null,null,null,null,null,null,null,null,null,null,null,null,null,null,null,null,null,null,null,null,null,null,null,null,0,"z",60]
[null,"i ujęta w protokole strat potwierdzonym przez Wojewodę Świętokrzyskiego",null,null,null,null,null,null,null,null,null,null,null,null,null,null,null,null,null,null,null,null,null,null,null,null,0,"z",60]
[null,"uszkodzona w wyniku działania niekorzystnych zjawisk atmosferycznych ",null,null,null,null,null,null,null,null,null,null,null,null,null,null,null,null,null,null,null,null,null,null,null,null,0,"z",60]
[null,"i ujęta w protokole strat potwierdzonym przez Wojewodę Świętokrzyskiego",null,null,null,null,null,null,null,null,null,null,null,null,null,null,null,null,null,null,null,null,null,null,null,null,0,"z",60]
[null,"Kryterium nr 3\n",null,null,null,"-","Podnoszenie standardów technicznych dróg oraz zachowanie ich jednorodności pod względem spełniania tych standardów"]
["DANE PODSTAWOWE"]
[null,null,null,null,"rodzaj robót budowlanych",null,null,null,null,null,null,"kategoria",null,null,null,"numer",null,null,null,"klasa",null,"długość [km]"]
["odcinek nr 1 ",null,null,null,null,null,null,null,null,null,null,{"$f":"IF(ISBLANK($R$32),\" \",$R$32)","v":" "},null,null,null,{"$f":"IF(ISBLANK(V48),\" \",V48)","v":" "}]
["odcinek nr 2 ",null,null,null,null,null,null,null,null,null,null,{"$f":"IF(ISBLANK($R$33),\" \",$R$33)","v":" "},null,null,null,{"$f":"IF(ISBLANK(V49),\" \",V49)","v":" "}]
["odcinek nr 3 ",null,null,null,null,null,null,null,null,null,null,{"$f":"IF(ISBLANK($R$34),\" \",$R$34)","v":" "},null,null,null,{"$f":"IF(ISBLANK(V50),\" \",V50)","v":" "}]
["ŁĄCZNIE ",null,null,null,null,null,null,null,null,null,null,null,null,null,null,null,null,null,null,null,null,{"$f":"SUM(V155:Z157)","v":0}]
["JEZDNIE"]
[null,null,null,null,null,null,null,null,"przekrój",null,null,null,null,null,"szerokość pasa ruchu",null,null,null,null,null,"zgoda na odstępstwo"]
["odcinek nr 1 "]
["odcinek nr 2 "]
["odcinek nr 3 "]
["A. ","Skrzyżowania:"]
[null,"•","remontowane skrzyżowania zwykłe z drogami publicznymi"]
[null,null,null,null,null,"szt.",null,null,null,null,null,null,null,null,null,null,null,null,null,null,null,null,null,null,null,null,{"$f":"LEN(G166)","v":0},"z",400]
[null,"•","remontowane skrzyżowania skanalizowane, w formie ronda lub inne podnoszące poziom bezpieczeństwa np. z sygnalizacją świetlną "]
[null,null,null,null,null,"szt.",null,null,null,null,null,null,null,null,null,null,null,null,null,null,null,null,null,null,null,null,{"$f":"LEN(G168)","v":0},"z",400]
["B. ","Drogowe obiekty inżynierskie:"]
[null,"•","remontowane obiekty: most, wiadukt, estakada, kładka dla pieszych"]
[null,null,null,null,null,"szt.",null,null,null,null,null,null,null,null,null,null,null,null,null,null,null,null,null,null,null,null,{"$f":"LEN(G171)","v":0},"z",400]
[null,null,"•","przepust pod koroną drogi"]
[null,null,"•","konstrukcja oporowa"]
["C.","Rodzaj robót budowlanych realizowanych w ramach wnioskowanego zadania"]
[null,"•","nastąpi remont chodnika dla pieszych"]
[null,"•","nastąpi remont ścieżki pieszo-rowerowej"]
[null,"•","nastąpi remont oświetlenia ulicznego"]
[null,null,"•","Czy w ramach zadania nastąpi budowa/przebudowa/rozbudowa chodnika dla pieszych"]
[null,null,"•","Czy w ramach zadania nastąpi budowa/przebudowa/rozbudowa ścieżki pieszo-rowerowej"]
[null,null,"•","Czy w ramach zadania nastąpi montaż oświetlenia ulicznego"]
[null,null,"•","Czy w ramach zadania nastąpi przebudowa drogi wewnętrznej i zaliczenie jej do kategorii dróg publicznych "]
[null,null,"•","Czy w ramach zadania będzie realizowana budowa obwodnicy "]
[]
[]
[]
[]
[]
[null,"Kryterium nr 4",null,null,null,"-","Zwiększenie dostępności transportowej jednostek administracyjnych",null,null,null,null,null,null,null,null,null,null,null,null,null,null,null,null,null,null,null,null,null,null,null,"Kryterium 4 - Zwiększenie dostępności transportowej jednostek administracyjnych"]
["A.\n","Odcinek przebiega w całości lub w części na obszarze wiejskim (wykracza poza granice administracyjne miasta)"]
[null,"ODCINEK 1",null,null,null,null,"przebiega",null,null,null,null,null,{"$f":"IF(AND(E190<>\"\",J190<>\"\"),\"na obszarze wiejskim\",\"\")","v":""}]
[null,"ODCINEK 2",null,null,null,null,"przebiega",null,null,null,null,null,{"$f":"IF(AND(E191<>\"\",J191<>\"\"),\"na obszarze wiejskim\",\"\")","v":""}]
[null,"ODCINEK 3",null,null,null,null,"przebiega",null,null,null,null,null,""]
["B.\n\n","Odcinek drogi przebiega w całości w granicach administracyjnych miast ujętych w pakiecie dla średnich miast uznanych za zagrożone utratą funkcji społeczno - gospodarczych (na podstawie Analizy Instytutu Geografii i Przestrzennego Zagospodarowania PAN)"]
[null,"ODCINEK 1",null,null,null,null,"przebiega",null,null,null,null,null,{"$f":"IF(AND(E194<>\"\",J194<>\"\"),\"w granicach administracyjnych miast ujętych w pakiecie\",\"\")","v":""}]
[null,"ODCINEK 2",null,null,null,null,"przebiega",null,null,null,null,null,{"$f":"IF(AND(E195<>\"\",J195<>\"\"),\"w granicach administracyjnych miast ujętych w pakiecie\",\"\")","v":""}]
[null,"ODCINEK 3",null,null,null,null,"przebiega",null,null,null,null,null,""]
["C.\n\n\n","Droga lub Odcinek drogi stanowi stanowi bezpośredni/pośredni dojazd do:\n• miejsc zgromadzeń ludności np.: cmentarz, boisko, amfiteatr, obiekty zabytkowe, sakralne; \n• instytucji publicznych lub świadczących usługi publiczne np.: urząd gminy, szkoła, ośrodek zdrowia, ośrodek pomocy społecznej, remiza OSP, świetlica wiejska \n*(dojazd pośredni - położenie powyżej 200 m.b. od drogi, dojazd bezpośredni - położenie do 200 m.b. od drogi)"]
[null,"ODCINEK 1","TAK",null,{"$f":"IF(C198=\"TAK\",\"bezpośredni dojazd do:\",\"\")","v":"bezpośredni dojazd do:"},null,null,null,null,null,null,null,null,null,null,null,null,null,null,null,null,null,null,null,null,null,{"$f":"LEN(H198)","v":0},"z",250]
[null,null,null,null,{"$f":"IF(C198=\"TAK\",\"pośredni dojazd do:\",\"\")","v":"pośredni dojazd do:"},null,null,null,null,null,null,null,null,null,null,null,null,null,null,null,null,null,null,null,null,null,{"$f":"LEN(H199)","v":0},"z",250]
[null,"ODCINEK 2","TAK",null,{"$f":"IF(C200=\"TAK\",\"bezpośredni dojazd do:\",\"\")","v":"bezpośredni dojazd do:"},null,null,null,null,null,null,null,null,null,null,null,null,null,null,null,null,null,null,null,null,null,0,"z",250]
[null,null,null,null,{"$f":"IF(C200=\"TAK\",\"pośredni dojazd do:\",\"\")","v":"pośredni dojazd do:"},null,null,null,null,null,null,null,null,null,null,null,null,null,null,null,null,null,null,null,null,null,0,"z",250]
[null,"ODCINEK 3","TAK",null,{"$f":"IF(C202=\"TAK\",\"bezpośredni dojazd do:\",\"\")","v":"bezpośredni dojazd do:"},null,null,null,null,null,null,null,null,null,null,null,null,null,null,null,null,null,null,null,null,null,0,"z",250]
[null,null,null,null,{"$f":"IF(C202=\"TAK\",\"pośredni dojazd do:\",\"\")","v":"pośredni dojazd do:"},null,null,null,null,null,null,null,null,null,null,null,null,null,null,null,null,null,null,null,null,null,0,"z",250]
["D.\n","Odcinek drogi przyczynia się do poprawy dostępności komunikacyjnej obszarów o niższym poziomie zamożności"]
[null,"ODCINEK 1","TAK",null,null,null,null,null,null,null,null,null,null,null,null,null,null,null,null,null,null,null,null,null,null,null,{"$f":"LEN(E205)","v":0},"z",300]
[null,"ODCINEK 2","TAK",null,null,null,null,null,null,null,null,null,null,null,null,null,null,null,null,null,null,null,null,null,null,null,{"$f":"LEN(E206)","v":0},"z",300]
[null,"ODCINEK 3","TAK",null,null,null,null,null,null,null,null,null,null,null,null,null,null,null,null,null,null,null,null,null,null,null,{"$f":"LEN(E207)","v":0},"z",300]
["E.\n\n\n\n","Droga lub Odcinek drogi stanowi dojazd do nieruchomości, na których zostały zrealizowane lub będą realizowane przez gminę lub związek międzygminny inwestycje mieszkaniowe w ramach programów społeczno - gospodarczych m.in.: mieszkania na wynajem, noclegownie, schroniska dla osób bezdomnych, mieszkania chronione \n*(dojazd pośredni - położenie powyżej 200 m.b. od drogi, dojazd bezpośredni - położenie do 200 m.b. od drogi)"]
[null,"ODCINEK 1","TAK",null,{"$f":"IF(C209=\"TAK\",\"bezpośredni dojazd do:\",\"\")","v":"bezpośredni dojazd do:"},null,null,null,null,null,null,null,null,null,null,null,null,null,null,null,null,null,null,null,null,null,{"$f":"LEN(H209)","v":0},"z",250]
[null,null,null,null,{"$f":"IF(C209=\"TAK\",\"pośredni dojazd do:\",\"\")","v":"pośredni dojazd do:"},null,null,null,null,null,null,null,null,null,null,null,null,null,null,null,null,null,null,null,null,null,{"$f":"LEN(H210)","v":0},"z",250]
[null,"ODCINEK 2","TAK",null,{"$f":"IF(C211=\"TAK\",\"bezpośredni dojazd do:\",\"\")","v":"bezpośredni dojazd do:"},null,null,null,null,null,null,null,null,null,null,null,null,null,null,null,null,null,null,null,null,null,0,"z",250]
[null,null,null,null,{"$f":"IF(C211=\"TAK\",\"pośredni dojazd do:\",\"\")","v":"pośredni dojazd do:"},null,null,null,null,null,null,null,null,null,null,null,null,null,null,null,null,null,null,null,null,null,0,"z",250]
[null,"ODCINEK 3","TAK",null,{"$f":"IF(C213=\"TAK\",\"bezpośredni dojazd do:\",\"\")","v":"bezpośredni dojazd do:"},null,null,null,null,null,null,null,null,null,null,null,null,null,null,null,null,null,null,null,null,null,0,"z",250]
[null,null,null,null,{"$f":"IF(C213=\"TAK\",\"pośredni dojazd do:\",\"\")","v":"pośredni dojazd do:"},null,null,null,null,null,null,null,null,null,null,null,null,null,null,null,null,null,null,null,null,null,0,"z",250]
["F.\n","Odcinek drogi prowadzi do obiektu użyteczności publicznej objętego dofinansowaniem z programu Maluch+, Senior+, Rządowego Funduszu Inwestycji Lokalnych"]
[null,"ODCINEK 1","TAK",null,null,null,null,null,null,null,null,null,null,null,null,null,null,null,null,null,null,null,null,null,null,null,{"$f":"LEN(E216)","v":0},"z",250]
[null,"ODCINEK 2","TAK"]
[null,"ODCINEK 3","TAK"]
["G.\n\n","Bezpośrednio w ciągu drogi objętej zadaniem przebiega linia autobusowa objęta wsparciem z Funduszu Rozwoju Przewozów Autobusowych, lub realizowane są usługi transportu publicznego lub uchwalono planowany przebieg linii użyteczności publicznej"]
[null,"ODCINEK 1","TAK",null,null,null,null,null,null,null,null,null,null,null,null,null,null,null,null,null,null,null,null,null,null,null,{"$f":"LEN(E220)","v":0},"z",250]
[null,"ODCINEK 2","TAK",null,null,null,null,null,null,null,null,null,null,null,null,null,null,null,null,null,null,null,null,null,null,null,{"$f":"LEN(E221)","v":0},"z",250]
[null,"ODCINEK 3","TAK",null,null,null,null,null,null,null,null,null,null,null,null,null,null,null,null,null,null,null,null,null,null,null,{"$f":"LEN(E222)","v":0},"z",250]
[null,"Kryterium nr 5",null,null,null,"-","Poprawa dostępności do terenów gospodarczych i inwestycyjnych",null,null,null,null,null,null,null,null,null,null,null,null,null,null,null,null,null,null,null,null,null,null,null,"Kryterium 5 - Poprawa dostępności do terenów gospodarczych i inwestycyjnych "]
["A.\n\n","Odcinek drogi zapewnia bezpośredni/pośredni dojazd do lokalnych ośrodków gospodarczych np. do strefy ekonomicznej, podmiotów gospodarczych, lokalnego targowiska \n*(dojazd pośredni - położenie powyżej 200 m.b. od drogi, dojazd bezpośredni - położenie do 200 m.b. od drogi)"]
[null,"ODCINEK 1","TAK",null,{"$f":"IF(C225=\"TAK\",\"bezpośredni dojazd do:\",\"\")","v":"bezpośredni dojazd do:"},null,null,null,null,null,null,null,null,null,null,null,null,null,null,null,null,null,null,null,null,null,{"$f":"LEN(H225)","v":0},"z",250]
[null,null,null,null,{"$f":"IF(C225=\"TAK\",\"pośredni dojazd do:\",\"\")","v":"pośredni dojazd do:"},null,null,null,null,null,null,null,null,null,null,null,null,null,null,null,null,null,null,null,null,null,0,"z",250]
[null,"ODCINEK 2","TAK",null,{"$f":"IF(C227=\"TAK\",\"bezpośredni dojazd do:\",\"\")","v":"bezpośredni dojazd do:"},null,null,null,null,null,null,null,null,null,null,null,null,null,null,null,null,null,null,null,null,null,0,"z",250]
[null,null,null,null,{"$f":"IF(C227=\"TAK\",\"pośredni dojazd do:\",\"\")","v":"pośredni dojazd do:"},null,null,null,null,null,null,null,null,null,null,null,null,null,null,null,null,null,null,null,null,null,0,"z",250]
[null,"ODCINEK 3","TAK",null,{"$f":"IF(C229=\"TAK\",\"bezpośredni dojazd do:\",\"\")","v":"bezpośredni dojazd do:"},null,null,null,null,null,null,null,null,null,null,null,null,null,null,null,null,null,null,null,null,null,0,"z",250]
[null,null,null,null,{"$f":"IF(C229=\"TAK\",\"pośredni dojazd do:\",\"\")","v":"pośredni dojazd do:"},null,null,null,null,null,null,null,null,null,null,null,null,null,null,null,null,null,null,null,null,null,0,"z",250]
["B.\n\n\n","Odcinek drogi umożliwia bezpośredni/pośredni dojazd do terenów inwestycyjnych, rozumianych jako tereny przeznaczone w studium uwarunkowań przestrzennych, miejscowym planie zagospodarowania lub w decyzji lokalizacyjnej pod działalność gospodarczą \n*(dojazd pośredni - położenie powyżej 200 m.b. od drogi, dojazd bezpośredni - położenie do 200 m.b. od drogi)"]
[null,"ODCINEK 1","TAK",null,{"$f":"IF(C232=\"TAK\",\"bezpośredni dojazd do:\",\"\")","v":"bezpośredni dojazd do:"},null,null,null,null,null,null,null,null,null,null,null,null,null,null,null,null,null,null,null,null,null,{"$f":"LEN(H232)","v":0},"z",250]
[null,null,null,null,{"$f":"IF(C232=\"TAK\",\"pośredni dojazd do:\",\"\")","v":"pośredni dojazd do:"},null,null,null,null,null,null,null,null,null,null,null,null,null,null,null,null,null,null,null,null,null,0,"z",250]
[null,"ODCINEK 2","TAK",null,{"$f":"IF(C234=\"TAK\",\"bezpośredni dojazd do:\",\"\")","v":"bezpośredni dojazd do:"},null,null,null,null,null,null,null,null,null,null,null,null,null,null,null,null,null,null,null,null,null,0,"z",250]
[null,null,null,null,{"$f":"IF(C234=\"TAK\",\"pośredni dojazd do:\",\"\")","v":"pośredni dojazd do:"},null,null,null,null,null,null,null,null,null,null,null,null,null,null,null,null,null,null,null,null,null,0,"z",250]
[null,"ODCINEK 3","TAK",null,{"$f":"IF(C236=\"TAK\",\"bezpośredni dojazd do:\",\"\")","v":"bezpośredni dojazd do:"},null,null,null,null,null,null,null,null,null,null,null,null,null,null,null,null,null,null,null,null,null,0,"z",250]
[null,null,null,null,{"$f":"IF(C236=\"TAK\",\"pośredni dojazd do:\",\"\")","v":"pośredni dojazd do:"},null,null,null,null,null,null,null,null,null,null,null,null,null,null,null,null,null,null,null,null,null,0,"z",250]
["C.\n\n\n","Odcinek drogi zapewnia bezpośredni/pośredni dojazd do terenów, na których jest prowadzona produkcja rolna, sadownictwo, ogrodnictwo lub/i zlokalizowane są gospodarstwa agroturystyczne ważne ze względu na specyfikę obszaru \n*(dojazd pośredni - położenie powyżej 200 m.b. od drogi, dojazd bezpośredni - położenie do 200 m.b. od drogi)"]
[null,"ODCINEK 1","TAK",null,{"$f":"IF(C239=\"TAK\",\"bezpośredni dojazd do:\",\"\")","v":"bezpośredni dojazd do:"},null,null,null,null,null,null,null,null,null,null,null,null,null,null,null,null,null,null,null,null,null,{"$f":"LEN(H239)","v":0},"z",250]
[null,null,null,null,{"$f":"IF(C239=\"TAK\",\"pośredni dojazd do:\",\"\")","v":"pośredni dojazd do:"},null,null,null,null,null,null,null,null,null,null,null,null,null,null,null,null,null,null,null,null,null,0,"z",250]
[null,"ODCINEK 2","TAK",null,{"$f":"IF(C241=\"TAK\",\"bezpośredni dojazd do:\",\"\")","v":"bezpośredni dojazd do:"},null,null,null,null,null,null,null,null,null,null,null,null,null,null,null,null,null,null,null,null,null,0,"z",250]
[null,null,null,null,{"$f":"IF(C241=\"TAK\",\"pośredni dojazd do:\",\"\")","v":"pośredni dojazd do:"},null,null,null,null,null,null,null,null,null,null,null,null,null,null,null,null,null,null,null,null,null,0,"z",250]
[null,"ODCINEK 3","TAK",null,{"$f":"IF(C243=\"TAK\",\"bezpośredni dojazd do:\",\"\")","v":"bezpośredni dojazd do:"},null,null,null,null,null,null,null,null,null,null,null,null,null,null,null,null,null,null,null,null,null,0,"z",250]
[null,null,null,null,{"$f":"IF(C243=\"TAK\",\"pośredni dojazd do:\",\"\")","v":"pośredni dojazd do:"},null,null,null,null,null,null,null,null,null,null,null,null,null,null,null,null,null,null,null,null,null,0,"z",250]
["12. ","OSOBY UPOWAŻNIONE DO UDZIELANIA WYJAŚNIEŃ KOMISJI",null,null,null,null,null,null,null,null,null,null,null,null,null,null,null,null,null,null,null,null,null,null,null,null,null,null,null,null,"OSOBY UPOWAŻNIONE DO UDZIELANIA WYJAŚNIEŃ KOMISJI"]
["Lp.","imię i nazwisko",null,null,null,null,null,null,"stanowisko służbowe",null,null,null,null,null,"nr telefonu",null,null,null,null,"e-mail",null,null,null,null,null,null,null,null,null,null,"Wskaż osobę/osoby do kontaktu przez podanie imienia i nazwiska, stanowiska służbowego, nr telefonu (ze wskazaniem nr wewnętrznego - jeśli dotyczy), adresu e-mail."]
[1]
[2]
[3]
["13. ","ZŁĄCZNIKI",null,null,null,null,null,null,null,null,null,null,null,null,null,null,null,null,null,null,null,null,null,null,null,null,null,null,null,null,"ZŁĄCZNIKI"]
["1)","Do wniosku dołączone zostały załączniki:   ",null,null,null,null,null,null,null,null,null,null,null,null,null,null,null,null,null,null,null,null,null,null,null,null,null,null,null,null,"Wskaż, przez wybranie z list rozwijanych, które z wymienionych załaczników zostały dołaczone do wniosku"]
[null,"a)","kopia prawomocnej decyzji o pozwoleniu na budowę - dotyczy robót realizowanych na podstawie pozwolenia na budowę (obligatoryjnie), nie dotyczy wniosków w formule \"zaprojektuj i wybuduj\"\nlub"]
[null,null,"kopia prawomocnej decyzji o zezwoleniu na realizację inwestycji drogowej - dotyczy robót realizowanych na podstawie ZRID (obligatoryjnie), nie dotyczy wniosków w formule \"zaprojektuj i wybuduj\" \nlub"]
[null,null,"kopia zgłoszenia robót budowlanych z poświadczeniem o braku podstaw do wniesienia sprzeciwu na zgłoszenie wykonania robót budowlanych potwierdzone:\n - zaświadczeniem organu administracji architektoniczno-budowlanej \n   lub \n - pieczęcią organu administracji architektoniczno-budowlanej \ndotyczy robót realizowanych na podstawie zgłoszenia (obligatoryjnie), nie dotyczy wniosków w formule \"zaprojektuj i wybuduj\" ,"]
[null,"*","w przypadku niezałączenia jednego z trzech wyżej wymienionych dokumentów beneficjent jest zobowiązany do potwierdzenia zapoznania się z oświadczeniem o uzupełnieniu dokumentacji znajdującym się poniżej (w części OŚWIADCZENIA)",null,null,null,null,null,null,null,null,null,null,null,null,null,null,null,null,null,null,null,null,null,null,null,null,null,null,null,"czy przewidujemy uzupełnianie dokumentów, czyli czy nie wymagamy gotowości dokumentacyjnej ???"]
[null,"b)","zgodna ze stanem faktycznym, czytelna mapa poglądowa z naniesioną skalą i z zaznaczonym miejscem/odcinkiem realizacji wnioskowanego zadania oraz  elementami mającymi wpływ na ocenę merytoryczną wniosku - dotyczy kryterium nr 4 i nr 5 (obligatoryjnie),"]
[null,"c)","kopia strony projektu stałej organizacji ruchu, z której wynika, że projekt jest zatwierdzony (obligatoryjnie) \n"]
[null,null,"lub \npismo organu uprawnionego do zatwierdzenia organizacji ruchu (obligatoryjnie),"]
[null,"d)","kopia projektu zagospodarowania terenu (obligatoryjnie) - nie dotyczy wniosków w formule \"zaprojektuj i wybuduj\"\nlub "]
[null,null,"koncepcja planu / zakresu zagospodarowania terenu z podaniem charakterystycznych parametrów (dł., szer. jezdni, poboczy i innych elementów drogi) z Programu funkcjonalno-użytkowego (PFU) - dotyczy wniosków w formule \"zaprojektuj i wybuduj\" (obligatoryjnie),"]
[null,"e)","rysunki  z charakterystycznymi przekrojami poprzecznymi pasa drogowego w liniach rozgraniczających z wykazaniem wszystkich elementów drogi - przekroje normalne i przekroje konstrukcyjne lub normalno-konstrukcyjne (obligatoryjnie) - nie dotyczy wniosków w formule \"zaprojektuj i wybuduj\""]
[null,null,"lub \nrysunek konstrukcyjny z Programu funkcjonalno-użytkowego (PFU) (obligatoryjnie) - dotyczy wniosków w formule \"zaprojektuj i wybuduj\","]
[null,"f)","kopia kosztorysu inwestorskiego (obligatoryjnie) - nie dotyczy wniosków w formule \"zaprojektuj i wybuduj\"\nlub"]
[null,null,"szacunkowe koszty realizacji inwestycji wraz z kosztami szacunkowymi opracowania dokumentacji projektowej z Programu funkcjonalno-użytkowego (PFU) (obligatoryjnie) - dotyczy wniosków w formule \"zaprojektuj i wybuduj\","]
[null,"g)","kopia zgody na odstępstwo od przepisów techniczno-budowlanych (jeśli dotyczy),"]
[null,"h)","informacja dotycząca komplementarności zadania z programami rządowymi z podaniem nazwy programu, numeru i daty umowy z Wojewodą lub umowy/umów wynikających z programów społeczno - gospodarczych - dotyczy kryterium nr 4 (jeśli dotyczy), "]
[null,"i)","dodatkowe załączniki (jeśli dotyczy),"]
[]
["14. ","OŚWIADCZENIE I ZOBOWIĄZANIE WNIOSKODAWCY (ustawowego zarządcy drogi)",null,null,null,null,null,null,null,null,null,null,null,null,null,null,null,null,null,null,null,null,null,null,null,null,null,null,null,null,"OŚWIADCZENIE I ZOBOWIĄZANIE WNIOSKODAWCY (ustawowego zarządcy drogi)"]
["Wnioskodawca zobowiązuję się do: "]
["•  ","przeprowadzenia postępowania o zamówienie publiczne zgodnie z obowiązującymi przepisami Prawa zamówień publicznych,   "]
[]
["Wnioskodawca oświadcza, że: "]
["1)","do wniosku dołączone zostały załączniki wskazane w punkcie 13 wniosku;"]
["2)","dane i informacje zawarte we wniosku są prawidłowe i kompletne;"]
["3)","na dzień złożenia wniosku, zadanie obejmuje inwestycję wyłącznie na drodze dla której wnioskodawca pełni rolę ustawowego zarządcy i która:\n publicznej, :"]
[null,"•","została zaliczona do kategorii dróg publicznych"]
[null,null,"lub"]
[null,"•","zostanie zaliczona do kategorii dróg publicznych"]
[null,null,"uchwałą właściwego organu jst w sprawie zaliczenia drogi/dróg do odpowiedniej kategorii w terminie 12 miesięcy od dnia zatwierdzenia rozliczenia "]
["4)","zapewnione zostanie zabezpieczenie całości zadeklarowanego we wniosku wkładu własnego;"]
["5)","dopełnił bądź dopełni wszelkich wymogów wynikających z przepisów prawa uprawniających do realizacji zadania;"]
[]
["OŚWIADCZENIA:"]
["OŚWIADCZENIE O UZUPEŁNIENIU DOKUMENTACJI (jeśli dotyczy)"]
[null,"Oświadczam, że w terminie 30 dni od dnia opublikowania zatwierdzonej przez Prezesa Rady Ministrów listy przeznaczonych na dofinansowanie zadań (mających na celu wyłącznie poprawę bezpieczeństwa niechronionych uczestników ruchu, polegających w szczególności na budowie, przebudowie lub remoncie dróg dla pieszych, dróg dla pieszych i rowerów, dróg dla rowerów, przejść dla pieszych, przejazdów dla rowerów, peronów przystankowych wraz z dojściami do tych peronów) dostarczę przynajmniej jeden z dokumentów: \n"]
[null,"•","kopia prawomocnej decyzji o pozwoleniu na budowę,"]
[null,"•","kopia prawomocnej decyzji o zezwoleniu na realizację inwestycji drogowej,"]
[null,"•","kopia zgłoszenia robót budowlanych z poświadczeniem braku podstaw do wniesienia sprzeciwu na zgłoszenie wykonania robót budowlanych potwierdzone zaświadczeniem organu administracji architektoniczno-budowlanej lub pieczęcią organu administracji architektoniczno-budowlane"]
[]
["OŚWIADCZENIE O PRZEKAZANIU DANYCH O SIECI DRÓG PUBLICZNYCH DO GDDKiA (obligatoryjnie)"]
[null,"Oświadczam, że zgodnie z zapisami § 2.2 rozporządzenia Ministra Infrastruktury z dnia 16 lutego 2005 r. w sprawie trybu sporządzania informacji oraz gromadzenia i udostępniania danych o sieci dróg publicznych, obiektach mostowych, tunelach oraz promach (Dz.U. 2005 nr 67 poz. 583) sporządzono oraz przekazano do Generalnego Dyrektora Dróg Krajowych i Autostrad informacje dla celów statystycznych o sieci dróg publicznych. "]
[]
["OŚWIADCZENIE O POSIADANIU TYTUŁU PRAWNEGO DO NIERUCHOMOŚCI (obligatoryjnie)"]
[null,"Oświadczam, że wnioskodawca posiada tytuł prawny do nieruchomości wskazanych w oświadczeniu o dysponowaniu nieruchomością na cele budowlane zgodnie z art. 3 Prawa budowlanego, tj. tytuł prawny wynikający z prawa własności, użytkowania wieczystego, zarządu, ograniczonego prawa rzeczowego albo stosunku zobowiązaniowego, przewidującego uprawnienia do wykonywania robót budowlanych, ponadto tytuł ten nie wynika z posiadania samoistnego/władania lub z mocy prawa na podst. art. 73 ustawy z dnia 13 października 1998 r. Przepisy wprowadzające ustawy reformujące administrację publiczną (dotyczy sytuacji gdy jst nie posiada decyzji potwierdzającej ten fakt)"]
[]
["OŚWIADCZENIE O ZGODNOŚCI Z PRZEPISAMI PRAWA I WYTYCZNYMI (obligatoryjnie)"]
[null,"Oświadczam, że realizacja zgłoszonego zadania odbędzie się z zachowaniem przepisów prawa budowlanego, w tym warunków techniczno-budowlanych dotyczących dróg, spełnienia parametrów technicznych wynikających z wytycznych projektowania infrastruktury dla pieszych oraz rowerów, odpowiedniego oznakowania i zastosowania urządzeń bezpieczeństwa i organizacji ruchu, w szczególności z:"]
[null,"•  ","ustawą z dnia 7 lipca 1994 r. prawo budowlane (tj. Dz.U. z 2021 r. poz. 2351 ze zm.);"]
[null,"•  ","rozporządzeniem Ministra Infrastruktury z dnia 24 czerwca 2022 r. w sprawie przepisów techniczno-budowlanych dotyczących dróg publicznych (tj. Dz. U. z 2022 r. poz. 1518);\n\nrozporządzeniu MTiGM z dnia 2 marca 1999 r. w sprawie warunków technicznych, jakim powinny odpowiadać drogi publiczne i ich usytuowanie - co w przypadku, gdy zgłoszenie/pozwolenie jest sprzed 2022 r. ?????\n"]
[null,"•  ","ustawą z dnia 21 marca 1985 r. o drogach publicznych (tj. Dz. U. z 2022 r. poz. 1693 ze zm.);"]
[null,"•  ","wytycznymi projektowania infrastruktury dla pieszych. Część 3: Projektowanie przejść dla pieszych \n(WR-D-41-3);"]
[null,"•  ","wytycznymi projektowania infrastruktury dla pieszych. Część 4: Projektowanie oświetlenia przejść dla pieszych (WR-D-41-4);"]
[null,"•  ","wytycznymi projektowania infrastruktury dla rowerów. Część 1: Planowanie tras dla rowerów \n(WR-D-42-1);"]
[null,"•  ","wytycznymi projektowania infrastruktury dla rowerów. Część 2: Projektowanie dróg dla\nrowerów, dróg dla pieszych i rowerów oraz pasów i kontrapasów ruchu dla rowerów (WR-D-42-2);"]
[null,"•  ","wytycznymi projektowania infrastruktury dla rowerów. Część 3: Projektowanie przejazdów dla\nrowerów oraz infrastruktury dla rowerów na skrzyżowaniach i węzłach (WR-D-42-3)."]
[]
["OŚWIADCZENIE O ODPOWIEDZIALNOŚCI KARNEJ (obligatoryjnie)",null,null,null,null,null,null,null,null,null,null,null,null,null,null,null,null,null,null,null,null,null,null,null,null,null,null,null,null,null,"OŚWIADCZENIE O ODPOWIEDZIALNOŚCI KARNEJ (obligatoryjnie) - wybierz z listy rozwijanej [\"TAK/NIE\"]"]
[null,"Ja, niżej podpisana/y, oświadczam, że informacje zawarte we wniosku oraz przedłożonych załącznikach są zgodne z prawdą. Jestem świadomy odpowiedzialności karnej wynikającej z art. 271 Kodeksu Karnego, dotyczącego poświadczenia nieprawdy, co do okoliczności mającej znaczenie prawne.",null,null,null,null,null,null,null,null,null,null,null,null,null,null,null,null,null,null,null,null,null,null,null,null,null,null,null,null,"Ośwaidczenie o odpowiedzialności karnej dotyczącej poświadczenia nieprawdy, co okoliczności mającej znaczenia prawne jest obligatoryjne i wypełnia się je poprzez wybranie \"TAK\" z listy rozwijanej z komórki oznaczonej zółtym kolorem. \nPozostawienie pustej komórki (oznaczonej zółtym kolorem) jest jednoznaczne z wybraniem \"NIE\"."]
[]
["Podpisy i pieczątki osób upoważnionych z ramienia wnioskodawcy (wraz z podpisem Skarbnika/Głównego Księgowego) - ustawowy zarządca drogi",null,null,null,null,null,null,null,null,null,null,null,null,null,null,null,null,null,null,null,null,null,null,null,null,null,null,null,null,null,"Podpisy i pieczątki osób upoważnionych z ramienia wnioskodawcy (wraz z podpisem Skarbnika/Głównego Księgowego) - ustawowy zarządca drogi"]
[null,null,null,null,null,null,null,null,null,null,null,null,null,null,null,null,null,null,null,null,null,null,null,null,null,null,null,null,null,null,"Jeśli wnioskdawcą jest :\n - GMINA - podpis i pieczątka wójta/burmistrza/prezydenta oraz skarbnika/głównego księgowego (łącznie 2 podpisy),\n - POWIAT - podpisy i pieczątki dwóch członków zarządu oraz skarbnika/głównego księgowego (łącznie 3 podpisy)."]